Workbook

Sheet Inputs
N2: Version 6.10 09 March 2021
B4: Tariff Input Sheet
B6: Please enter the required information below:
D8: Customer Name | G8: Customer Name | I8: Enter the customer name as it is displayed on the rates bill.
D9: Account number | G9: Account Number | I9: Enter the account number as it is displayed on the rates bill.
D10: Point of delivery ID | G10: Point of delivery | I10: Enter the Point of Delivery ID as it is displayed on the rates bill.
D11: Number of PODs | H11: 1
D13: Select your tariff classification | I13: Select either Non-Local Authority (Eskom), Local Authority (Municipality)
D15: Customer Category | G15: Small Power User
D17: Select supply size | I17: Select the appropriate customer supply size (kVA)
D19: Select tariff | I19: Drop box selection driven by the supply voltage inputs
D21: Select supply voltage | G21: =Selected_Supply_Voltage -> < 500V | K21: Calculations are based on the average number of days per month: Ave days per month = Total number of days in year (365) / months (12) = 30.416667
D23: Enter average monthly consumption | I23: kWh / month

Sheet Monthly Average Bill
B4: Monthly Average Bill | I4: =D10 -> Businessrate 1 | K4: =B4 -> Monthly Average Bill | P4: =I4 -> Businessrate 1
B6: Annual | K6: Analysis
B8: Customer Name | D8: =Customer_Name -> Customer Name
B9: =Inputs!D10 -> Point of delivery ID | D9: =Delivery_ID -> Point of delivery | K9: Summary | M9: =Current_Period -> 2020/2021 | N9: =New_Period -> 2021/2022 | O9: % Change
C10: Tariff | D10: =Selected_Base_Tariff -> Businessrate 1 | F10: Ave Monthly Consumption | H10: =IF(Selected_Customer_Category_ID=1,SPU_Annual_Total_Energy,0) -> 0 | I10: kWh
C11: Tariff Category | D11: =INDEX(Full_Tariff_Type,MATCH(D10,Full_Tariff_List,0)) -> Urban | F11: Days | H11: =ESKOM_Total_days -> 30.41666667 | I11: days | L11: Total Network Charges | M11: =G23 -> 768.0208333 | N11: =H23 -> 904.5916667 | O11: =I23 -> 0.1778217822
C12: Supply voltage | D12: =Selected_Supply_Voltage -> < 500V | L12: Total Energy Charges | M12: =G31 -> 0 | N12: =H31 -> 0 | O12: =I31 -> 0
C13: Tariff Classification | D13: =Selected_Tariff_Category -> Local Authority | L13: Other Charges | M13: =G38 -> 657.6083333 | N13: =H38 -> 774.7125 | O13: =I38 -> 0.1780758557
C14: No of PODS | D14: =PODs -> 1
C15: Size of supply | D15: =Selected_Supply_Size -> 5kVA, 16kVA, 20A or 60A | L15: VAT | M15: =G41 -> 213.844375 | N15: =H41 -> 251.895625 | O15: =I41 -> 0
L17: Total Charges | M17: =G43 -> 1639.473542 | N17: =H43 -> 1931.199792 | O17: =IFERROR(N17/M17-1,0) -> 0.1779389802
B18: Network charges | D18: Units | E18: =Current_Period &" Rates" -> 2020/2021 Rates | F18: =New_Period &" Rates" -> 2021/2022 Rates | G18: =Current_Period&" Charges" -> 2020/2021 Charges | H18: =New_Period&" Charges" -> 2021/2022 Charges | I18: % Change
C20: Network demand charge | D20: c/kWh | E20: ='Rates Table'!E10 -> 17.61 | F20: ='Rates Table'!AA10 -> 20.74 | G20: =IFERROR(E20*SPU_Total_Energy,0)/100 -> 0 | H20: =IFERROR(F20*SPU_Total_Energy,0)/100 -> 0 | I20: =IFERROR(H20/G20-1,0) -> 0
C21: Network capacity charge | D21: =IF(Table_1=1,"R/kVA","R/day") -> R/day | E21: ='Rates Table'!E11 -> 25.25 | F21: ='Rates Table'!AA11 -> 29.74 | G21: =IFERROR(E21*PODs*SPU_Days,0) -> 768.0208333 | H21: =IFERROR(F21*PODs*SPU_Days,0) -> 904.5916667 | I21: 0.1778217822
B23: Total network charges | G23: =SUM(G20:G21) -> 768.0208333 | H23: =SUM(H20:H21) -> 904.5916667 | I23: 0.1778217822
B25: Energy charges | D25: Units | E25: =E18 -> 2020/2021 Rates | F25: =F18 -> 2021/2022 Rates | G25: =G18 -> 2020/2021 Charges | H25: =H18 -> 2021/2022 Charges | I25: % Change
C27: Energy | D27: c/kWh | E27: ='Rates Table'!E17 -> 127.04 | F27: ='Rates Table'!AA17 -> 149.65 | G27: =IFERROR(E27*(SPU_Total_Energy),0)/100 -> 0 | H27: =IFERROR(F27*(SPU_Total_Energy),0)/100 -> 0 | I27: =IFERROR(H27/G27-1,0) -> 0
C28: Energy - Block 1 | D28: c/kWh | E28: ='Rates Table'!E18 -> 0 | F28: ='Rates Table'!AA18 -> 0 | G28: =IFERROR(E28*(SPU_Block_1),0)/100 -> 0 | H28: =IFERROR(F28*(SPU_Block_1),0)/100 -> 0 | I28: 0
C29: Energy - Block 2 | D29: c/kWh | E29: ='Rates Table'!E19 -> 0 | F29: ='Rates Table'!AA19 -> 0 | G29: =IFERROR(E29*(SPU_Block_2),0)/100 -> 0 | H29: =IFERROR(F29*(SPU_Block_2),0)/100 -> 0 | I29: 0
B31: Total energy charges | G31: =SUM(G27:G29) -> 0 | H31: =SUM(H27:H29) -> 0 | I31: =IFERROR(H31/G31-1,0) -> 0
B33: Other charges | D33: Units | E33: =E18 -> 2020/2021 Rates | F33: =F18 -> 2021/2022 Rates | G33: =G18 -> 2020/2021 Charges | H33: =H18 -> 2021/2022 Charges | I33: % Change
C35: Ancillary service charge | D35: c/kWh | E35: ='Rates Table'!E25 -> 0.48 | F35: ='Rates Table'!AA25 -> 0.57 | G35: =IFERROR(SPU_Total_Energy*E35,0)/100 -> 0 | H35: =IFERROR(SPU_Total_Energy*F35,0)/100 -> 0 | I35: =IFERROR(H35/G35-1,0) -> 0
C36: Service charge | D36: =IF(Table_1=1,"R/day","R/day") -> R/day | E36: ='Rates Table'!E26 -> 21.62 | F36: ='Rates Table'!AA26 -> 25.47 | G36: =IFERROR(IF(Table_1=1,E36*PODs*SPU_Days,E36*PODs*SPU_Days),0) -> 657.6083333 | H36: =IFERROR(IF(Table_1=1,F36*PODs*SPU_Days,F36*PODs*SPU_Days),0) -> 774.7125 | I36: 0.1780758557
B38: Total other charges | G38: =SUM(G35:G36) -> 657.6083333 | H38: =SUM(H35:H36) -> 774.7125 | I38: =IFERROR(H38/G38-1,0) -> 0.1780758557
B40: Total excl VAT | G40: =G38+G31+G23 -> 1425.629167 | H40: =H38+H31+H23 -> 1679.304167 | I40: =IFERROR(H40/G40-1,0) -> 0.1779389802
B41: VAT | D41: =VAT -> 0.15 | G41: =G40*$D41 -> 213.844375 | H41: =H40*$D41 -> 251.895625
B43: Total account | G43: =SUM(G40:G41) -> 1639.473542 | H43: =SUM(H40:H41) -> 1931.199792 | I43: =IFERROR(H43/G43-1,0) -> 0.1779389802
B45: Average price | D45: c/kWh | G45: =IFERROR(G40/SPU_Total_Energy*100,0) -> 0 | H45: =IFERROR(H40/SPU_Total_Energy*100,0) -> 0 | I45: =IFERROR(H45/G45-1,0) -> 0
B48: Blocks
C49: Block 1 | D49: =IF(SPU_Total_Energy > SPU_Block_1_Upper, SPU_Block_1_Upper, SPU_Total_Energy) -> 0 | E49: =IF(D10 = Lists!B21, Block1_max_HL20A, Block1_max_HL60A) -> 600
C50: Block 2 | D50: =SPU_Total_Energy - D49 -> 0

Sheet Tariff Comparison
H2: Please select tariffs from the dropdown boxes to set up the Comparison Report.
B4: Comparison against other tariffs | R4: ='Monthly Average Bill'!I4 -> Businessrate 1
H6: 9 | J6: =MATCH(H8,Full_Tariff_List,0) -> 17 | L6: 3 | N6: =MATCH(L8,Full_Tariff_List,0) -> 10 | P6: 10 | R6: =MATCH(P8,Full_Tariff_List,0) -> 18
D8: ='Monthly Average Bill'!I4 -> Businessrate 1 | H8: =IFERROR(INDEX(Compare_Tariff_List,Dropdown_Compare_1),$D$8) -> Landlight 20A | L8: =IFERROR(INDEX(Compare_Tariff_List,Dropdown_Compare_2),$D$8) -> Homepower 4 | P8: =IFERROR(INDEX(Compare_Tariff_List,Dropdown_Compare_3),$D$8) -> Landlight 60A
D9: =IFERROR(INDEX(Compare_Long_Type,Selected_Compare_Tariff_ID),"") -> Commercial Urban | H9: =IFERROR(INDEX(Compare_Long_Type,Dropdown_Compare_1),"") -> Rural | L9: =IFERROR(INDEX(Compare_Long_Type,Dropdown_Compare_2),"") -> Residential Urban | P9: =IFERROR(INDEX(Compare_Long_Type,Dropdown_Compare_3),"") -> Rural
B10: Comparison Tariffs | D10: =Current_Period -> 2020/2021 | E10: =New_Period -> 2021/2022 | F10: % Change | H10: =Current_Period -> 2020/2021 | I10: =New_Period -> 2021/2022 | J10: % Change | L10: =Current_Period -> 2020/2021 | M10: =New_Period -> 2021/2022 | N10: % Change | P10: =Current_Period -> 2020/2021 | Q10: =New_Period -> 2021/2022 | R10: % Change
C12: Network Charges | D12: ='Monthly Average Bill'!M11 -> 768.0208333 | E12: ='Monthly Average Bill'!N11 -> 904.5916667 | F12: =IFERROR(E12/D12-1,0) -> 0.1778217822 | H12: =IFERROR(INDEX(SPU_Network_Costs_Current,0,J$6),"") -> 0 | I12: =IFERROR(INDEX(SPU_Network_Costs_New,0,J$6),"") -> 0 | J12: =IFERROR(I12/H12-1,0) -> 0 | L12: =IFERROR(INDEX(SPU_Network_Costs_Current,0,N$6),"") -> 115.8875 | M12: =IFERROR(INDEX(SPU_Network_Costs_New,0,N$6),"") -> 136.5708333 | N12: =IFERROR(M12/L12-1,0) -> 0.1784776903 | P12: =IFERROR(INDEX(SPU_Network_Costs_Current,0,R$6),"") -> 0 | Q12: =IFERROR(INDEX(SPU_Network_Costs_New,0,R$6),"") -> 0 | R12: =IFERROR(Q12/P12-1,0) -> 0
C13: Energy Charges | D13: ='Monthly Average Bill'!M12 -> 0 | E13: ='Monthly Average Bill'!N12 -> 0 | F13: =IFERROR(E13/D13-1,0) -> 0 | H13: =IFERROR(INDEX(SPU_Energy_Charges_Current,0,J$6),"") -> 0 | I13: =IFERROR(INDEX(SPU_Energy_Charges_New,0,J$6),"") -> 0 | J13: =IFERROR(I13/H13-1,0) -> 0 | L13: =IFERROR(INDEX(SPU_Energy_Charges_Current,0,N$6),"") -> 0 | M13: =IFERROR(INDEX(SPU_Energy_Charges_New,0,N$6),"") -> 0 | N13: =IFERROR(M13/L13-1,0) -> 0 | P13: =IFERROR(INDEX(SPU_Energy_Charges_Current,0,R$6),"") -> 0 | Q13: =IFERROR(INDEX(SPU_Energy_Charges_New,0,R$6),"") -> 0 | R13: =IFERROR(Q13/P13-1,0) -> 0
C14: Other | D14: ='Monthly Average Bill'!M13 -> 657.6083333 | E14: ='Monthly Average Bill'!N13 -> 774.7125 | F14: =IFERROR(E14/D14-1,0) -> 0.1780758557 | H14: =IFERROR(INDEX(SPU_Other_Charges_Current,0,J$6),"") -> 0 | I14: =IFERROR(INDEX(SPU_Other_Charges_NEw,0,J$6),"") -> 0 | J14: =IFERROR(I14/H14-1,0) -> 0 | L14: =IFERROR(INDEX(SPU_Other_Charges_Current,0,N$6),"") -> 0 | M14: =IFERROR(INDEX(SPU_Other_Charges_NEw,0,N$6),"") -> 0 | N14: =IFERROR(M14/L14-1,0) -> 0 | P14: =IFERROR(INDEX(SPU_Other_Charges_Current,0,R$6),"") -> 0 | Q14: =IFERROR(INDEX(SPU_Other_Charges_NEw,0,R$6),"") -> 0 | R14: =IFERROR(Q14/P14-1,0) -> 0
C16: Total | D16: ='Monthly Average Bill'!G40 -> 1425.629167 | E16: ='Monthly Average Bill'!H40 -> 1679.304167 | F16: =IFERROR(E16/D16-1,0) -> 0.1779389802 | H16: =SUM(H12:H14) -> 0 | I16: =SUM(I12:I14) -> 0 | J16: =IFERROR(I16/H16-1,0) -> 0 | L16: =SUM(L12:L14) -> 115.8875 | M16: =SUM(M12:M14) -> 136.5708333 | N16: =IFERROR(M16/L16-1,0) -> 0.1784776903 | P16: =SUM(P12:P14) -> 0 | Q16: =SUM(Q12:Q14) -> 0 | R16: =IFERROR(Q16/P16-1,0) -> 0
C18: Average price c/kWh | D18: ='Monthly Average Bill'!G45 -> 0 | E18: ='Monthly Average Bill'!H45 -> 0 | F18: =IFERROR(E18/D18-1,0) -> 0 | H18: =IFERROR(H16/(SPU_Annual_Total_Energy)*100,0) -> 0 | I18: =IFERROR(I16/(SPU_Annual_Total_Energy)*100,0) -> 0 | J18: =IFERROR(I18/H18-1,0) -> 0 | L18: =IFERROR(L16/(SPU_Annual_Total_Energy)*100,0) -> 0 | M18: =IFERROR(M16/(SPU_Annual_Total_Energy)*100,0) -> 0 | N18: =IFERROR(M18/L18-1,0) -> 0 | P18: =IFERROR(P16/(SPU_Annual_Total_Energy)*100,0) -> 0 | Q18: =IFERROR(Q16/(SPU_Annual_Total_Energy)*100,0) -> 0 | R18: =IFERROR(Q18/P18-1,0) -> 0
B21: Total Comparison | D21: =Current_Period -> 2020/2021 | E21: =New_Period -> 2021/2022 | F21: % Change
C23: =D8 -> Businessrate 1 | D23: =D16 -> 1425.629167 | E23: =E16 -> 1679.304167 | F23: =IFERROR(E23/D23-1,0) -> 0.1779389802
C24: =H8 -> Landlight 20A | D24: =H16 -> 0 | E24: =I16 -> 0 | F24: =IFERROR(E24/D24-1,0) -> 0
C25: =L8 -> Homepower 4 | D25: =L16 -> 115.8875 | E25: =M16 -> 136.5708333 | F25: =IFERROR(E25/D25-1,0) -> 0.1784776903
C26: =P8 -> Landlight 60A | D26: =P16 -> 0 | E26: =Q16 -> 0 | F26: =IFERROR(E26/D26-1,0) -> 0
C39: Descriptions
C40: Rates Comparison
C41: Average Price

Sheet FAQ (hidden)
B4: Frequently Asked Questions

Sheet Rates Table (hidden)
B4: Rates by Tariff
B6: Tariffs | E6: =Selected_Base_Tariff -> Businessrate 1 | F6: =INDEX(Full_Tariff_List,F$7,) -> Businessrate 1 | G6: Businessrate 2 | H6: Businessrate 3 | I6: Businessrate 4 | J6: Homelight 20A | K6: Homelight 60A | L6: Homepower 1 | M6: Homepower 2 | N6: Homepower 3 | O6: Homepower 4 | P6: Homepower Bulk | Q6: Landrate 1 | R6: Landrate 2 | S6: Landrate 3 | T6: Landrate 4 | U6: Landrate Dx | V6: Landlight 20A | W6: Landlight 60A | X6: Public Lighting All Night | Y6: Public Lighting 24 Hours | AA6: =E6 -> Businessrate 1 | AB6: Businessrate 1 | AC6: Businessrate 2 | AD6: Businessrate 3 | AE6: Businessrate 4 | AF6: Homelight 20A | AG6: Homelight 60A | AH6: Homepower 1 | AI6: Homepower 2 | AJ6: Homepower 3 | AK6: Homepower 4 | AL6: Homepower Bulk | AM6: Landrate 1 | AN6: Landrate 2 | AO6: Landrate 3 | AP6: Landrate 4 | AQ6: =U6 -> Landrate Dx | AR6: Landlight 20A | AS6: Landlight 60A | AT6: Public Lighting All Night | AU6: Public Lighting 24 Hours
F7: 1 | G7: =F7+1 -> 2 | H7: =G7+1 -> 3 | I7: 4 | J7: 5 | K7: 6 | L7: 7 | M7: 8 | N7: 9 | O7: 10 | P7: 11 | Q7: 12 | R7: 13 | S7: 14 | T7: 15 | U7: =T7+1 -> 16 | V7: =U7+1 -> 17 | W7: =V7+1 -> 18 | X7: =W7+1 -> 19 | Y7: =X7+1 -> 20
B8: Network charges | D8: Units | E8: =Current_Period&" Rates" -> 2020/2021 Rates | F8: 2020/2021 Rates | G8: 2020/2021 Rates | H8: 2020/2021 Rates | I8: 2020/2021 Rates | J8: 2020/2021 Rates | K8: 2020/2021 Rates | L8: 2020/2021 Rates | M8: 2020/2021 Rates | N8: 2020/2021 Rates | O8: 2020/2021 Rates | P8: 2020/2021 Rates | Q8: 2020/2021 Rates | R8: 2020/2021 Rates | S8: 2020/2021 Rates | T8: 2020/2021 Rates | U8: 2020/2021 Rates | V8: 2020/2021 Rates | W8: 2020/2021 Rates | X8: 2020/2021 Rates | Y8: 2020/2021 Rates | AA8: =New_Period&" Rates" -> 2021/2022 Rates | AB8: =AA8 -> 2021/2022 Rates | AC8: =AB8 -> 2021/2022 Rates | AD8: 2021/2022 Rates | AE8: 2021/2022 Rates | AF8: 2021/2022 Rates | AG8: 2021/2022 Rates | AH8: 2021/2022 Rates | AI8: 2021/2022 Rates | AJ8: 2021/2022 Rates | AK8: 2021/2022 Rates | AL8: 2021/2022 Rates | AM8: 2021/2022 Rates | AN8: 2021/2022 Rates | AO8: 2021/2022 Rates | AP8: 2021/2022 Rates | AQ8: =AP8 -> 2021/2022 Rates | AR8: =AQ8 -> 2021/2022 Rates | AS8: =AR8 -> 2021/2022 Rates | AT8: =AS8 -> 2021/2022 Rates | AU8: =AT8 -> 2021/2022 Rates
C10: Distribution network demand charge | D10: c/kWh | E10: =INDEX(F10:Y10,0,Selected_Tariff_ID) -> 17.61 | F10: =INDEX(Rates_AllOther_Current[Network demand charge '[c/kWh']],MATCH(F$33,Rates_AllOther_Current[Code],0)) -> 17.61 | G10: =INDEX(Rates_AllOther_Current[Network demand charge '[c/kWh']],MATCH(G$33,Rates_AllOther_Current[Code],0)) -> 17.61 | H10: =INDEX(Rates_AllOther_Current[Network demand charge '[c/kWh']],MATCH(H$33,Rates_AllOther_Current[Code],0)) -> 17.61 | I10: =INDEX(Rates_AllOther_Current[Network demand charge '[c/kWh']],MATCH(I$33,Rates_AllOther_Current[Code],0)) -> 17.61 | J10: =INDEX(Rates_AllOther_Current[Network demand charge '[c/kWh']],MATCH(J$33,Rates_AllOther_Current[Code],0)) -> 0 | K10: =INDEX(Rates_AllOther_Current[Network demand charge '[c/kWh']],MATCH(K$33,Rates_AllOther_Current[Code],0)) -> 0 | L10: =INDEX(Rates_AllOther_Current[Network demand charge '[c/kWh']],MATCH(L$33,Rates_AllOther_Current[Code],0)) -> 0 | M10: =INDEX(Rates_AllOther_Current[Network demand charge '[c/kWh']],MATCH(M$33,Rates_AllOther_Current[Code],0)) -> 0 | N10: =INDEX(Rates_AllOther_Current[Network demand charge '[c/kWh']],MATCH(N$33,Rates_AllOther_Current[Code],0)) -> 0 | O10: =INDEX(Rates_AllOther_Current[Network demand charge '[c/kWh']],MATCH(O$33,Rates_AllOther_Current[Code],0)) -> 0 | P10: =INDEX(Rates_AllOther_Current[Network demand charge '[c/kWh']],MATCH(P$33,Rates_AllOther_Current[Code],0)) -> 0 | Q10: =INDEX(Rates_AllOther_Current[Network demand charge '[c/kWh']],MATCH(Q$33,Rates_AllOther_Current[Code],0)) -> 31.16 | R10: =INDEX(Rates_AllOther_Current[Network demand charge '[c/kWh']],MATCH(R$33,Rates_AllOther_Current[Code],0)) -> 31.16 | S10: =INDEX(Rates_AllOther_Current[Network demand charge '[c/kWh']],MATCH(S$33,Rates_AllOther_Current[Code],0)) -> 31.16 | T10: =INDEX(Rates_AllOther_Current[Network demand charge '[c/kWh']],MATCH(T$33,Rates_AllOther_Current[Code],0)) -> 31.16 | U10: =INDEX(Rates_AllOther_Current[Network demand charge '[c/kWh']],MATCH(U$33,Rates_AllOther_Current[Code],0)) -> 0 | V10: =INDEX(Rates_AllOther_Current[Network demand charge '[c/kWh']],MATCH(V$33,Rates_AllOther_Current[Code],0)) ->  | W10: =INDEX(Rates_AllOther_Current[Network demand charge '[c/kWh']],MATCH(W$33,Rates_AllOther_Current[Code],0)) ->  | X10: =INDEX(Rates_AllOther_Current[Network demand charge '[c/kWh']],MATCH(X$33,Rates_AllOther_Current[Code],0)) -> 0 | Y10: =INDEX(Rates_AllOther_Current[Network demand charge '[c/kWh']],MATCH(Y$33,Rates_AllOther_Current[Code],0)) -> 0 | AA10: =INDEX(AB10:AU10,0,Selected_Tariff_ID) -> 20.74 | AB10: =INDEX(Rates_AllOther_New[Network demand charge '[c/kWh']],MATCH(AB$33,Rates_AllOther_New[Code],0)) -> 20.74 | AC10: =INDEX(Rates_AllOther_New[Network demand charge '[c/kWh']],MATCH(AC$33,Rates_AllOther_New[Code],0)) -> 20.74 | AD10: =INDEX(Rates_AllOther_New[Network demand charge '[c/kWh']],MATCH(AD$33,Rates_AllOther_New[Code],0)) -> 20.74 | AE10: =INDEX(Rates_AllOther_New[Network demand charge '[c/kWh']],MATCH(AE$33,Rates_AllOther_New[Code],0)) -> 20.74 | AF10: =INDEX(Rates_AllOther_New[Network demand charge '[c/kWh']],MATCH(AF$33,Rates_AllOther_New[Code],0)) -> 0 | AG10: =INDEX(Rates_AllOther_New[Network demand charge '[c/kWh']],MATCH(AG$33,Rates_AllOther_New[Code],0)) -> 0 | AH10: =INDEX(Rates_AllOther_New[Network demand charge '[c/kWh']],MATCH(AH$33,Rates_AllOther_New[Code],0)) -> 0 | AI10: =INDEX(Rates_AllOther_New[Network demand charge '[c/kWh']],MATCH(AI$33,Rates_AllOther_New[Code],0)) -> 0 | AJ10: =INDEX(Rates_AllOther_New[Network demand charge '[c/kWh']],MATCH(AJ$33,Rates_AllOther_New[Code],0)) -> 0 | AK10: =INDEX(Rates_AllOther_New[Network demand charge '[c/kWh']],MATCH(AK$33,Rates_AllOther_New[Code],0)) -> 0 | AL10: =INDEX(Rates_AllOther_New[Network demand charge '[c/kWh']],MATCH(AL$33,Rates_AllOther_New[Code],0)) -> 0 | AM10: =INDEX(Rates_AllOther_New[Network demand charge '[c/kWh']],MATCH(AM$33,Rates_AllOther_New[Code],0)) -> 36.71 | AN10: =INDEX(Rates_AllOther_New[Network demand charge '[c/kWh']],MATCH(AN$33,Rates_AllOther_New[Code],0)) -> 36.71 | AO10: =INDEX(Rates_AllOther_New[Network demand charge '[c/kWh']],MATCH(AO$33,Rates_AllOther_New[Code],0)) -> 36.71 | AP10: =INDEX(Rates_AllOther_New[Network demand charge '[c/kWh']],MATCH(AP$33,Rates_AllOther_New[Code],0)) -> 36.71 | AQ10: =INDEX(Rates_AllOther_New[Network demand charge '[c/kWh']],MATCH(AQ$33,Rates_AllOther_New[Code],0)) -> 0 | AR10: =INDEX(Rates_AllOther_New[Network demand charge '[c/kWh']],MATCH(AR$33,Rates_AllOther_New[Code],0)) ->  | AS10: =INDEX(Rates_AllOther_New[Network demand charge '[c/kWh']],MATCH(AS$33,Rates_AllOther_New[Code],0)) ->  | AT10: =INDEX(Rates_AllOther_New[Network demand charge '[c/kWh']],MATCH(AT$33,Rates_AllOther_New[Code],0)) -> 0 | AU10: =INDEX(Rates_AllOther_New[Network demand charge '[c/kWh']],MATCH(AU$33,Rates_AllOther_New[Code],0)) -> 0
C11: Network capacity charge | D11: =IF(Table_1=1,"R/kVA","R/day") -> R/day | E11: =INDEX(F11:Y11,0,Selected_Tariff_ID) -> 25.25 | F11: =INDEX(Rates_AllOther_Current[Network capacity charge '[R/POD/day']],MATCH(F$33,Rates_AllOther_Current[Code],0)) -> 25.25 | G11: =INDEX(Rates_AllOther_Current[Network capacity charge '[R/POD/day']],MATCH(G$33,Rates_AllOther_Current[Code],0)) -> 42.58 | H11: =INDEX(Rates_AllOther_Current[Network capacity charge '[R/POD/day']],MATCH(H$33,Rates_AllOther_Current[Code],0)) -> 73.58 | I11: =INDEX(Rates_AllOther_Current[Network capacity charge '[R/POD/day']],MATCH(I$33,Rates_AllOther_Current[Code],0)) -> 0 | J11: =INDEX(Rates_AllOther_Current[Network capacity charge '[R/POD/day']],MATCH(J$33,Rates_AllOther_Current[Code],0)) -> 0 | K11: =INDEX(Rates_AllOther_Current[Network capacity charge '[R/POD/day']],MATCH(K$33,Rates_AllOther_Current[Code],0)) -> 0 | L11: =INDEX(Rates_AllOther_Current[Network capacity charge '[R/POD/day']],MATCH(L$33,Rates_AllOther_Current[Code],0)) -> 6.22 | M11: =INDEX(Rates_AllOther_Current[Network capacity charge '[R/POD/day']],MATCH(M$33,Rates_AllOther_Current[Code],0)) -> 11.67 | N11: =INDEX(Rates_AllOther_Current[Network capacity charge '[R/POD/day']],MATCH(N$33,Rates_AllOther_Current[Code],0)) -> 24.11 | O11: =INDEX(Rates_AllOther_Current[Network capacity charge '[R/POD/day']],MATCH(O$33,Rates_AllOther_Current[Code],0)) -> 3.81 | P11: =INDEX(Rates_AllOther_Current[Network capacity charge '[R/POD/day']],MATCH(P$33,Rates_AllOther_Current[Code],0)) -> 0 | Q11: =INDEX(Rates_AllOther_Current[Network capacity charge '[R/POD/day']],MATCH(Q$33,Rates_AllOther_Current[Code],0)) -> 33.28 | R11: =INDEX(Rates_AllOther_Current[Network capacity charge '[R/POD/day']],MATCH(R$33,Rates_AllOther_Current[Code],0)) -> 51.15 | S11: =INDEX(Rates_AllOther_Current[Network capacity charge '[R/POD/day']],MATCH(S$33,Rates_AllOther_Current[Code],0)) -> 81.79 | T11: =INDEX(Rates_AllOther_Current[Network capacity charge '[R/POD/day']],MATCH(T$33,Rates_AllOther_Current[Code],0)) -> 26.5 | U11: =INDEX(Rates_AllOther_Current[Network capacity charge '[R/POD/day']],MATCH(U$33,Rates_AllOther_Current[Code],0)) -> 0 | V11: =INDEX(Rates_AllOther_Current[Network capacity charge '[R/POD/day']],MATCH(V$33,Rates_AllOther_Current[Code],0)) ->  | W11: =INDEX(Rates_AllOther_Current[Network capacity charge '[R/POD/day']],MATCH(W$33,Rates_AllOther_Current[Code],0)) ->  | X11: =INDEX(Rates_AllOther_Current[Network capacity charge '[R/POD/day']],MATCH(X$33,Rates_AllOther_Current[Code],0)) -> 0 | Y11: =INDEX(Rates_AllOther_Current[Network capacity charge '[R/POD/day']],MATCH(Y$33,Rates_AllOther_Current[Code],0)) -> 0 | AA11: =INDEX(AB11:AU11,0,Selected_Tariff_ID) -> 29.74 | AB11: =INDEX(Rates_AllOther_New[Network capacity charge '[R/POD/day']],MATCH(AB$33,Rates_AllOther_New[Code],0)) -> 29.74 | AC11: =INDEX(Rates_AllOther_New[Network capacity charge '[R/POD/day']],MATCH(AC$33,Rates_AllOther_New[Code],0)) -> 50.16 | AD11: =INDEX(Rates_AllOther_New[Network capacity charge '[R/POD/day']],MATCH(AD$33,Rates_AllOther_New[Code],0)) -> 86.68 | AE11: =INDEX(Rates_AllOther_New[Network capacity charge '[R/POD/day']],MATCH(AE$33,Rates_AllOther_New[Code],0)) -> 0 | AF11: =INDEX(Rates_AllOther_New[Network capacity charge '[R/POD/day']],MATCH(AF$33,Rates_AllOther_New[Code],0)) -> 0 | AG11: =INDEX(Rates_AllOther_New[Network capacity charge '[R/POD/day']],MATCH(AG$33,Rates_AllOther_New[Code],0)) -> 0 | AH11: =INDEX(Rates_AllOther_New[Network capacity charge '[R/POD/day']],MATCH(AH$33,Rates_AllOther_New[Code],0)) -> 7.33 | AI11: =INDEX(Rates_AllOther_New[Network capacity charge '[R/POD/day']],MATCH(AI$33,Rates_AllOther_New[Code],0)) -> 13.75 | AJ11: =INDEX(Rates_AllOther_New[Network capacity charge '[R/POD/day']],MATCH(AJ$33,Rates_AllOther_New[Code],0)) -> 28.4 | AK11: =INDEX(Rates_AllOther_New[Network capacity charge '[R/POD/day']],MATCH(AK$33,Rates_AllOther_New[Code],0)) -> 4.49 | AL11: =INDEX(Rates_AllOther_New[Network capacity charge '[R/POD/day']],MATCH(AL$33,Rates_AllOther_New[Code],0)) -> 0 | AM11: =INDEX(Rates_AllOther_New[Network capacity charge '[R/POD/day']],MATCH(AM$33,Rates_AllOther_New[Code],0)) -> 39.2 | AN11: =INDEX(Rates_AllOther_New[Network capacity charge '[R/POD/day']],MATCH(AN$33,Rates_AllOther_New[Code],0)) -> 60.25 | AO11: =INDEX(Rates_AllOther_New[Network capacity charge '[R/POD/day']],MATCH(AO$33,Rates_AllOther_New[Code],0)) -> 96.35 | AP11: =INDEX(Rates_AllOther_New[Network capacity charge '[R/POD/day']],MATCH(AP$33,Rates_AllOther_New[Code],0)) -> 31.22 | AQ11: =INDEX(Rates_AllOther_New[Network capacity charge '[R/POD/day']],MATCH(AQ$33,Rates_AllOther_New[Code],0)) -> 0 | AR11: =INDEX(Rates_AllOther_New[Network capacity charge '[R/POD/day']],MATCH(AR$33,Rates_AllOther_New[Code],0)) ->  | AS11: =INDEX(Rates_AllOther_New[Network capacity charge '[R/POD/day']],MATCH(AS$33,Rates_AllOther_New[Code],0)) ->  | AT11: =INDEX(Rates_AllOther_New[Network capacity charge '[R/POD/day']],MATCH(AT$33,Rates_AllOther_New[Code],0)) -> 0 | AU11: =INDEX(Rates_AllOther_New[Network capacity charge '[R/POD/day']],MATCH(AU$33,Rates_AllOther_New[Code],0)) -> 0
B13: Total network charges
B15: Energy charges - High | D15: Units | E15: =E$8 -> 2020/2021 Rates | F15: =F$8 -> 2020/2021 Rates | G15: 2020/2021 Rates | H15: 2020/2021 Rates | I15: 2020/2021 Rates | J15: 2020/2021 Rates | K15: 2020/2021 Rates | L15: 2020/2021 Rates | M15: 2020/2021 Rates | N15: 2020/2021 Rates | O15: 2020/2021 Rates | P15: 2020/2021 Rates | Q15: 2020/2021 Rates | R15: 2020/2021 Rates | S15: 2020/2021 Rates | T15: 2020/2021 Rates | U15: 2020/2021 Rates | V15: 2020/2021 Rates | W15: 2020/2021 Rates | X15: 2020/2021 Rates | Y15: 2020/2021 Rates | AA15: =AA$8 -> 2021/2022 Rates | AB15: =AB$8 -> 2021/2022 Rates | AC15: 2021/2022 Rates | AD15: 2021/2022 Rates | AE15: 2021/2022 Rates | AF15: 2021/2022 Rates | AG15: 2021/2022 Rates | AH15: 2021/2022 Rates | AI15: 2021/2022 Rates | AJ15: 2021/2022 Rates | AK15: 2021/2022 Rates | AL15: 2021/2022 Rates | AM15: 2021/2022 Rates | AN15: 2021/2022 Rates | AO15: 2021/2022 Rates | AP15: 2021/2022 Rates | AQ15: 2021/2022 Rates | AR15: 2021/2022 Rates | AS15: 2021/2022 Rates | AT15: 2021/2022 Rates | AU15: 2021/2022 Rates
C17: Energy | D17: c/kWh | E17: =INDEX(F17:Y17,0,Selected_Tariff_ID) -> 127.04 | F17: =INDEX(Rates_AllOther_Current[Energy charge '[c/kWh']],MATCH(F$33,Rates_AllOther_Current[Code],0)) -> 127.04 | G17: =INDEX(Rates_AllOther_Current[Energy charge '[c/kWh']],MATCH(G$33,Rates_AllOther_Current[Code],0)) -> 127.04 | H17: =INDEX(Rates_AllOther_Current[Energy charge '[c/kWh']],MATCH(H$33,Rates_AllOther_Current[Code],0)) -> 127.04 | I17: =INDEX(Rates_AllOther_Current[Energy charge '[c/kWh']],MATCH(I$33,Rates_AllOther_Current[Code],0)) -> 341.87 | J17: =INDEX(Rates_AllOther_Current[Energy charge '[c/kWh']],MATCH(J$33,Rates_AllOther_Current[Code],0)) -> 0 | K17: =INDEX(Rates_AllOther_Current[Energy charge '[c/kWh']],MATCH(K$33,Rates_AllOther_Current[Code],0)) -> 0 | L17: =INDEX(Rates_AllOther_Current[Energy charge '[c/kWh']],MATCH(L$33,Rates_AllOther_Current[Code],0)) -> 0 | M17: =INDEX(Rates_AllOther_Current[Energy charge '[c/kWh']],MATCH(M$33,Rates_AllOther_Current[Code],0)) -> 0 | N17: =INDEX(Rates_AllOther_Current[Energy charge '[c/kWh']],MATCH(N$33,Rates_AllOther_Current[Code],0)) -> 0 | O17: =INDEX(Rates_AllOther_Current[Energy charge '[c/kWh']],MATCH(O$33,Rates_AllOther_Current[Code],0)) -> 0 | P17: =INDEX(Rates_AllOther_Current[Energy charge '[c/kWh']],MATCH(P$33,Rates_AllOther_Current[Code],0)) -> 0 | Q17: =INDEX(Rates_AllOther_Current[Energy charge '[c/kWh']],MATCH(Q$33,Rates_AllOther_Current[Code],0)) -> 126.41 | R17: =INDEX(Rates_AllOther_Current[Energy charge '[c/kWh']],MATCH(R$33,Rates_AllOther_Current[Code],0)) -> 126.41 | S17: =INDEX(Rates_AllOther_Current[Energy charge '[c/kWh']],MATCH(S$33,Rates_AllOther_Current[Code],0)) -> 126.41 | T17: =INDEX(Rates_AllOther_Current[Energy charge '[c/kWh']],MATCH(T$33,Rates_AllOther_Current[Code],0)) -> 273.03 | U17: =INDEX(Rates_AllOther_Current[Energy charge '[c/kWh']],MATCH(U$33,Rates_AllOther_Current[Code],0)) -> 0 | V17: =INDEX(Rates_AllOther_Current[Energy charge '[c/kWh']],MATCH(V$33,Rates_AllOther_Current[Code],0)) ->  | W17: =INDEX(Rates_AllOther_Current[Energy charge '[c/kWh']],MATCH(W$33,Rates_AllOther_Current[Code],0)) ->  | X17: =INDEX(Rates_AllOther_Current[Energy charge '[c/kWh']],MATCH(X$33,Rates_AllOther_Current[Code],0)) -> 102.55 | Y17: =INDEX(Rates_AllOther_Current[Energy charge '[c/kWh']],MATCH(Y$33,Rates_AllOther_Current[Code],0)) -> 137.31 | AA17: =INDEX(AB17:AU17,0,Selected_Tariff_ID) -> 149.65 | AB17: =INDEX(Rates_AllOther_New[Energy charge '[c/kWh']],MATCH(AB$33,Rates_AllOther_New[Code],0)) -> 149.65 | AC17: =INDEX(Rates_AllOther_New[Energy charge '[c/kWh']],MATCH(AC$33,Rates_AllOther_New[Code],0)) -> 149.65 | AD17: =INDEX(Rates_AllOther_New[Energy charge '[c/kWh']],MATCH(AD$33,Rates_AllOther_New[Code],0)) -> 149.65 | AE17: =INDEX(Rates_AllOther_New[Energy charge '[c/kWh']],MATCH(AE$33,Rates_AllOther_New[Code],0)) -> 402.72 | AF17: =INDEX(Rates_AllOther_New[Energy charge '[c/kWh']],MATCH(AF$33,Rates_AllOther_New[Code],0)) -> 0 | AG17: =INDEX(Rates_AllOther_New[Energy charge '[c/kWh']],MATCH(AG$33,Rates_AllOther_New[Code],0)) -> 0 | AH17: =INDEX(Rates_AllOther_New[Energy charge '[c/kWh']],MATCH(AH$33,Rates_AllOther_New[Code],0)) -> 0 | AI17: =INDEX(Rates_AllOther_New[Energy charge '[c/kWh']],MATCH(AI$33,Rates_AllOther_New[Code],0)) -> 0 | AJ17: =INDEX(Rates_AllOther_New[Energy charge '[c/kWh']],MATCH(AJ$33,Rates_AllOther_New[Code],0)) -> 0 | AK17: =INDEX(Rates_AllOther_New[Energy charge '[c/kWh']],MATCH(AK$33,Rates_AllOther_New[Code],0)) -> 0 | AL17: =INDEX(Rates_AllOther_New[Energy charge '[c/kWh']],MATCH(AL$33,Rates_AllOther_New[Code],0)) -> 0 | AM17: =INDEX(Rates_AllOther_New[Energy charge '[c/kWh']],MATCH(AM$33,Rates_AllOther_New[Code],0)) -> 148.91 | AN17: =INDEX(Rates_AllOther_New[Energy charge '[c/kWh']],MATCH(AN$33,Rates_AllOther_New[Code],0)) -> 148.91 | AO17: =INDEX(Rates_AllOther_New[Energy charge '[c/kWh']],MATCH(AO$33,Rates_AllOther_New[Code],0)) -> 148.91 | AP17: =INDEX(Rates_AllOther_New[Energy charge '[c/kWh']],MATCH(AP$33,Rates_AllOther_New[Code],0)) -> 321.63 | AQ17: =INDEX(Rates_AllOther_New[Energy charge '[c/kWh']],MATCH(AQ$33,Rates_AllOther_New[Code],0)) -> 0 | AR17: =INDEX(Rates_AllOther_New[Energy charge '[c/kWh']],MATCH(AR$33,Rates_AllOther_New[Code],0)) ->  | AS17: =INDEX(Rates_AllOther_New[Energy charge '[c/kWh']],MATCH(AS$33,Rates_AllOther_New[Code],0)) ->  | AT17: =INDEX(Rates_AllOther_New[Energy charge '[c/kWh']],MATCH(AT$33,Rates_AllOther_New[Code],0)) -> 120.8 | AU17: =INDEX(Rates_AllOther_New[Energy charge '[c/kWh']],MATCH(AU$33,Rates_AllOther_New[Code],0)) -> 161.75
C18: Energy - Block 1 | D18: c/kWh | E18: =INDEX(F18:Y18,0,Selected_Tariff_ID) -> 0 | F18: =INDEX(Rates_AllOther_Current[Energy charge Block 1 '[c/kWh']],MATCH(F$33,Rates_AllOther_Current[Code],0)) -> 0 | G18: =INDEX(Rates_AllOther_Current[Energy charge Block 1 '[c/kWh']],MATCH(G$33,Rates_AllOther_Current[Code],0)) -> 0 | H18: =INDEX(Rates_AllOther_Current[Energy charge Block 1 '[c/kWh']],MATCH(H$33,Rates_AllOther_Current[Code],0)) -> 0 | I18: =INDEX(Rates_AllOther_Current[Energy charge Block 1 '[c/kWh']],MATCH(I$33,Rates_AllOther_Current[Code],0)) -> 0 | J18: =INDEX(Rates_AllOther_Current[Energy charge Block 1 '[c/kWh']],MATCH(J$33,Rates_AllOther_Current[Code],0)) -> 0 | K18: =INDEX(Rates_AllOther_Current[Energy charge Block 1 '[c/kWh']],MATCH(K$33,Rates_AllOther_Current[Code],0)) -> 0 | L18: =INDEX(Rates_AllOther_Current[Energy charge Block 1 '[c/kWh']],MATCH(L$33,Rates_AllOther_Current[Code],0)) -> 145.43 | M18: =INDEX(Rates_AllOther_Current[Energy charge Block 1 '[c/kWh']],MATCH(M$33,Rates_AllOther_Current[Code],0)) -> 145.43 | N18: =INDEX(Rates_AllOther_Current[Energy charge Block 1 '[c/kWh']],MATCH(N$33,Rates_AllOther_Current[Code],0)) -> 145.43 | O18: =INDEX(Rates_AllOther_Current[Energy charge Block 1 '[c/kWh']],MATCH(O$33,Rates_AllOther_Current[Code],0)) -> 145.43 | P18: =INDEX(Rates_AllOther_Current[Energy charge Block 1 '[c/kWh']],MATCH(P$33,Rates_AllOther_Current[Code],0)) -> 0 | Q18: =INDEX(Rates_AllOther_Current[Energy charge Block 1 '[c/kWh']],MATCH(Q$33,Rates_AllOther_Current[Code],0)) -> 0 | R18: =INDEX(Rates_AllOther_Current[Energy charge Block 1 '[c/kWh']],MATCH(R$33,Rates_AllOther_Current[Code],0)) -> 0 | S18: =INDEX(Rates_AllOther_Current[Energy charge Block 1 '[c/kWh']],MATCH(S$33,Rates_AllOther_Current[Code],0)) -> 0 | T18: =INDEX(Rates_AllOther_Current[Energy charge Block 1 '[c/kWh']],MATCH(T$33,Rates_AllOther_Current[Code],0)) -> 0 | U18: =INDEX(Rates_AllOther_Current[Energy charge Block 1 '[c/kWh']],MATCH(U$33,Rates_AllOther_Current[Code],0)) -> 0 | V18: =INDEX(Rates_AllOther_Current[Energy charge Block 1 '[c/kWh']],MATCH(V$33,Rates_AllOther_Current[Code],0)) ->  | W18: =INDEX(Rates_AllOther_Current[Energy charge Block 1 '[c/kWh']],MATCH(W$33,Rates_AllOther_Current[Code],0)) ->  | X18: =INDEX(Rates_AllOther_Current[Energy charge Block 1 '[c/kWh']],MATCH(X$33,Rates_AllOther_Current[Code],0)) -> 0 | Y18: =INDEX(Rates_AllOther_Current[Energy charge Block 1 '[c/kWh']],MATCH(Y$33,Rates_AllOther_Current[Code],0)) -> 0 | AA18: =INDEX(AB18:AU18,0,Selected_Tariff_ID) -> 0 | AB18: =INDEX(Rates_AllOther_New[Energy charge Block 1 '[c/kWh']],MATCH(AB$33,Rates_AllOther_New[Code],0)) -> 0 | AC18: =INDEX(Rates_AllOther_New[Energy charge Block 1 '[c/kWh']],MATCH(AC$33,Rates_AllOther_New[Code],0)) -> 0 | AD18: =INDEX(Rates_AllOther_New[Energy charge Block 1 '[c/kWh']],MATCH(AD$33,Rates_AllOther_New[Code],0)) -> 0 | AE18: =INDEX(Rates_AllOther_New[Energy charge Block 1 '[c/kWh']],MATCH(AE$33,Rates_AllOther_New[Code],0)) -> 0 | AF18: =INDEX(Rates_AllOther_New[Energy charge Block 1 '[c/kWh']],MATCH(AF$33,Rates_AllOther_New[Code],0)) -> 0 | AG18: =INDEX(Rates_AllOther_New[Energy charge Block 1 '[c/kWh']],MATCH(AG$33,Rates_AllOther_New[Code],0)) -> 0 | AH18: =INDEX(Rates_AllOther_New[Energy charge Block 1 '[c/kWh']],MATCH(AH$33,Rates_AllOther_New[Code],0)) -> 171.32 | AI18: =INDEX(Rates_AllOther_New[Energy charge Block 1 '[c/kWh']],MATCH(AI$33,Rates_AllOther_New[Code],0)) -> 171.32 | AJ18: =INDEX(Rates_AllOther_New[Energy charge Block 1 '[c/kWh']],MATCH(AJ$33,Rates_AllOther_New[Code],0)) -> 171.32 | AK18: =INDEX(Rates_AllOther_New[Energy charge Block 1 '[c/kWh']],MATCH(AK$33,Rates_AllOther_New[Code],0)) -> 171.32 | AL18: =INDEX(Rates_AllOther_New[Energy charge Block 1 '[c/kWh']],MATCH(AL$33,Rates_AllOther_New[Code],0)) -> 0 | AM18: =INDEX(Rates_AllOther_New[Energy charge Block 1 '[c/kWh']],MATCH(AM$33,Rates_AllOther_New[Code],0)) -> 0 | AN18: =INDEX(Rates_AllOther_New[Energy charge Block 1 '[c/kWh']],MATCH(AN$33,Rates_AllOther_New[Code],0)) -> 0 | AO18: =INDEX(Rates_AllOther_New[Energy charge Block 1 '[c/kWh']],MATCH(AO$33,Rates_AllOther_New[Code],0)) -> 0 | AP18: =INDEX(Rates_AllOther_New[Energy charge Block 1 '[c/kWh']],MATCH(AP$33,Rates_AllOther_New[Code],0)) -> 0 | AQ18: =INDEX(Rates_AllOther_New[Energy charge Block 1 '[c/kWh']],MATCH(AQ$33,Rates_AllOther_New[Code],0)) -> 0 | AR18: =INDEX(Rates_AllOther_New[Energy charge Block 1 '[c/kWh']],MATCH(AR$33,Rates_AllOther_New[Code],0)) ->  | AS18: =INDEX(Rates_AllOther_New[Energy charge Block 1 '[c/kWh']],MATCH(AS$33,Rates_AllOther_New[Code],0)) ->  | AT18: =INDEX(Rates_AllOther_New[Energy charge Block 1 '[c/kWh']],MATCH(AT$33,Rates_AllOther_New[Code],0)) -> 0 | AU18: =INDEX(Rates_AllOther_New[Energy charge Block 1 '[c/kWh']],MATCH(AU$33,Rates_AllOther_New[Code],0)) -> 0
C19: Energy - Block 2 | D19: c/kWh | E19: =INDEX(F19:Y19,0,Selected_Tariff_ID) -> 0 | F19: =INDEX(Rates_AllOther_Current[Energy charge Block 2 '[c/kWh']],MATCH(F$33,Rates_AllOther_Current[Code],0)) -> 0 | G19: =INDEX(Rates_AllOther_Current[Energy charge Block 2 '[c/kWh']],MATCH(G$33,Rates_AllOther_Current[Code],0)) -> 0 | H19: =INDEX(Rates_AllOther_Current[Energy charge Block 2 '[c/kWh']],MATCH(H$33,Rates_AllOther_Current[Code],0)) -> 0 | I19: =INDEX(Rates_AllOther_Current[Energy charge Block 2 '[c/kWh']],MATCH(I$33,Rates_AllOther_Current[Code],0)) -> 0 | J19: =INDEX(Rates_AllOther_Current[Energy charge Block 2 '[c/kWh']],MATCH(J$33,Rates_AllOther_Current[Code],0)) -> 0 | K19: =INDEX(Rates_AllOther_Current[Energy charge Block 2 '[c/kWh']],MATCH(K$33,Rates_AllOther_Current[Code],0)) -> 0 | L19: =INDEX(Rates_AllOther_Current[Energy charge Block 2 '[c/kWh']],MATCH(L$33,Rates_AllOther_Current[Code],0)) -> 229.63 | M19: =INDEX(Rates_AllOther_Current[Energy charge Block 2 '[c/kWh']],MATCH(M$33,Rates_AllOther_Current[Code],0)) -> 223.87 | N19: =INDEX(Rates_AllOther_Current[Energy charge Block 2 '[c/kWh']],MATCH(N$33,Rates_AllOther_Current[Code],0)) -> 223.87 | O19: =INDEX(Rates_AllOther_Current[Energy charge Block 2 '[c/kWh']],MATCH(O$33,Rates_AllOther_Current[Code],0)) -> 233.85 | P19: =INDEX(Rates_AllOther_Current[Energy charge Block 2 '[c/kWh']],MATCH(P$33,Rates_AllOther_Current[Code],0)) -> 0 | Q19: =INDEX(Rates_AllOther_Current[Energy charge Block 2 '[c/kWh']],MATCH(Q$33,Rates_AllOther_Current[Code],0)) -> 0 | R19: =INDEX(Rates_AllOther_Current[Energy charge Block 2 '[c/kWh']],MATCH(R$33,Rates_AllOther_Current[Code],0)) -> 0 | S19: =INDEX(Rates_AllOther_Current[Energy charge Block 2 '[c/kWh']],MATCH(S$33,Rates_AllOther_Current[Code],0)) -> 0 | T19: =INDEX(Rates_AllOther_Current[Energy charge Block 2 '[c/kWh']],MATCH(T$33,Rates_AllOther_Current[Code],0)) -> 0 | U19: =INDEX(Rates_AllOther_Current[Energy charge Block 2 '[c/kWh']],MATCH(U$33,Rates_AllOther_Current[Code],0)) -> 0 | V19: =INDEX(Rates_AllOther_Current[Energy charge Block 2 '[c/kWh']],MATCH(V$33,Rates_AllOther_Current[Code],0)) ->  | W19: =INDEX(Rates_AllOther_Current[Energy charge Block 2 '[c/kWh']],MATCH(W$33,Rates_AllOther_Current[Code],0)) ->  | X19: =INDEX(Rates_AllOther_Current[Energy charge Block 2 '[c/kWh']],MATCH(X$33,Rates_AllOther_Current[Code],0)) -> 0 | Y19: =INDEX(Rates_AllOther_Current[Energy charge Block 2 '[c/kWh']],MATCH(Y$33,Rates_AllOther_Current[Code],0)) -> 0 | AA19: =INDEX(AB19:AU19,0,Selected_Tariff_ID) -> 0 | AB19: =INDEX(Rates_AllOther_New[Energy charge Block 2 '[c/kWh']],MATCH(AB$33,Rates_AllOther_New[Code],0)) -> 0 | AC19: =INDEX(Rates_AllOther_New[Energy charge Block 2 '[c/kWh']],MATCH(AC$33,Rates_AllOther_New[Code],0)) -> 0 | AD19: =INDEX(Rates_AllOther_New[Energy charge Block 2 '[c/kWh']],MATCH(AD$33,Rates_AllOther_New[Code],0)) -> 0 | AE19: =INDEX(Rates_AllOther_New[Energy charge Block 2 '[c/kWh']],MATCH(AE$33,Rates_AllOther_New[Code],0)) -> 0 | AF19: =INDEX(Rates_AllOther_New[Energy charge Block 2 '[c/kWh']],MATCH(AF$33,Rates_AllOther_New[Code],0)) -> 0 | AG19: =INDEX(Rates_AllOther_New[Energy charge Block 2 '[c/kWh']],MATCH(AG$33,Rates_AllOther_New[Code],0)) -> 0 | AH19: =INDEX(Rates_AllOther_New[Energy charge Block 2 '[c/kWh']],MATCH(AH$33,Rates_AllOther_New[Code],0)) -> 270.5 | AI19: =INDEX(Rates_AllOther_New[Energy charge Block 2 '[c/kWh']],MATCH(AI$33,Rates_AllOther_New[Code],0)) -> 263.72 | AJ19: =INDEX(Rates_AllOther_New[Energy charge Block 2 '[c/kWh']],MATCH(AJ$33,Rates_AllOther_New[Code],0)) -> 263.72 | AK19: =INDEX(Rates_AllOther_New[Energy charge Block 2 '[c/kWh']],MATCH(AK$33,Rates_AllOther_New[Code],0)) -> 275.48 | AL19: =INDEX(Rates_AllOther_New[Energy charge Block 2 '[c/kWh']],MATCH(AL$33,Rates_AllOther_New[Code],0)) -> 0 | AM19: =INDEX(Rates_AllOther_New[Energy charge Block 2 '[c/kWh']],MATCH(AM$33,Rates_AllOther_New[Code],0)) -> 0 | AN19: =INDEX(Rates_AllOther_New[Energy charge Block 2 '[c/kWh']],MATCH(AN$33,Rates_AllOther_New[Code],0)) -> 0 | AO19: =INDEX(Rates_AllOther_New[Energy charge Block 2 '[c/kWh']],MATCH(AO$33,Rates_AllOther_New[Code],0)) -> 0 | AP19: =INDEX(Rates_AllOther_New[Energy charge Block 2 '[c/kWh']],MATCH(AP$33,Rates_AllOther_New[Code],0)) -> 0 | AQ19: =INDEX(Rates_AllOther_New[Energy charge Block 2 '[c/kWh']],MATCH(AQ$33,Rates_AllOther_New[Code],0)) -> 0 | AR19: =INDEX(Rates_AllOther_New[Energy charge Block 2 '[c/kWh']],MATCH(AR$33,Rates_AllOther_New[Code],0)) ->  | AS19: =INDEX(Rates_AllOther_New[Energy charge Block 2 '[c/kWh']],MATCH(AS$33,Rates_AllOther_New[Code],0)) ->  | AT19: =INDEX(Rates_AllOther_New[Energy charge Block 2 '[c/kWh']],MATCH(AT$33,Rates_AllOther_New[Code],0)) -> 0 | AU19: =INDEX(Rates_AllOther_New[Energy charge Block 2 '[c/kWh']],MATCH(AU$33,Rates_AllOther_New[Code],0)) -> 0
B21: Total energy charges
B23: Other charges | D23: Units | E23: =E$8 -> 2020/2021 Rates | F23: =F$8 -> 2020/2021 Rates | G23: 2020/2021 Rates | H23: 2020/2021 Rates | I23: 2020/2021 Rates | J23: 2020/2021 Rates | K23: 2020/2021 Rates | L23: 2020/2021 Rates | M23: 2020/2021 Rates | N23: 2020/2021 Rates | O23: 2020/2021 Rates | P23: 2020/2021 Rates | Q23: 2020/2021 Rates | R23: 2020/2021 Rates | S23: 2020/2021 Rates | T23: 2020/2021 Rates | U23: 2020/2021 Rates | V23: 2020/2021 Rates | W23: 2020/2021 Rates | X23: 2020/2021 Rates | Y23: 2020/2021 Rates | AA23: =AA$8 -> 2021/2022 Rates | AB23: =AB$8 -> 2021/2022 Rates | AC23: 2021/2022 Rates | AD23: 2021/2022 Rates | AE23: 2021/2022 Rates | AF23: 2021/2022 Rates | AG23: 2021/2022 Rates | AH23: 2021/2022 Rates | AI23: 2021/2022 Rates | AJ23: 2021/2022 Rates | AK23: 2021/2022 Rates | AL23: 2021/2022 Rates | AM23: 2021/2022 Rates | AN23: 2021/2022 Rates | AO23: 2021/2022 Rates | AP23: 2021/2022 Rates | AQ23: 2021/2022 Rates | AR23: 2021/2022 Rates | AS23: 2021/2022 Rates | AT23: 2021/2022 Rates | AU23: 2021/2022 Rates
C25: Ancillary service charge | D25: c/kWh | E25: =INDEX(F25:Y25,0,Selected_Tariff_ID) -> 0.48 | F25: =INDEX(Rates_AllOther_Current[Ancillary service charge '[c/kWh']],MATCH(F$33,Rates_AllOther_Current[Code],0)) -> 0.48 | G25: =INDEX(Rates_AllOther_Current[Ancillary service charge '[c/kWh']],MATCH(G$33,Rates_AllOther_Current[Code],0)) -> 0.48 | H25: =INDEX(Rates_AllOther_Current[Ancillary service charge '[c/kWh']],MATCH(H$33,Rates_AllOther_Current[Code],0)) -> 0.48 | I25: =INDEX(Rates_AllOther_Current[Ancillary service charge '[c/kWh']],MATCH(I$33,Rates_AllOther_Current[Code],0)) -> 0.48 | J25: =INDEX(Rates_AllOther_Current[Ancillary service charge '[c/kWh']],MATCH(J$33,Rates_AllOther_Current[Code],0)) -> 0 | K25: =INDEX(Rates_AllOther_Current[Ancillary service charge '[c/kWh']],MATCH(K$33,Rates_AllOther_Current[Code],0)) -> 0 | L25: =INDEX(Rates_AllOther_Current[Ancillary service charge '[c/kWh']],MATCH(L$33,Rates_AllOther_Current[Code],0)) -> 0 | M25: =INDEX(Rates_AllOther_Current[Ancillary service charge '[c/kWh']],MATCH(M$33,Rates_AllOther_Current[Code],0)) -> 0 | N25: =INDEX(Rates_AllOther_Current[Ancillary service charge '[c/kWh']],MATCH(N$33,Rates_AllOther_Current[Code],0)) -> 0 | O25: =INDEX(Rates_AllOther_Current[Ancillary service charge '[c/kWh']],MATCH(O$33,Rates_AllOther_Current[Code],0)) -> 0 | P25: =INDEX(Rates_AllOther_Current[Ancillary service charge '[c/kWh']],MATCH(P$33,Rates_AllOther_Current[Code],0)) -> 0 | Q25: =INDEX(Rates_AllOther_Current[Ancillary service charge '[c/kWh']],MATCH(Q$33,Rates_AllOther_Current[Code],0)) -> 0.48 | R25: =INDEX(Rates_AllOther_Current[Ancillary service charge '[c/kWh']],MATCH(R$33,Rates_AllOther_Current[Code],0)) -> 0.48 | S25: =INDEX(Rates_AllOther_Current[Ancillary service charge '[c/kWh']],MATCH(S$33,Rates_AllOther_Current[Code],0)) -> 0.48 | T25: =INDEX(Rates_AllOther_Current[Ancillary service charge '[c/kWh']],MATCH(T$33,Rates_AllOther_Current[Code],0)) -> 0.48 | U25: =INDEX(Rates_AllOther_Current[Ancillary service charge '[c/kWh']],MATCH(U$33,Rates_AllOther_Current[Code],0)) -> 0 | V25: =INDEX(Rates_AllOther_Current[Ancillary service charge '[c/kWh']],MATCH(V$33,Rates_AllOther_Current[Code],0)) ->  | W25: =INDEX(Rates_AllOther_Current[Ancillary service charge '[c/kWh']],MATCH(W$33,Rates_AllOther_Current[Code],0)) ->  | X25: =INDEX(Rates_AllOther_Current[Ancillary service charge '[c/kWh']],MATCH(X$33,Rates_AllOther_Current[Code],0)) -> 0 | Y25: =INDEX(Rates_AllOther_Current[Ancillary service charge '[c/kWh']],MATCH(Y$33,Rates_AllOther_Current[Code],0)) -> 0 | AA25: =INDEX(AB25:AU25,0,Selected_Tariff_ID) -> 0.57 | AB25: =INDEX(Rates_AllOther_New[Ancillary service charge '[c/kWh']],MATCH(AB$33,Rates_AllOther_New[Code],0)) -> 0.57 | AC25: =INDEX(Rates_AllOther_New[Ancillary service charge '[c/kWh']],MATCH(AC$33,Rates_AllOther_New[Code],0)) -> 0.57 | AD25: =INDEX(Rates_AllOther_New[Ancillary service charge '[c/kWh']],MATCH(AD$33,Rates_AllOther_New[Code],0)) -> 0.57 | AE25: =INDEX(Rates_AllOther_New[Ancillary service charge '[c/kWh']],MATCH(AE$33,Rates_AllOther_New[Code],0)) -> 0.57 | AF25: =INDEX(Rates_AllOther_New[Ancillary service charge '[c/kWh']],MATCH(AF$33,Rates_AllOther_New[Code],0)) -> 0 | AG25: =INDEX(Rates_AllOther_New[Ancillary service charge '[c/kWh']],MATCH(AG$33,Rates_AllOther_New[Code],0)) -> 0 | AH25: =INDEX(Rates_AllOther_New[Ancillary service charge '[c/kWh']],MATCH(AH$33,Rates_AllOther_New[Code],0)) -> 0 | AI25: =INDEX(Rates_AllOther_New[Ancillary service charge '[c/kWh']],MATCH(AI$33,Rates_AllOther_New[Code],0)) -> 0 | AJ25: =INDEX(Rates_AllOther_New[Ancillary service charge '[c/kWh']],MATCH(AJ$33,Rates_AllOther_New[Code],0)) -> 0 | AK25: =INDEX(Rates_AllOther_New[Ancillary service charge '[c/kWh']],MATCH(AK$33,Rates_AllOther_New[Code],0)) -> 0 | AL25: =INDEX(Rates_AllOther_New[Ancillary service charge '[c/kWh']],MATCH(AL$33,Rates_AllOther_New[Code],0)) -> 0 | AM25: =INDEX(Rates_AllOther_New[Ancillary service charge '[c/kWh']],MATCH(AM$33,Rates_AllOther_New[Code],0)) -> 0.57 | AN25: =INDEX(Rates_AllOther_New[Ancillary service charge '[c/kWh']],MATCH(AN$33,Rates_AllOther_New[Code],0)) -> 0.57 | AO25: =INDEX(Rates_AllOther_New[Ancillary service charge '[c/kWh']],MATCH(AO$33,Rates_AllOther_New[Code],0)) -> 0.57 | AP25: =INDEX(Rates_AllOther_New[Ancillary service charge '[c/kWh']],MATCH(AP$33,Rates_AllOther_New[Code],0)) -> 0.57 | AQ25: =INDEX(Rates_AllOther_New[Ancillary service charge '[c/kWh']],MATCH(AQ$33,Rates_AllOther_New[Code],0)) -> 0 | AR25: =INDEX(Rates_AllOther_New[Ancillary service charge '[c/kWh']],MATCH(AR$33,Rates_AllOther_New[Code],0)) ->  | AS25: =INDEX(Rates_AllOther_New[Ancillary service charge '[c/kWh']],MATCH(AS$33,Rates_AllOther_New[Code],0)) ->  | AT25: =INDEX(Rates_AllOther_New[Ancillary service charge '[c/kWh']],MATCH(AT$33,Rates_AllOther_New[Code],0)) -> 0 | AU25: =INDEX(Rates_AllOther_New[Ancillary service charge '[c/kWh']],MATCH(AU$33,Rates_AllOther_New[Code],0)) -> 0
C26: Service charge | D26: =IF(Table_1=1,"R/day","R/day") -> R/day | E26: =INDEX(F26:Y26,0,Selected_Tariff_ID) -> 21.62 | F26: =INDEX(Rates_AllOther_Current[Service and administration charge '[R/POD/day']],MATCH(F$33,Rates_AllOther_Current[Code],0)) -> 21.62 | G26: =INDEX(Rates_AllOther_Current[Service and administration charge '[R/POD/day']],MATCH(G$33,Rates_AllOther_Current[Code],0)) -> 21.62 | H26: =INDEX(Rates_AllOther_Current[Service and administration charge '[R/POD/day']],MATCH(H$33,Rates_AllOther_Current[Code],0)) -> 21.62 | I26: =INDEX(Rates_AllOther_Current[Service and administration charge '[R/POD/day']],MATCH(I$33,Rates_AllOther_Current[Code],0)) -> 0 | J26: =INDEX(Rates_AllOther_Current[Service and administration charge '[R/POD/day']],MATCH(J$33,Rates_AllOther_Current[Code],0)) -> 0 | K26: =INDEX(Rates_AllOther_Current[Service and administration charge '[R/POD/day']],MATCH(K$33,Rates_AllOther_Current[Code],0)) -> 0 | L26: =INDEX(Rates_AllOther_Current[Service and administration charge '[R/POD/day']],MATCH(L$33,Rates_AllOther_Current[Code],0)) -> 0 | M26: =INDEX(Rates_AllOther_Current[Service and administration charge '[R/POD/day']],MATCH(M$33,Rates_AllOther_Current[Code],0)) -> 0 | N26: =INDEX(Rates_AllOther_Current[Service and administration charge '[R/POD/day']],MATCH(N$33,Rates_AllOther_Current[Code],0)) -> 0 | O26: =INDEX(Rates_AllOther_Current[Service and administration charge '[R/POD/day']],MATCH(O$33,Rates_AllOther_Current[Code],0)) -> 0 | P26: =INDEX(Rates_AllOther_Current[Service and administration charge '[R/POD/day']],MATCH(P$33,Rates_AllOther_Current[Code],0)) -> 0 | Q26: =INDEX(Rates_AllOther_Current[Service and administration charge '[R/POD/day']],MATCH(Q$33,Rates_AllOther_Current[Code],0)) -> 27.24 | R26: =INDEX(Rates_AllOther_Current[Service and administration charge '[R/POD/day']],MATCH(R$33,Rates_AllOther_Current[Code],0)) -> 27.24 | S26: =INDEX(Rates_AllOther_Current[Service and administration charge '[R/POD/day']],MATCH(S$33,Rates_AllOther_Current[Code],0)) -> 27.24 | T26: =INDEX(Rates_AllOther_Current[Service and administration charge '[R/POD/day']],MATCH(T$33,Rates_AllOther_Current[Code],0)) -> 0 | U26: =INDEX(Rates_AllOther_Current[Service and administration charge '[R/POD/day']],MATCH(U$33,Rates_AllOther_Current[Code],0)) -> 58.9362 | V26: =INDEX(Rates_AllOther_Current[Service and administration charge '[R/POD/day']],MATCH(V$33,Rates_AllOther_Current[Code],0)) ->  | W26: =INDEX(Rates_AllOther_Current[Service and administration charge '[R/POD/day']],MATCH(W$33,Rates_AllOther_Current[Code],0)) ->  | X26: =INDEX(Rates_AllOther_Current[Service and administration charge '[R/POD/day']],MATCH(X$33,Rates_AllOther_Current[Code],0)) -> 0 | Y26: =INDEX(Rates_AllOther_Current[Service and administration charge '[R/POD/day']],MATCH(Y$33,Rates_AllOther_Current[Code],0)) -> 0 | AA26: =INDEX(AB26:AU26,0,Selected_Tariff_ID) -> 25.47 | AB26: =INDEX(Rates_AllOther_New[Service and administration charge '[R/POD/day']],MATCH(AB$33,Rates_AllOther_New[Code],0)) -> 25.47 | AC26: =INDEX(Rates_AllOther_New[Service and administration charge '[R/POD/day']],MATCH(AC$33,Rates_AllOther_New[Code],0)) -> 25.47 | AD26: =INDEX(Rates_AllOther_New[Service and administration charge '[R/POD/day']],MATCH(AD$33,Rates_AllOther_New[Code],0)) -> 25.47 | AE26: =INDEX(Rates_AllOther_New[Service and administration charge '[R/POD/day']],MATCH(AE$33,Rates_AllOther_New[Code],0)) -> 0 | AF26: =INDEX(Rates_AllOther_New[Service and administration charge '[R/POD/day']],MATCH(AF$33,Rates_AllOther_New[Code],0)) -> 0 | AG26: =INDEX(Rates_AllOther_New[Service and administration charge '[R/POD/day']],MATCH(AG$33,Rates_AllOther_New[Code],0)) -> 0 | AH26: =INDEX(Rates_AllOther_New[Service and administration charge '[R/POD/day']],MATCH(AH$33,Rates_AllOther_New[Code],0)) -> 0 | AI26: =INDEX(Rates_AllOther_New[Service and administration charge '[R/POD/day']],MATCH(AI$33,Rates_AllOther_New[Code],0)) -> 0 | AJ26: =INDEX(Rates_AllOther_New[Service and administration charge '[R/POD/day']],MATCH(AJ$33,Rates_AllOther_New[Code],0)) -> 0 | AK26: =INDEX(Rates_AllOther_New[Service and administration charge '[R/POD/day']],MATCH(AK$33,Rates_AllOther_New[Code],0)) -> 0 | AL26: =INDEX(Rates_AllOther_New[Service and administration charge '[R/POD/day']],MATCH(AL$33,Rates_AllOther_New[Code],0)) -> 0 | AM26: =INDEX(Rates_AllOther_New[Service and administration charge '[R/POD/day']],MATCH(AM$33,Rates_AllOther_New[Code],0)) -> 32.09 | AN26: =INDEX(Rates_AllOther_New[Service and administration charge '[R/POD/day']],MATCH(AN$33,Rates_AllOther_New[Code],0)) -> 32.09 | AO26: =INDEX(Rates_AllOther_New[Service and administration charge '[R/POD/day']],MATCH(AO$33,Rates_AllOther_New[Code],0)) -> 32.09 | AP26: =INDEX(Rates_AllOther_New[Service and administration charge '[R/POD/day']],MATCH(AP$33,Rates_AllOther_New[Code],0)) -> 0 | AQ26: =INDEX(Rates_AllOther_New[Service and administration charge '[R/POD/day']],MATCH(AQ$33,Rates_AllOther_New[Code],0)) -> 69.4313 | AR26: =INDEX(Rates_AllOther_New[Service and administration charge '[R/POD/day']],MATCH(AR$33,Rates_AllOther_New[Code],0)) ->  | AS26: =INDEX(Rates_AllOther_New[Service and administration charge '[R/POD/day']],MATCH(AS$33,Rates_AllOther_New[Code],0)) ->  | AT26: =INDEX(Rates_AllOther_New[Service and administration charge '[R/POD/day']],MATCH(AT$33,Rates_AllOther_New[Code],0)) -> 0 | AU26: =INDEX(Rates_AllOther_New[Service and administration charge '[R/POD/day']],MATCH(AU$33,Rates_AllOther_New[Code],0)) -> 0
B28: Total other charges
B30: Lookup values
C31: Rates LPU Energy Table | E31: =INDEX(F31:Y31,0,Selected_Tariff_ID) -> Businessrate 1_Local Authority_Not Applicable_< 500V | F31: =F6&"_"&$D44&"_"&$D43&"_"&$D42 -> Businessrate 1_Local Authority_Not Applicable_< 500V | G31: Businessrate 2_Local Authority_Not Applicable_< 500V | H31: Businessrate 3_Local Authority_Not Applicable_< 500V | I31: Businessrate 4_Local Authority_Not Applicable_< 500V | J31: Homelight 20A_Local Authority_Not Applicable_< 500V | K31: Homelight 60A_Local Authority_Not Applicable_< 500V | L31: Homepower 1_Local Authority_Not Applicable_< 500V | M31: Homepower 2_Local Authority_Not Applicable_< 500V | N31: Homepower 3_Local Authority_Not Applicable_< 500V | O31: Homepower 4_Local Authority_Not Applicable_< 500V | P31: Homepower Bulk_Local Authority_Not Applicable_< 500V | Q31: Landrate 1_Local Authority_Not Applicable_< 500V | R31: Landrate 2_Local Authority_Not Applicable_< 500V | S31: Landrate 3_Local Authority_Not Applicable_< 500V | T31: Landrate 4_Local Authority_Not Applicable_< 500V | U31: =U6&"_"&$D44&"_"&$D43&"_"&$D42 -> Landrate Dx_Local Authority_Not Applicable_< 500V | V31: Landlight 20A_Local Authority_Not Applicable_< 500V | W31: Landlight 60A_Local Authority_Not Applicable_< 500V | X31: Public Lighting All Night_Local Authority_Not Applicable_< 500V | Y31: Public Lighting 24 Hours_Local Authority_Not Applicable_< 500V | AB31: =F31 -> Businessrate 1_Local Authority_Not Applicable_< 500V | AC31: Businessrate 2_Local Authority_Not Applicable_< 500V | AD31: Businessrate 3_Local Authority_Not Applicable_< 500V | AE31: Businessrate 4_Local Authority_Not Applicable_< 500V | AF31: Homelight 20A_Local Authority_Not Applicable_< 500V | AG31: Homelight 60A_Local Authority_Not Applicable_< 500V | AH31: Homepower 1_Local Authority_Not Applicable_< 500V | AI31: Homepower 2_Local Authority_Not Applicable_< 500V | AJ31: Homepower 3_Local Authority_Not Applicable_< 500V | AK31: Homepower 4_Local Authority_Not Applicable_< 500V | AL31: Homepower Bulk_Local Authority_Not Applicable_< 500V | AM31: Landrate 1_Local Authority_Not Applicable_< 500V | AN31: Landrate 2_Local Authority_Not Applicable_< 500V | AO31: Landrate 3_Local Authority_Not Applicable_< 500V | AP31: Landrate 4_Local Authority_Not Applicable_< 500V | AQ31: =U31 -> Landrate Dx_Local Authority_Not Applicable_< 500V | AR31: Landlight 20A_Local Authority_Not Applicable_< 500V | AS31: Landlight 60A_Local Authority_Not Applicable_< 500V | AT31: Public Lighting All Night_Local Authority_Not Applicable_< 500V | AU31: Public Lighting 24 Hours_Local Authority_Not Applicable_< 500V
C32: Rates LPU by Voltage | E32: =INDEX(F32:Y32,0,Selected_Tariff_ID) -> Businessrate 1_Local Authority_< 500V | F32: =F6&"_"&$D44&"_"&$D42 -> Businessrate 1_Local Authority_< 500V | G32: Businessrate 2_Local Authority_< 500V | H32: Businessrate 3_Local Authority_< 500V | I32: Businessrate 4_Local Authority_< 500V | J32: Homelight 20A_Local Authority_< 500V | K32: Homelight 60A_Local Authority_< 500V | L32: Homepower 1_Local Authority_< 500V | M32: Homepower 2_Local Authority_< 500V | N32: Homepower 3_Local Authority_< 500V | O32: Homepower 4_Local Authority_< 500V | P32: Homepower Bulk_Local Authority_< 500V | Q32: Landrate 1_Local Authority_< 500V | R32: Landrate 2_Local Authority_< 500V | S32: Landrate 3_Local Authority_< 500V | T32: Landrate 4_Local Authority_< 500V | U32: =U6&"_"&$D44&"_"&$D42 -> Landrate Dx_Local Authority_< 500V | V32: Landlight 20A_Local Authority_< 500V | W32: Landlight 60A_Local Authority_< 500V | X32: Public Lighting All Night_Local Authority_< 500V | Y32: Public Lighting 24 Hours_Local Authority_< 500V | AB32: Businessrate 1_Local Authority_< 500V | AC32: Businessrate 2_Local Authority_< 500V | AD32: Businessrate 3_Local Authority_< 500V | AE32: Businessrate 4_Local Authority_< 500V | AF32: Homelight 20A_Local Authority_< 500V | AG32: Homelight 60A_Local Authority_< 500V | AH32: Homepower 1_Local Authority_< 500V | AI32: Homepower 2_Local Authority_< 500V | AJ32: Homepower 3_Local Authority_< 500V | AK32: Homepower 4_Local Authority_< 500V | AL32: Homepower Bulk_Local Authority_< 500V | AM32: Landrate 1_Local Authority_< 500V | AN32: Landrate 2_Local Authority_< 500V | AO32: Landrate 3_Local Authority_< 500V | AP32: Landrate 4_Local Authority_< 500V | AQ32: Landrate Dx_Local Authority_< 500V | AR32: Landlight 20A_Local Authority_< 500V | AS32: Landlight 60A_Local Authority_< 500V | AT32: Public Lighting All Night_Local Authority_< 500V | AU32: Public Lighting 24 Hours_Local Authority_< 500V
C33: Rates SPU | E33: =INDEX(F33:Y33,0,Selected_Tariff_ID) -> Businessrate 1_Local Authority | F33: =F6&"_"&$D44 -> Businessrate 1_Local Authority | G33: Businessrate 2_Local Authority | H33: Businessrate 3_Local Authority | I33: Businessrate 4_Local Authority | J33: Homelight 20A_Local Authority | K33: Homelight 60A_Local Authority | L33: Homepower 1_Local Authority | M33: Homepower 2_Local Authority | N33: Homepower 3_Local Authority | O33: Homepower 4_Local Authority | P33: Homepower Bulk_Local Authority | Q33: Landrate 1_Local Authority | R33: Landrate 2_Local Authority | S33: Landrate 3_Local Authority | T33: Landrate 4_Local Authority | U33: =U6&"_"&$D44 -> Landrate Dx_Local Authority | V33: Landlight 20A_Local Authority | W33: Landlight 60A_Local Authority | X33: Public Lighting All Night_Local Authority | Y33: Public Lighting 24 Hours_Local Authority | AB33: Businessrate 1_Local Authority | AC33: Businessrate 2_Local Authority | AD33: Businessrate 3_Local Authority | AE33: Businessrate 4_Local Authority | AF33: Homelight 20A_Local Authority | AG33: Homelight 60A_Local Authority | AH33: Homepower 1_Local Authority | AI33: Homepower 2_Local Authority | AJ33: Homepower 3_Local Authority | AK33: Homepower 4_Local Authority | AL33: Homepower Bulk_Local Authority | AM33: Landrate 1_Local Authority | AN33: Landrate 2_Local Authority | AO33: Landrate 3_Local Authority | AP33: Landrate 4_Local Authority | AQ33: Landrate Dx_Local Authority | AR33: Landlight 20A_Local Authority | AS33: Landlight 60A_Local Authority | AT33: Public Lighting All Night_Local Authority | AU33: Public Lighting 24 Hours_Local Authority
C34: Admin & Service Charges | E34: =INDEX(F34:Y34,0,Selected_Tariff_ID) -> Urban_Local Authority_≤100kVA | F34: =$D41&"_"&$D44&"_"&$D46 -> Urban_Local Authority_≤100kVA | G34: Urban_Local Authority_≤100kVA | H34: Urban_Local Authority_≤100kVA | I34: Urban_Local Authority_≤100kVA | J34: Urban_Local Authority_≤100kVA | K34: Urban_Local Authority_≤100kVA | L34: Urban_Local Authority_≤100kVA | M34: Urban_Local Authority_≤100kVA | N34: Urban_Local Authority_≤100kVA | O34: Urban_Local Authority_≤100kVA | P34: Urban_Local Authority_≤100kVA | Q34: Urban_Local Authority_≤100kVA | R34: Urban_Local Authority_≤100kVA | S34: Urban_Local Authority_≤100kVA | T34: Urban_Local Authority_≤100kVA | U34: =$D41&"_"&$D44&"_"&$D46 -> Urban_Local Authority_≤100kVA | V34: Urban_Local Authority_≤100kVA | W34: Urban_Local Authority_≤100kVA | X34: Urban_Local Authority_≤100kVA | Y34: Urban_Local Authority_≤100kVA | AB34: Urban_Local Authority_≤100kVA | AC34: Urban_Local Authority_≤100kVA | AD34: Urban_Local Authority_≤100kVA | AE34: Urban_Local Authority_≤100kVA | AF34: Urban_Local Authority_≤100kVA | AG34: Urban_Local Authority_≤100kVA | AH34: Urban_Local Authority_≤100kVA | AI34: Urban_Local Authority_≤100kVA | AJ34: Urban_Local Authority_≤100kVA | AK34: Urban_Local Authority_≤100kVA | AL34: Urban_Local Authority_≤100kVA | AM34: Urban_Local Authority_≤100kVA | AN34: Urban_Local Authority_≤100kVA | AO34: Urban_Local Authority_≤100kVA | AP34: Urban_Local Authority_≤100kVA | AQ34: Urban_Local Authority_≤100kVA | AR34: Urban_Local Authority_≤100kVA | AS34: Urban_Local Authority_≤100kVA | AT34: Urban_Local Authority_≤100kVA | AU34: Urban_Local Authority_≤100kVA
B36: Check tables
C37: Table 1: 1 = LPU, 0 = SPU | E37: =INDEX(F37:Y37,0,Selected_Tariff_ID) -> 0 | F37: 0 | G37: 0 | H37: 0 | I37: 0 | J37: 0 | K37: 0 | L37: 0 | M37: 0 | N37: 0 | O37: 0 | P37: 0 | Q37: 0 | R37: 0 | S37: 0 | T37: 0 | U37: 0 | V37: 0 | W37: 0 | X37: 0 | Y37: 0 | AA37: =INDEX(AB37:AU37,0,Selected_Tariff_ID) -> 0 | AB37: =F37 -> 0 | AC37: 0 | AD37: 0 | AE37: 0 | AF37: 0 | AG37: 0 | AH37: 0 | AI37: 0 | AJ37: 0 | AK37: 0 | AL37: 0 | AM37: 0 | AN37: 0 | AO37: 0 | AP37: 0 | AQ37: =U37 -> 0 | AR37: 0 | AS37: 0 | AT37: 0 | AU37: 0
B39: Assumptions
C40: Tariff: | D40: =Selected_Base_Tariff -> Businessrate 1
C41: Type | D41: =INDEX(Full_Tariff_Type,MATCH(D40,Full_Tariff_List,0)) -> Urban
C42: Supply voltage | D42: =Selected_Supply_Voltage -> < 500V
C43: Transmission zone | D43: =Selected_Transmission -> Not Applicable
C44: Tariff Category | D44: =Selected_Tariff_Category -> Local Authority
C45: No of PODS | D45: =PODs -> 1
C46: Size of supply | D46: =IF(Selected_Customer_Category_ID=1,Lists!N21,Selected_Supply_Size) -> ≤100kVA

Sheet Workings (hidden)
B4: Calculations by Tariff
B6: Tariffs | E6: =Selected_Base_Tariff -> Businessrate 1 | F6: =INDEX(Full_Tariff_List,F$7,) -> Businessrate 1 | G6: Businessrate 2 | H6: Businessrate 3 | I6: Businessrate 4 | J6: Homelight 20A | K6: Homelight 60A | L6: Homepower 1 | M6: Homepower 2 | N6: Homepower 3 | O6: Homepower 4 | P6: Homepower Bulk | Q6: Landrate 1 | R6: Landrate 2 | S6: Landrate 3 | T6: Landrate 4 | U6: Landrate Dx | V6: Landlight 20A | W6: Landlight 60A | X6: Public Lighting All Night | Y6: Public Lighting 24 Hours | AA6: =E6 -> Businessrate 1 | AB6: Businessrate 1 | AC6: Businessrate 2 | AD6: Businessrate 3 | AE6: Businessrate 4 | AF6: Homelight 20A | AG6: Homelight 60A | AH6: Homepower 1 | AI6: Homepower 2 | AJ6: Homepower 3 | AK6: Homepower 4 | AL6: Homepower Bulk | AM6: Landrate 1 | AN6: Landrate 2 | AO6: Landrate 3 | AP6: Landrate 4 | AQ6: =U6 -> Landrate Dx | AR6: Landlight 20A | AS6: Landlight 60A | AT6: Public Lighting All Night | AU6: Public Lighting 24 Hours
F7: 1 | G7: =F7+1 -> 2 | H7: =G7+1 -> 3 | I7: 4 | J7: 5 | K7: 6 | L7: 7 | M7: 8 | N7: 9 | O7: 10 | P7: 11 | Q7: 12 | R7: 13 | S7: 14 | T7: 15 | U7: =T7+1 -> 16 | V7: =U7+1 -> 17 | W7: =V7+1 -> 18 | X7: =W7+1 -> 19 | Y7: =X7+1 -> 20
B8: Network charges | D8: Units | E8: =Current_Period&" Rates" -> 2020/2021 Rates | F8: =E8 -> 2020/2021 Rates | G8: =F8 -> 2020/2021 Rates | H8: 2020/2021 Rates | I8: 2020/2021 Rates | J8: 2020/2021 Rates | K8: 2020/2021 Rates | L8: 2020/2021 Rates | M8: 2020/2021 Rates | N8: 2020/2021 Rates | O8: 2020/2021 Rates | P8: 2020/2021 Rates | Q8: 2020/2021 Rates | R8: 2020/2021 Rates | S8: 2020/2021 Rates | T8: 2020/2021 Rates | U8: =T8 -> 2020/2021 Rates | V8: =U8 -> 2020/2021 Rates | W8: =V8 -> 2020/2021 Rates | X8: =W8 -> 2020/2021 Rates | Y8: =X8 -> 2020/2021 Rates | AA8: =New_Period&" Rates" -> 2021/2022 Rates | AB8: =AA8 -> 2021/2022 Rates | AC8: =AB8 -> 2021/2022 Rates | AD8: 2021/2022 Rates | AE8: 2021/2022 Rates | AF8: 2021/2022 Rates | AG8: 2021/2022 Rates | AH8: 2021/2022 Rates | AI8: 2021/2022 Rates | AJ8: 2021/2022 Rates | AK8: 2021/2022 Rates | AL8: 2021/2022 Rates | AM8: 2021/2022 Rates | AN8: 2021/2022 Rates | AO8: 2021/2022 Rates | AP8: 2021/2022 Rates | AQ8: =AP8 -> 2021/2022 Rates | AR8: =AQ8 -> 2021/2022 Rates | AS8: =AR8 -> 2021/2022 Rates | AT8: =AS8 -> 2021/2022 Rates | AU8: =AT8 -> 2021/2022 Rates
C10: Distribution network demand charge | D10: c/kWh | E10: =INDEX(F10:Y10,0,Selected_Tariff_ID) -> 0 | F10: =IFERROR('Rates Table'!F10*SPU_Annual_Total_Energy,0)/100 -> 0 | G10: =IFERROR('Rates Table'!G10*SPU_Annual_Total_Energy,0)/100 -> 0 | H10: =IFERROR('Rates Table'!H10*SPU_Annual_Total_Energy,0)/100 -> 0 | I10: =IFERROR('Rates Table'!I10*SPU_Annual_Total_Energy,0)/100 -> 0 | J10: =IFERROR('Rates Table'!J10*SPU_Annual_Total_Energy,0)/100 -> 0 | K10: =IFERROR('Rates Table'!K10*SPU_Annual_Total_Energy,0)/100 -> 0 | L10: =IFERROR('Rates Table'!L10*SPU_Annual_Total_Energy,0)/100 -> 0 | M10: =IFERROR('Rates Table'!M10*SPU_Annual_Total_Energy,0)/100 -> 0 | N10: =IFERROR('Rates Table'!N10*SPU_Annual_Total_Energy,0)/100 -> 0 | O10: =IFERROR('Rates Table'!O10*SPU_Annual_Total_Energy,0)/100 -> 0 | P10: =IFERROR('Rates Table'!P10*SPU_Annual_Total_Energy,0)/100 -> 0 | Q10: =IFERROR('Rates Table'!Q10*SPU_Annual_Total_Energy,0)/100 -> 0 | R10: =IFERROR('Rates Table'!R10*SPU_Annual_Total_Energy,0)/100 -> 0 | S10: =IFERROR('Rates Table'!S10*SPU_Annual_Total_Energy,0)/100 -> 0 | T10: =IFERROR('Rates Table'!T10*SPU_Annual_Total_Energy,0)/100 -> 0 | U10: =IFERROR('Rates Table'!U10*SPU_Annual_Total_Energy,0)/100 -> 0 | V10: =IFERROR('Rates Table'!V10*SPU_Annual_Total_Energy,0)/100 -> 0 | W10: =IFERROR('Rates Table'!W10*SPU_Annual_Total_Energy,0)/100 -> 0 | X10: =IFERROR('Rates Table'!X10*SPU_Annual_Total_Energy,0)/100 -> 0 | Y10: =IFERROR('Rates Table'!Y10*SPU_Annual_Total_Energy,0)/100 -> 0 | AA10: =INDEX(AB10:AU10,0,Selected_Tariff_ID) -> 0 | AB10: =IFERROR('Rates Table'!AB10*SPU_Annual_Total_Energy,0)/100 -> 0 | AC10: =IFERROR('Rates Table'!AC10*SPU_Annual_Total_Energy,0)/100 -> 0 | AD10: =IFERROR('Rates Table'!AD10*SPU_Annual_Total_Energy,0)/100 -> 0 | AE10: =IFERROR('Rates Table'!AE10*SPU_Annual_Total_Energy,0)/100 -> 0 | AF10: =IFERROR('Rates Table'!AF10*SPU_Annual_Total_Energy,0)/100 -> 0 | AG10: =IFERROR('Rates Table'!AG10*SPU_Annual_Total_Energy,0)/100 -> 0 | AH10: =IFERROR('Rates Table'!AH10*SPU_Annual_Total_Energy,0)/100 -> 0 | AI10: =IFERROR('Rates Table'!AI10*SPU_Annual_Total_Energy,0)/100 -> 0 | AJ10: =IFERROR('Rates Table'!AJ10*SPU_Annual_Total_Energy,0)/100 -> 0 | AK10: =IFERROR('Rates Table'!AK10*SPU_Annual_Total_Energy,0)/100 -> 0 | AL10: =IFERROR('Rates Table'!AL10*SPU_Annual_Total_Energy,0)/100 -> 0 | AM10: =IFERROR('Rates Table'!AM10*SPU_Annual_Total_Energy,0)/100 -> 0 | AN10: =IFERROR('Rates Table'!AN10*SPU_Annual_Total_Energy,0)/100 -> 0 | AO10: =IFERROR('Rates Table'!AO10*SPU_Annual_Total_Energy,0)/100 -> 0 | AP10: =IFERROR('Rates Table'!AP10*SPU_Annual_Total_Energy,0)/100 -> 0 | AQ10: =IFERROR('Rates Table'!AQ10*SPU_Annual_Total_Energy,0)/100 -> 0 | AR10: =IFERROR('Rates Table'!AR10*SPU_Annual_Total_Energy,0)/100 -> 0 | AS10: =IFERROR('Rates Table'!AS10*SPU_Annual_Total_Energy,0)/100 -> 0 | AT10: =IFERROR('Rates Table'!AT10*SPU_Annual_Total_Energy,0)/100 -> 0 | AU10: =IFERROR('Rates Table'!AU10*SPU_Annual_Total_Energy,0)/100 -> 0
C11: Network capacity charge | D11: =IF(Table_1=1,"R/kVA","R/day") -> R/day | E11: =INDEX(F11:Y11,0,Selected_Tariff_ID) -> 768.0208333 | F11: =IFERROR('Rates Table'!F11*PODs*ESKOM_Total_days,0) -> 768.0208333 | G11: =IFERROR('Rates Table'!G11*PODs*ESKOM_Total_days,0) -> 1295.141667 | H11: =IFERROR('Rates Table'!H11*PODs*ESKOM_Total_days,0) -> 2238.058333 | I11: =IFERROR('Rates Table'!I11*PODs*ESKOM_Total_days,0) -> 0 | J11: =IFERROR('Rates Table'!J11*PODs*ESKOM_Total_days,0) -> 0 | K11: =IFERROR('Rates Table'!K11*PODs*ESKOM_Total_days,0) -> 0 | L11: =IFERROR('Rates Table'!L11*PODs*ESKOM_Total_days,0) -> 189.1916667 | M11: =IFERROR('Rates Table'!M11*PODs*ESKOM_Total_days,0) -> 354.9625 | N11: =IFERROR('Rates Table'!N11*PODs*ESKOM_Total_days,0) -> 733.3458333 | O11: =IFERROR('Rates Table'!O11*PODs*ESKOM_Total_days,0) -> 115.8875 | P11: =IFERROR('Rates Table'!P11*PODs*ESKOM_Total_days,0) -> 0 | Q11: =IFERROR('Rates Table'!Q11*PODs*ESKOM_Total_days,0) -> 1012.266667 | R11: =IFERROR('Rates Table'!R11*PODs*ESKOM_Total_days,0) -> 1555.8125 | S11: =IFERROR('Rates Table'!S11*PODs*ESKOM_Total_days,0) -> 2487.779167 | T11: =IFERROR('Rates Table'!T11*PODs*ESKOM_Total_days,0) -> 806.0416667 | U11: =IFERROR('Rates Table'!U11*PODs*ESKOM_Total_days,0) -> 0 | V11: =IFERROR('Rates Table'!V11*PODs*ESKOM_Total_days,0) -> 0 | W11: =IFERROR('Rates Table'!W11*PODs*ESKOM_Total_days,0) -> 0 | X11: =IFERROR('Rates Table'!X11*PODs*ESKOM_Total_days,0) -> 0 | Y11: =IFERROR('Rates Table'!Y11*PODs*ESKOM_Total_days,0) -> 0 | AA11: =INDEX(AB11:AU11,0,Selected_Tariff_ID) -> 904.5916667 | AB11: =IFERROR('Rates Table'!AB11*PODs*ESKOM_Total_days,0) -> 904.5916667 | AC11: =IFERROR('Rates Table'!AC11*PODs*ESKOM_Total_days,0) -> 1525.7 | AD11: =IFERROR('Rates Table'!AD11*PODs*ESKOM_Total_days,0) -> 2636.516667 | AE11: =IFERROR('Rates Table'!AE11*PODs*ESKOM_Total_days,0) -> 0 | AF11: =IFERROR('Rates Table'!AF11*PODs*ESKOM_Total_days,0) -> 0 | AG11: =IFERROR('Rates Table'!AG11*PODs*ESKOM_Total_days,0) -> 0 | AH11: =IFERROR('Rates Table'!AH11*PODs*ESKOM_Total_days,0) -> 222.9541667 | AI11: =IFERROR('Rates Table'!AI11*PODs*ESKOM_Total_days,0) -> 418.2291667 | AJ11: =IFERROR('Rates Table'!AJ11*PODs*ESKOM_Total_days,0) -> 863.8333333 | AK11: =IFERROR('Rates Table'!AK11*PODs*ESKOM_Total_days,0) -> 136.5708333 | AL11: =IFERROR('Rates Table'!AL11*PODs*ESKOM_Total_days,0) -> 0 | AM11: =IFERROR('Rates Table'!AM11*PODs*ESKOM_Total_days,0) -> 1192.333333 | AN11: =IFERROR('Rates Table'!AN11*PODs*ESKOM_Total_days,0) -> 1832.604167 | AO11: =IFERROR('Rates Table'!AO11*PODs*ESKOM_Total_days,0) -> 2930.645833 | AP11: =IFERROR('Rates Table'!AP11*PODs*ESKOM_Total_days,0) -> 949.6083333 | AQ11: =IFERROR('Rates Table'!AQ11*PODs*ESKOM_Total_days,0) -> 0 | AR11: =IFERROR('Rates Table'!AR11*PODs*ESKOM_Total_days,0) -> 0 | AS11: =IFERROR('Rates Table'!AS11*PODs*ESKOM_Total_days,0) -> 0 | AT11: =IFERROR('Rates Table'!AT11*PODs*ESKOM_Total_days,0) -> 0 | AU11: =IFERROR('Rates Table'!AU11*PODs*ESKOM_Total_days,0) -> 0
B13: Total network charges | E13: =SUM(E10:E11) -> 768.0208333 | F13: 768.0208333 | G13: 1295.141667 | H13: 2238.058333 | I13: 0 | J13: 0 | K13: 0 | L13: 189.1916667 | M13: 354.9625 | N13: 733.3458333 | O13: 115.8875 | P13: 0 | Q13: 1012.266667 | R13: 1555.8125 | S13: 2487.779167 | T13: 806.0416667 | U13: =SUM(U10:U11) -> 0 | V13: 0 | W13: 0 | X13: 0 | Y13: 0 | AA13: =SUM(AA10:AA11) -> 904.5916667 | AB13: 904.5916667 | AC13: 1525.7 | AD13: 2636.516667 | AE13: 0 | AF13: 0 | AG13: 0 | AH13: 222.9541667 | AI13: 418.2291667 | AJ13: 863.8333333 | AK13: 136.5708333 | AL13: 0 | AM13: 1192.333333 | AN13: 1832.604167 | AO13: 2930.645833 | AP13: 949.6083333 | AQ13: =SUM(AQ10:AQ11) -> 0 | AR13: 0 | AS13: 0 | AT13: 0 | AU13: 0
B15: Energy charges | D15: Units | E15: =E$8 -> 2020/2021 Rates | F15: =F$8 -> 2020/2021 Rates | G15: 2020/2021 Rates | H15: 2020/2021 Rates | I15: 2020/2021 Rates | J15: 2020/2021 Rates | K15: 2020/2021 Rates | L15: 2020/2021 Rates | M15: 2020/2021 Rates | N15: 2020/2021 Rates | O15: 2020/2021 Rates | P15: 2020/2021 Rates | Q15: 2020/2021 Rates | R15: 2020/2021 Rates | S15: 2020/2021 Rates | T15: 2020/2021 Rates | U15: 2020/2021 Rates | V15: 2020/2021 Rates | W15: 2020/2021 Rates | X15: 2020/2021 Rates | Y15: 2020/2021 Rates | AA15: =AA$8 -> 2021/2022 Rates | AB15: =AB$8 -> 2021/2022 Rates | AC15: 2021/2022 Rates | AD15: 2021/2022 Rates | AE15: 2021/2022 Rates | AF15: 2021/2022 Rates | AG15: 2021/2022 Rates | AH15: 2021/2022 Rates | AI15: 2021/2022 Rates | AJ15: 2021/2022 Rates | AK15: 2021/2022 Rates | AL15: 2021/2022 Rates | AM15: 2021/2022 Rates | AN15: 2021/2022 Rates | AO15: 2021/2022 Rates | AP15: 2021/2022 Rates | AQ15: 2021/2022 Rates | AR15: 2021/2022 Rates | AS15: 2021/2022 Rates | AT15: 2021/2022 Rates | AU15: 2021/2022 Rates
C17: Energy | D17: c/kWh | E17: =INDEX(F17:Y17,0,Selected_Tariff_ID) -> 0 | F17: =IFERROR('Rates Table'!F17*(SPU_Annual_Total_Energy),0)/100 -> 0 | G17: =IFERROR('Rates Table'!G17*(SPU_Annual_Total_Energy),0)/100 -> 0 | H17: =IFERROR('Rates Table'!H17*(SPU_Annual_Total_Energy),0)/100 -> 0 | I17: =IFERROR('Rates Table'!I17*(SPU_Annual_Total_Energy),0)/100 -> 0 | J17: =IFERROR('Rates Table'!J17*(SPU_Annual_Total_Energy),0)/100 -> 0 | K17: =IFERROR('Rates Table'!K17*(SPU_Annual_Total_Energy),0)/100 -> 0 | L17: =IFERROR('Rates Table'!L17*(SPU_Annual_Total_Energy),0)/100 -> 0 | M17: =IFERROR('Rates Table'!M17*(SPU_Annual_Total_Energy),0)/100 -> 0 | N17: =IFERROR('Rates Table'!N17*(SPU_Annual_Total_Energy),0)/100 -> 0 | O17: =IFERROR('Rates Table'!O17*(SPU_Annual_Total_Energy),0)/100 -> 0 | P17: =IFERROR('Rates Table'!P17*(SPU_Annual_Total_Energy),0)/100 -> 0 | Q17: =IFERROR('Rates Table'!Q17*(SPU_Annual_Total_Energy),0)/100 -> 0 | R17: =IFERROR('Rates Table'!R17*(SPU_Annual_Total_Energy),0)/100 -> 0 | S17: =IFERROR('Rates Table'!S17*(SPU_Annual_Total_Energy),0)/100 -> 0 | T17: =IFERROR('Rates Table'!T17*(SPU_Annual_Total_Energy),0)/100 -> 0 | U17: =IFERROR('Rates Table'!U17*(SPU_Annual_Total_Energy),0)/100 -> 0 | V17: =IFERROR('Rates Table'!V17*(SPU_Annual_Total_Energy),0)/100 -> 0 | W17: =IFERROR('Rates Table'!W17*(SPU_Annual_Total_Energy),0)/100 -> 0 | X17: =IFERROR('Rates Table'!X17*(SPU_Annual_Total_Energy),0)/100 -> 0 | Y17: =IFERROR('Rates Table'!Y17*(SPU_Annual_Total_Energy),0)/100 -> 0 | AA17: =INDEX(AB17:AU17,0,Selected_Tariff_ID) -> 0 | AB17: =IFERROR('Rates Table'!AB17*(SPU_Annual_Total_Energy),0)/100 -> 0 | AC17: =IFERROR('Rates Table'!AC17*(SPU_Annual_Total_Energy),0)/100 -> 0 | AD17: =IFERROR('Rates Table'!AD17*(SPU_Annual_Total_Energy),0)/100 -> 0 | AE17: =IFERROR('Rates Table'!AE17*(SPU_Annual_Total_Energy),0)/100 -> 0 | AF17: =IFERROR('Rates Table'!AF17*(SPU_Annual_Total_Energy),0)/100 -> 0 | AG17: =IFERROR('Rates Table'!AG17*(SPU_Annual_Total_Energy),0)/100 -> 0 | AH17: =IFERROR('Rates Table'!AH17*(SPU_Annual_Total_Energy),0)/100 -> 0 | AI17: =IFERROR('Rates Table'!AI17*(SPU_Annual_Total_Energy),0)/100 -> 0 | AJ17: =IFERROR('Rates Table'!AJ17*(SPU_Annual_Total_Energy),0)/100 -> 0 | AK17: =IFERROR('Rates Table'!AK17*(SPU_Annual_Total_Energy),0)/100 -> 0 | AL17: =IFERROR('Rates Table'!AL17*(SPU_Annual_Total_Energy),0)/100 -> 0 | AM17: =IFERROR('Rates Table'!AM17*(SPU_Annual_Total_Energy),0)/100 -> 0 | AN17: =IFERROR('Rates Table'!AN17*(SPU_Annual_Total_Energy),0)/100 -> 0 | AO17: =IFERROR('Rates Table'!AO17*(SPU_Annual_Total_Energy),0)/100 -> 0 | AP17: =IFERROR('Rates Table'!AP17*(SPU_Annual_Total_Energy),0)/100 -> 0 | AQ17: =IFERROR('Rates Table'!AQ17*(SPU_Annual_Total_Energy),0)/100 -> 0 | AR17: =IFERROR('Rates Table'!AR17*(SPU_Annual_Total_Energy),0)/100 -> 0 | AS17: =IFERROR('Rates Table'!AS17*(SPU_Annual_Total_Energy),0)/100 -> 0 | AT17: =IFERROR('Rates Table'!AT17*(SPU_Annual_Total_Energy),0)/100 -> 0 | AU17: =IFERROR('Rates Table'!AU17*(SPU_Annual_Total_Energy),0)/100 -> 0
C18: Energy - Block 1 | D18: c/kWh | E18: =INDEX(F18:Y18,0,Selected_Tariff_ID) -> 0 | F18: =IFERROR('Rates Table'!F18*(SPU_Block_1),0)/100 -> 0 | G18: =IFERROR('Rates Table'!G18*(SPU_Block_1),0)/100 -> 0 | H18: =IFERROR('Rates Table'!H18*(SPU_Block_1),0)/100 -> 0 | I18: =IFERROR('Rates Table'!I18*(SPU_Block_1),0)/100 -> 0 | J18: =IFERROR('Rates Table'!J18*(SPU_Block_1),0)/100 -> 0 | K18: =IFERROR('Rates Table'!K18*(SPU_Block_1),0)/100 -> 0 | L18: =IFERROR('Rates Table'!L18*(SPU_Block_1),0)/100 -> 0 | M18: =IFERROR('Rates Table'!M18*(SPU_Block_1),0)/100 -> 0 | N18: =IFERROR('Rates Table'!N18*(SPU_Block_1),0)/100 -> 0 | O18: =IFERROR('Rates Table'!O18*(SPU_Block_1),0)/100 -> 0 | P18: =IFERROR('Rates Table'!P18*(SPU_Block_1),0)/100 -> 0 | Q18: =IFERROR('Rates Table'!Q18*(SPU_Block_1),0)/100 -> 0 | R18: =IFERROR('Rates Table'!R18*(SPU_Block_1),0)/100 -> 0 | S18: =IFERROR('Rates Table'!S18*(SPU_Block_1),0)/100 -> 0 | T18: =IFERROR('Rates Table'!T18*(SPU_Block_1),0)/100 -> 0 | U18: =IFERROR('Rates Table'!U18*(SPU_Block_1),0)/100 -> 0 | V18: =IFERROR('Rates Table'!V18*(SPU_Block_1),0)/100 -> 0 | W18: =IFERROR('Rates Table'!W18*(SPU_Block_1),0)/100 -> 0 | X18: =IFERROR('Rates Table'!X18*(SPU_Block_1),0)/100 -> 0 | Y18: =IFERROR('Rates Table'!Y18*(SPU_Block_1),0)/100 -> 0 | AA18: =INDEX(AB18:AU18,0,Selected_Tariff_ID) -> 0 | AB18: =IFERROR('Rates Table'!AB18*(SPU_Block_1),0)/100 -> 0 | AC18: =IFERROR('Rates Table'!AC18*(SPU_Block_1),0)/100 -> 0 | AD18: =IFERROR('Rates Table'!AD18*(SPU_Block_1),0)/100 -> 0 | AE18: =IFERROR('Rates Table'!AE18*(SPU_Block_1),0)/100 -> 0 | AF18: =IFERROR('Rates Table'!AF18*(SPU_Block_1),0)/100 -> 0 | AG18: =IFERROR('Rates Table'!AG18*(SPU_Block_1),0)/100 -> 0 | AH18: =IFERROR('Rates Table'!AH18*(SPU_Block_1),0)/100 -> 0 | AI18: =IFERROR('Rates Table'!AI18*(SPU_Block_1),0)/100 -> 0 | AJ18: =IFERROR('Rates Table'!AJ18*(SPU_Block_1),0)/100 -> 0 | AK18: =IFERROR('Rates Table'!AK18*(SPU_Block_1),0)/100 -> 0 | AL18: =IFERROR('Rates Table'!AL18*(SPU_Block_1),0)/100 -> 0 | AM18: =IFERROR('Rates Table'!AM18*(SPU_Block_1),0)/100 -> 0 | AN18: =IFERROR('Rates Table'!AN18*(SPU_Block_1),0)/100 -> 0 | AO18: =IFERROR('Rates Table'!AO18*(SPU_Block_1),0)/100 -> 0 | AP18: =IFERROR('Rates Table'!AP18*(SPU_Block_1),0)/100 -> 0 | AQ18: =IFERROR('Rates Table'!AQ18*(SPU_Block_1),0)/100 -> 0 | AR18: =IFERROR('Rates Table'!AR18*(SPU_Block_1),0)/100 -> 0 | AS18: =IFERROR('Rates Table'!AS18*(SPU_Block_1),0)/100 -> 0 | AT18: =IFERROR('Rates Table'!AT18*(SPU_Block_1),0)/100 -> 0 | AU18: =IFERROR('Rates Table'!AU18*(SPU_Block_1),0)/100 -> 0
C19: Energy - Block 2 | D19: c/kWh | E19: =INDEX(F19:Y19,0,Selected_Tariff_ID) -> 0 | F19: =IFERROR('Rates Table'!F19*(SPU_Block_2),0)/100 -> 0 | G19: =IFERROR('Rates Table'!G19*(SPU_Block_2),0)/100 -> 0 | H19: =IFERROR('Rates Table'!H19*(SPU_Block_2),0)/100 -> 0 | I19: =IFERROR('Rates Table'!I19*(SPU_Block_2),0)/100 -> 0 | J19: =IFERROR('Rates Table'!J19*(SPU_Block_2),0)/100 -> 0 | K19: =IFERROR('Rates Table'!K19*(SPU_Block_2),0)/100 -> 0 | L19: =IFERROR('Rates Table'!L19*(SPU_Block_2),0)/100 -> 0 | M19: =IFERROR('Rates Table'!M19*(SPU_Block_2),0)/100 -> 0 | N19: =IFERROR('Rates Table'!N19*(SPU_Block_2),0)/100 -> 0 | O19: =IFERROR('Rates Table'!O19*(SPU_Block_2),0)/100 -> 0 | P19: =IFERROR('Rates Table'!P19*(SPU_Block_2),0)/100 -> 0 | Q19: =IFERROR('Rates Table'!Q19*(SPU_Block_2),0)/100 -> 0 | R19: =IFERROR('Rates Table'!R19*(SPU_Block_2),0)/100 -> 0 | S19: =IFERROR('Rates Table'!S19*(SPU_Block_2),0)/100 -> 0 | T19: =IFERROR('Rates Table'!T19*(SPU_Block_2),0)/100 -> 0 | U19: =IFERROR('Rates Table'!U19*(SPU_Block_2),0)/100 -> 0 | V19: =IFERROR('Rates Table'!V19*(SPU_Block_2),0)/100 -> 0 | W19: =IFERROR('Rates Table'!W19*(SPU_Block_2),0)/100 -> 0 | X19: =IFERROR('Rates Table'!X19*(SPU_Block_2),0)/100 -> 0 | Y19: =IFERROR('Rates Table'!Y19*(SPU_Block_2),0)/100 -> 0 | AA19: =INDEX(AB19:AU19,0,Selected_Tariff_ID) -> 0 | AB19: =IFERROR('Rates Table'!AB19*(SPU_Block_2),0)/100 -> 0 | AC19: =IFERROR('Rates Table'!AC19*(SPU_Block_2),0)/100 -> 0 | AD19: =IFERROR('Rates Table'!AD19*(SPU_Block_2),0)/100 -> 0 | AE19: =IFERROR('Rates Table'!AE19*(SPU_Block_2),0)/100 -> 0 | AF19: =IFERROR('Rates Table'!AF19*(SPU_Block_2),0)/100 -> 0 | AG19: =IFERROR('Rates Table'!AG19*(SPU_Block_2),0)/100 -> 0 | AH19: =IFERROR('Rates Table'!AH19*(SPU_Block_2),0)/100 -> 0 | AI19: =IFERROR('Rates Table'!AI19*(SPU_Block_2),0)/100 -> 0 | AJ19: =IFERROR('Rates Table'!AJ19*(SPU_Block_2),0)/100 -> 0 | AK19: =IFERROR('Rates Table'!AK19*(SPU_Block_2),0)/100 -> 0 | AL19: =IFERROR('Rates Table'!AL19*(SPU_Block_2),0)/100 -> 0 | AM19: =IFERROR('Rates Table'!AM19*(SPU_Block_2),0)/100 -> 0 | AN19: =IFERROR('Rates Table'!AN19*(SPU_Block_2),0)/100 -> 0 | AO19: =IFERROR('Rates Table'!AO19*(SPU_Block_2),0)/100 -> 0 | AP19: =IFERROR('Rates Table'!AP19*(SPU_Block_2),0)/100 -> 0 | AQ19: =IFERROR('Rates Table'!AQ19*(SPU_Block_2),0)/100 -> 0 | AR19: =IFERROR('Rates Table'!AR19*(SPU_Block_2),0)/100 -> 0 | AS19: =IFERROR('Rates Table'!AS19*(SPU_Block_2),0)/100 -> 0 | AT19: =IFERROR('Rates Table'!AT19*(SPU_Block_2),0)/100 -> 0 | AU19: =IFERROR('Rates Table'!AU19*(SPU_Block_2),0)/100 -> 0
B21: Total energy charges | E21: =SUM(E17:E19) -> 0 | F21: 0 | G21: 0 | H21: 0 | I21: 0 | J21: 0 | K21: 0 | L21: 0 | M21: 0 | N21: 0 | O21: 0 | P21: 0 | Q21: 0 | R21: 0 | S21: 0 | T21: 0 | U21: =SUM(U17:U19) -> 0 | V21: 0 | W21: 0 | X21: 0 | Y21: 0 | AA21: =SUM(AA17:AA19) -> 0 | AB21: 0 | AC21: 0 | AD21: 0 | AE21: 0 | AF21: 0 | AG21: 0 | AH21: 0 | AI21: 0 | AJ21: 0 | AK21: 0 | AL21: 0 | AM21: 0 | AN21: 0 | AO21: 0 | AP21: 0 | AQ21: =SUM(AQ17:AQ19) -> 0 | AR21: 0 | AS21: 0 | AT21: 0 | AU21: 0
B23: Other charges | D23: Units | E23: =E$8 -> 2020/2021 Rates | F23: =F$8 -> 2020/2021 Rates | G23: 2020/2021 Rates | H23: 2020/2021 Rates | I23: 2020/2021 Rates | J23: 2020/2021 Rates | K23: 2020/2021 Rates | L23: 2020/2021 Rates | M23: 2020/2021 Rates | N23: 2020/2021 Rates | O23: 2020/2021 Rates | P23: 2020/2021 Rates | Q23: 2020/2021 Rates | R23: 2020/2021 Rates | S23: 2020/2021 Rates | T23: 2020/2021 Rates | U23: 2020/2021 Rates | V23: 2020/2021 Rates | W23: 2020/2021 Rates | X23: 2020/2021 Rates | Y23: 2020/2021 Rates | AA23: =AA$8 -> 2021/2022 Rates | AB23: =AB$8 -> 2021/2022 Rates | AC23: 2021/2022 Rates | AD23: 2021/2022 Rates | AE23: 2021/2022 Rates | AF23: 2021/2022 Rates | AG23: 2021/2022 Rates | AH23: 2021/2022 Rates | AI23: 2021/2022 Rates | AJ23: 2021/2022 Rates | AK23: 2021/2022 Rates | AL23: 2021/2022 Rates | AM23: 2021/2022 Rates | AN23: 2021/2022 Rates | AO23: 2021/2022 Rates | AP23: 2021/2022 Rates | AQ23: 2021/2022 Rates | AR23: 2021/2022 Rates | AS23: 2021/2022 Rates | AT23: 2021/2022 Rates | AU23: 2021/2022 Rates
C25: Ancillary service charge | D25: c/kWh | E25: =INDEX(F25:Y25,0,Selected_Tariff_ID) -> 0 | F25: =IFERROR(SPU_Annual_Total_Energy*'Rates Table'!F25,0)/100 -> 0 | G25: =IFERROR(SPU_Annual_Total_Energy*'Rates Table'!G25,0)/100 -> 0 | H25: =IFERROR(SPU_Annual_Total_Energy*'Rates Table'!H25,0)/100 -> 0 | I25: =IFERROR(SPU_Annual_Total_Energy*'Rates Table'!I25,0)/100 -> 0 | J25: =IFERROR(SPU_Annual_Total_Energy*'Rates Table'!J25,0)/100 -> 0 | K25: =IFERROR(SPU_Annual_Total_Energy*'Rates Table'!K25,0)/100 -> 0 | L25: =IFERROR(SPU_Annual_Total_Energy*'Rates Table'!L25,0)/100 -> 0 | M25: =IFERROR(SPU_Annual_Total_Energy*'Rates Table'!M25,0)/100 -> 0 | N25: =IFERROR(SPU_Annual_Total_Energy*'Rates Table'!N25,0)/100 -> 0 | O25: =IFERROR(SPU_Annual_Total_Energy*'Rates Table'!O25,0)/100 -> 0 | P25: =IFERROR(SPU_Annual_Total_Energy*'Rates Table'!P25,0)/100 -> 0 | Q25: =IFERROR(SPU_Annual_Total_Energy*'Rates Table'!Q25,0)/100 -> 0 | R25: =IFERROR(SPU_Annual_Total_Energy*'Rates Table'!R25,0)/100 -> 0 | S25: =IFERROR(SPU_Annual_Total_Energy*'Rates Table'!S25,0)/100 -> 0 | T25: =IFERROR(SPU_Annual_Total_Energy*'Rates Table'!T25,0)/100 -> 0 | U25: =IFERROR(SPU_Annual_Total_Energy*'Rates Table'!U25,0)/100 -> 0 | V25: =IFERROR(SPU_Annual_Total_Energy*'Rates Table'!V25,0)/100 -> 0 | W25: =IFERROR(SPU_Annual_Total_Energy*'Rates Table'!W25,0)/100 -> 0 | X25: =IFERROR(SPU_Annual_Total_Energy*'Rates Table'!X25,0)/100 -> 0 | Y25: =IFERROR(SPU_Annual_Total_Energy*'Rates Table'!Y25,0)/100 -> 0 | AA25: =INDEX(AB25:AU25,0,Selected_Tariff_ID) -> 0 | AB25: =IFERROR(SPU_Annual_Total_Energy*'Rates Table'!AB25,0)/100 -> 0 | AC25: =IFERROR(SPU_Annual_Total_Energy*'Rates Table'!AC25,0)/100 -> 0 | AD25: =IFERROR(SPU_Annual_Total_Energy*'Rates Table'!AD25,0)/100 -> 0 | AE25: =IFERROR(SPU_Annual_Total_Energy*'Rates Table'!AE25,0)/100 -> 0 | AF25: =IFERROR(SPU_Annual_Total_Energy*'Rates Table'!AF25,0)/100 -> 0 | AG25: =IFERROR(SPU_Annual_Total_Energy*'Rates Table'!AG25,0)/100 -> 0 | AH25: =IFERROR(SPU_Annual_Total_Energy*'Rates Table'!AH25,0)/100 -> 0 | AI25: =IFERROR(SPU_Annual_Total_Energy*'Rates Table'!AI25,0)/100 -> 0 | AJ25: =IFERROR(SPU_Annual_Total_Energy*'Rates Table'!AJ25,0)/100 -> 0 | AK25: =IFERROR(SPU_Annual_Total_Energy*'Rates Table'!AK25,0)/100 -> 0 | AL25: =IFERROR(SPU_Annual_Total_Energy*'Rates Table'!AL25,0)/100 -> 0 | AM25: =IFERROR(SPU_Annual_Total_Energy*'Rates Table'!AM25,0)/100 -> 0 | AN25: =IFERROR(SPU_Annual_Total_Energy*'Rates Table'!AN25,0)/100 -> 0 | AO25: =IFERROR(SPU_Annual_Total_Energy*'Rates Table'!AO25,0)/100 -> 0 | AP25: =IFERROR(SPU_Annual_Total_Energy*'Rates Table'!AP25,0)/100 -> 0 | AQ25: =IFERROR(SPU_Annual_Total_Energy*'Rates Table'!AQ25,0)/100 -> 0 | AR25: =IFERROR(SPU_Annual_Total_Energy*'Rates Table'!AR25,0)/100 -> 0 | AS25: =IFERROR(SPU_Annual_Total_Energy*'Rates Table'!AS25,0)/100 -> 0 | AT25: =IFERROR(SPU_Annual_Total_Energy*'Rates Table'!AT25,0)/100 -> 0 | AU25: =IFERROR(SPU_Annual_Total_Energy*'Rates Table'!AU25,0)/100 -> 0
C26: Service charge | D26: =IF(Table_1=1,"R/day","R/day") -> R/day | E26: =INDEX(F26:Y26,0,Selected_Tariff_ID) -> 657.6083333 | F26: =IFERROR('Rates Table'!F26*PODs*ESKOM_Total_days,0) -> 657.6083333 | G26: =IFERROR('Rates Table'!G26*PODs*ESKOM_Total_days,0) -> 657.6083333 | H26: =IFERROR('Rates Table'!H26*PODs*ESKOM_Total_days,0) -> 657.6083333 | I26: =IFERROR('Rates Table'!I26*PODs*ESKOM_Total_days,0) -> 0 | J26: =IFERROR('Rates Table'!J26*PODs*ESKOM_Total_days,0) -> 0 | K26: =IFERROR('Rates Table'!K26*PODs*ESKOM_Total_days,0) -> 0 | L26: =IFERROR('Rates Table'!L26*PODs*ESKOM_Total_days,0) -> 0 | M26: =IFERROR('Rates Table'!M26*PODs*ESKOM_Total_days,0) -> 0 | N26: =IFERROR('Rates Table'!N26*PODs*ESKOM_Total_days,0) -> 0 | O26: =IFERROR('Rates Table'!O26*PODs*ESKOM_Total_days,0) -> 0 | P26: =IFERROR('Rates Table'!P26*PODs*ESKOM_Total_days,0) -> 0 | Q26: =IFERROR('Rates Table'!Q26*PODs*ESKOM_Total_days,0) -> 828.55 | R26: =IFERROR('Rates Table'!R26*PODs*ESKOM_Total_days,0) -> 828.55 | S26: =IFERROR('Rates Table'!S26*PODs*ESKOM_Total_days,0) -> 828.55 | T26: =IFERROR('Rates Table'!T26*PODs*ESKOM_Total_days,0) -> 0 | U26: =IFERROR('Rates Table'!U26*PODs*ESKOM_Total_days,0) -> 1792.64275 | V26: =IFERROR('Rates Table'!V26*PODs*ESKOM_Total_days,0) -> 0 | W26: =IFERROR('Rates Table'!W26*PODs*ESKOM_Total_days,0) -> 0 | X26: =IFERROR('Rates Table'!X26*PODs*ESKOM_Total_days,0) -> 0 | Y26: =IFERROR('Rates Table'!Y26*PODs*ESKOM_Total_days,0) -> 0 | AA26: =INDEX(AB26:AU26,0,Selected_Tariff_ID) -> 774.7125 | AB26: =IFERROR('Rates Table'!AB26*PODs*ESKOM_Total_days,0) -> 774.7125 | AC26: =IFERROR('Rates Table'!AC26*PODs*ESKOM_Total_days,0) -> 774.7125 | AD26: =IFERROR('Rates Table'!AD26*PODs*ESKOM_Total_days,0) -> 774.7125 | AE26: =IFERROR('Rates Table'!AE26*PODs*ESKOM_Total_days,0) -> 0 | AF26: =IFERROR('Rates Table'!AF26*PODs*ESKOM_Total_days,0) -> 0 | AG26: =IFERROR('Rates Table'!AG26*PODs*ESKOM_Total_days,0) -> 0 | AH26: =IFERROR('Rates Table'!AH26*PODs*ESKOM_Total_days,0) -> 0 | AI26: =IFERROR('Rates Table'!AI26*PODs*ESKOM_Total_days,0) -> 0 | AJ26: =IFERROR('Rates Table'!AJ26*PODs*ESKOM_Total_days,0) -> 0 | AK26: =IFERROR('Rates Table'!AK26*PODs*ESKOM_Total_days,0) -> 0 | AL26: =IFERROR('Rates Table'!AL26*PODs*ESKOM_Total_days,0) -> 0 | AM26: =IFERROR('Rates Table'!AM26*PODs*ESKOM_Total_days,0) -> 976.0708333 | AN26: =IFERROR('Rates Table'!AN26*PODs*ESKOM_Total_days,0) -> 976.0708333 | AO26: =IFERROR('Rates Table'!AO26*PODs*ESKOM_Total_days,0) -> 976.0708333 | AP26: =IFERROR('Rates Table'!AP26*PODs*ESKOM_Total_days,0) -> 0 | AQ26: =IFERROR('Rates Table'!AQ26*PODs*ESKOM_Total_days,0) -> 2111.868708 | AR26: =IFERROR('Rates Table'!AR26*PODs*ESKOM_Total_days,0) -> 0 | AS26: =IFERROR('Rates Table'!AS26*PODs*ESKOM_Total_days,0) -> 0 | AT26: =IFERROR('Rates Table'!AT26*PODs*ESKOM_Total_days,0) -> 0 | AU26: =IFERROR('Rates Table'!AU26*PODs*ESKOM_Total_days,0) -> 0
B28: Total other charges | E28: =SUM(E24:E26) -> 657.6083333 | F28: 657.6083333 | G28: 657.6083333 | H28: 657.6083333 | I28: 0 | J28: 0 | K28: 0 | L28: 0 | M28: 0 | N28: 0 | O28: 0 | P28: 0 | Q28: 828.55 | R28: 828.55 | S28: 828.55 | T28: 0 | U28: =SUM(U24:U26) -> 1792.64275 | V28: 0 | W28: 0 | X28: 0 | Y28: 0 | AA28: =SUM(AA24:AA26) -> 774.7125 | AB28: 774.7125 | AC28: 774.7125 | AD28: 774.7125 | AE28: 0 | AF28: 0 | AG28: 0 | AH28: 0 | AI28: 0 | AJ28: 0 | AK28: 0 | AL28: 0 | AM28: 976.0708333 | AN28: 976.0708333 | AO28: 976.0708333 | AP28: 0 | AQ28: =SUM(AQ24:AQ26) -> 2111.868708 | AR28: 0 | AS28: 0 | AT28: 0 | AU28: 0
B30: Total excl VAT | E30: =E28+E21+E13 -> 1425.629167 | F30: 1425.629167 | G30: 1952.75 | H30: 2895.666667 | I30: 0 | J30: 0 | K30: 0 | L30: 189.1916667 | M30: 354.9625 | N30: 733.3458333 | O30: 115.8875 | P30: 0 | Q30: 1840.816667 | R30: 2384.3625 | S30: 3316.329167 | T30: 806.0416667 | U30: =U28+U21+U13 -> 1792.64275 | V30: 0 | W30: 0 | X30: 0 | Y30: 0 | AA30: =AA28+AA21+AA13 -> 1679.304167 | AB30: 1679.304167 | AC30: 2300.4125 | AD30: 3411.229167 | AE30: 0 | AF30: 0 | AG30: 0 | AH30: 222.9541667 | AI30: 418.2291667 | AJ30: 863.8333333 | AK30: 136.5708333 | AL30: 0 | AM30: 2168.404167 | AN30: 2808.675 | AO30: 3906.716667 | AP30: 949.6083333 | AQ30: =AQ28+AQ21+AQ13 -> 2111.868708 | AR30: 0 | AS30: 0 | AT30: 0 | AU30: 0
B31: VAT | D31: ='Monthly Average Bill'!D41 -> 0.15 | E31: =E30*$D31 -> 213.844375 | F31: =F30*$D31 -> 213.844375 | G31: 292.9125 | H31: 434.35 | I31: 0 | J31: 0 | K31: 0 | L31: 28.37875 | M31: 53.244375 | N31: 110.001875 | O31: 17.383125 | P31: 0 | Q31: 276.1225 | R31: 357.654375 | S31: 497.449375 | T31: 120.90625 | U31: =U30*$D31 -> 268.8964125 | V31: 0 | W31: 0 | X31: 0 | Y31: 0 | AA31: =AA30*$D31 -> 251.895625 | AB31: =AB30*$D31 -> 251.895625 | AC31: =AC30*$D31 -> 345.061875 | AD31: =AD30*$D31 -> 511.684375 | AE31: =AE30*$D31 -> 0 | AF31: =AF30*$D31 -> 0 | AG31: =AG30*$D31 -> 0 | AH31: =AH30*$D31 -> 33.443125 | AI31: =AI30*$D31 -> 62.734375 | AJ31: =AJ30*$D31 -> 129.575 | AK31: =AK30*$D31 -> 20.485625 | AL31: =AL30*$D31 -> 0 | AM31: =AM30*$D31 -> 325.260625 | AN31: =AN30*$D31 -> 421.30125 | AO31: =AO30*$D31 -> 586.0075 | AP31: =AP30*$D31 -> 142.44125 | AQ31: =AQ30*$D31 -> 316.7803063 | AR31: 0 | AS31: 0 | AT31: 0 | AU31: 0
B33: Total account | E33: =SUM(E30:E31) -> 1639.473542 | F33: =SUM(F30:F31) -> 1639.473542 | G33: 2245.6625 | H33: 3330.016667 | I33: 0 | J33: 0 | K33: 0 | L33: 217.5704167 | M33: 408.206875 | N33: 843.3477083 | O33: 133.270625 | P33: 0 | Q33: 2116.939167 | R33: 2742.016875 | S33: 3813.778542 | T33: 926.9479167 | U33: =SUM(U30:U31) -> 2061.539163 | V33: 0 | W33: 0 | X33: 0 | Y33: 0 | AA33: =SUM(AA30:AA31) -> 1931.199792 | AB33: =SUM(AB30:AB31) -> 1931.199792 | AC33: 2645.474375 | AD33: 3922.913542 | AE33: 0 | AF33: 0 | AG33: 0 | AH33: 256.3972917 | AI33: 480.9635417 | AJ33: 993.4083333 | AK33: 157.0564583 | AL33: 0 | AM33: 2493.664792 | AN33: 3229.97625 | AO33: 4492.724167 | AP33: 1092.049583 | AQ33: =SUM(AQ30:AQ31) -> 2428.649015 | AR33: 0 | AS33: 0 | AT33: 0 | AU33: 0
B35: Average price c/kWh | E35: =E30/SPU_Annual_Total_Energy*100 ->  | U35: =U30/SPU_Annual_Total_Energy*100 ->  | AA35: =AA30/SPU_Annual_Total_Energy*100 ->  | AQ35: =AQ30/SPU_Annual_Total_Energy*100 -> 
B37: Check tables
C38: Table 1: 1 = LPU, 0 = SPU | E38: =INDEX(F38:Y38,0,Selected_Tariff_ID) -> 0 | F38: ='Rates Table'!F37 -> 0 | G38: ='Rates Table'!G37 -> 0 | H38: ='Rates Table'!H37 -> 0 | I38: ='Rates Table'!I37 -> 0 | J38: ='Rates Table'!J37 -> 0 | K38: ='Rates Table'!K37 -> 0 | L38: ='Rates Table'!L37 -> 0 | M38: ='Rates Table'!M37 -> 0 | N38: ='Rates Table'!N37 -> 0 | O38: ='Rates Table'!O37 -> 0 | P38: ='Rates Table'!P37 -> 0 | Q38: ='Rates Table'!Q37 -> 0 | R38: ='Rates Table'!R37 -> 0 | S38: ='Rates Table'!S37 -> 0 | T38: ='Rates Table'!T37 -> 0 | U38: ='Rates Table'!U37 -> 0 | V38: ='Rates Table'!V37 -> 0 | W38: ='Rates Table'!W37 -> 0 | X38: ='Rates Table'!X37 -> 0 | Y38: ='Rates Table'!Y37 -> 0 | AA38: =INDEX(AB38:AU38,0,Selected_Tariff_ID) -> 0 | AB38: =F38 -> 0 | AC38: 0 | AD38: 0 | AE38: 0 | AF38: 0 | AG38: 0 | AH38: 0 | AI38: 0 | AJ38: 0 | AK38: 0 | AL38: 0 | AM38: 0 | AN38: 0 | AO38: 0 | AP38: 0 | AQ38: =U38 -> 0 | AR38: 0 | AS38: 0 | AT38: 0 | AU38: 0
C39: Tariff Type | E39: =Selected_Tariff_Type -> Urban | F39: =INDEX(Full_Tariff_Type,F$7,) -> Urban | G39: Urban | H39: Urban | I39: Urban | J39: Urban | K39: Urban | L39: Urban | M39: Urban | N39: Urban | O39: Urban | P39: Urban | Q39: Rural | R39: Rural | S39: Rural | T39: Rural | U39: Rural | V39: Rural | W39: Rural | X39: Urban | Y39: Urban | AA39: =E39 -> Urban | AB39: Urban | AC39: Urban | AD39: Urban | AE39: Urban | AF39: Urban | AG39: Urban | AH39: Urban | AI39: Urban | AJ39: Urban | AK39: Urban | AL39: Urban | AM39: Rural | AN39: Rural | AO39: Rural | AP39: Rural | AQ39: Rural | AR39: Rural | AS39: Rural | AT39: Urban | AU39: Urban

Sheet Rates SPU - New (hidden)
C4: ="Small Power User | Tariff Inputs | "&New_Period -> Small Power User | Tariff Inputs | 2021/2022
N5: Dx NAC
C6: Rates - All Other | I6: kWhRBlock1 | J6: kWhRBlock4 | K6: kWhHP | L6: Reliab | M6: DxNDC Energy | N6: NAC POD | O6: SerS
C7: Tariff | D7: Tariff Category | E7: Type | F7: Column1 | G7: Code | H7: Matrix Code | I7: Energy charge Block 1 [c/kWh] | J7: Energy charge Block 2 [c/kWh] | K7: Energy charge [c/kWh] | L7: Ancillary service charge [c/kWh] | M7: Network demand charge [c/kWh] | N7: Network capacity charge [R/POD/day] | O7: Service and administration charge [R/POD/day] | P7: Environmental levy charge [c/kWh] | S7: check
C8: Businessrate 1 | D8: Non-Local Authority | G8: =C8&"_"&D8 -> Businessrate 1_Non-Local Authority | H8: =INDEX(Matrix_Tariff_Map,MATCH(C8,Matrix_Model_Tariffs,0),2)&IFERROR(INDEX(Matrix_Transmission_Map,MATCH(E8,Matrix_Model_Transmission,0),2),0)&IFERROR(INDEX(Matrix_Voltage_Map,MATCH(F8,Matrix_Model_Voltage,0),2),1)&INDEX(Matrix_Category_Map,MATCH(D8,Matrix_Model_Category,0),2) -> B101N | I8: =IFERROR(INDEX([1]EskRateMatrixRD!$B$2:$AR$261,MATCH($H8,[1]EskRateMatrixRD!$B$2:$B$261,0),MATCH(I$6,[1]EskRateMatrixRD!$B$1:$AR$1,0)),"n/a") -> 0 | J8: =IFERROR(INDEX([1]EskRateMatrixRD!$B$2:$AR$261,MATCH($H8,[1]EskRateMatrixRD!$B$2:$B$261,0),MATCH(J$6,[1]EskRateMatrixRD!$B$1:$AR$1,0)),"n/a") -> 0 | K8: =IFERROR(INDEX([1]EskRateMatrixRD!$B$2:$AR$261,MATCH($H8,[1]EskRateMatrixRD!$B$2:$B$261,0),MATCH(K$6,[1]EskRateMatrixRD!$B$1:$AR$1,0)),"n/a") -> 142.89 | L8: =IFERROR(INDEX([1]EskRateMatrixRD!$B$2:$AR$261,MATCH($H8,[1]EskRateMatrixRD!$B$2:$B$261,0),MATCH(L$6,[1]EskRateMatrixRD!$B$1:$AR$1,0)),"n/a") -> 0.55 | M8: =IFERROR(INDEX([1]EskRateMatrixRD!$B$2:$AR$261,MATCH($H8,[1]EskRateMatrixRD!$B$2:$B$261,0),MATCH(M$6,[1]EskRateMatrixRD!$B$1:$AR$1,0)),"n/a") -> 20.17 | N8: =IFERROR(INDEX([1]EskRateMatrixRD!$B$2:$AR$261,MATCH($H8,[1]EskRateMatrixRD!$B$2:$B$261,0),MATCH(N$6,[1]EskRateMatrixRD!$B$1:$AR$1,0)),"n/a") -> 28.97 | O8: =IFERROR(INDEX([1]EskRateMatrixRD!$B$2:$AR$261,MATCH($H8,[1]EskRateMatrixRD!$B$2:$B$261,0),MATCH(O$6,[1]EskRateMatrixRD!$B$1:$AR$1,0)),"n/a") -> 25.03 | P8: =IFERROR(INDEX([1]EskRateMatrixRD!$B$2:$AR$261,MATCH($H8,[1]EskRateMatrixRD!$B$2:$B$261,0),MATCH(P$6,[1]EskRateMatrixRD!$B$1:$AR$1,0)),"n/a") -> n/a
C9: Businessrate 2 | D9: Non-Local Authority | G9: =C9&"_"&D9 -> Businessrate 2_Non-Local Authority | H9: B201N | I9: =IFERROR(INDEX([1]EskRateMatrixRD!$B$2:$AR$261,MATCH($H9,[1]EskRateMatrixRD!$B$2:$B$261,0),MATCH(I$6,[1]EskRateMatrixRD!$B$1:$AR$1,0)),"n/a") -> 0 | J9: =IFERROR(INDEX([1]EskRateMatrixRD!$B$2:$AR$261,MATCH($H9,[1]EskRateMatrixRD!$B$2:$B$261,0),MATCH(J$6,[1]EskRateMatrixRD!$B$1:$AR$1,0)),"n/a") -> 0 | K9: =IFERROR(INDEX([1]EskRateMatrixRD!$B$2:$AR$261,MATCH($H9,[1]EskRateMatrixRD!$B$2:$B$261,0),MATCH(K$6,[1]EskRateMatrixRD!$B$1:$AR$1,0)),"n/a") -> 142.89 | L9: =IFERROR(INDEX([1]EskRateMatrixRD!$B$2:$AR$261,MATCH($H9,[1]EskRateMatrixRD!$B$2:$B$261,0),MATCH(L$6,[1]EskRateMatrixRD!$B$1:$AR$1,0)),"n/a") -> 0.55 | M9: =IFERROR(INDEX([1]EskRateMatrixRD!$B$2:$AR$261,MATCH($H9,[1]EskRateMatrixRD!$B$2:$B$261,0),MATCH(M$6,[1]EskRateMatrixRD!$B$1:$AR$1,0)),"n/a") -> 20.17 | N9: =IFERROR(INDEX([1]EskRateMatrixRD!$B$2:$AR$261,MATCH($H9,[1]EskRateMatrixRD!$B$2:$B$261,0),MATCH(N$6,[1]EskRateMatrixRD!$B$1:$AR$1,0)),"n/a") -> 48.81 | O9: =IFERROR(INDEX([1]EskRateMatrixRD!$B$2:$AR$261,MATCH($H9,[1]EskRateMatrixRD!$B$2:$B$261,0),MATCH(O$6,[1]EskRateMatrixRD!$B$1:$AR$1,0)),"n/a") -> 25.03 | P9: =IFERROR(INDEX([1]EskRateMatrixRD!$B$2:$AR$261,MATCH($H9,[1]EskRateMatrixRD!$B$2:$B$261,0),MATCH(P$6,[1]EskRateMatrixRD!$B$1:$AR$1,0)),"n/a") -> n/a
C10: Businessrate 3 | D10: Non-Local Authority | G10: Businessrate 3_Non-Local Authority | H10: B301N | I10: =IFERROR(INDEX([1]EskRateMatrixRD!$B$2:$AR$261,MATCH($H10,[1]EskRateMatrixRD!$B$2:$B$261,0),MATCH(I$6,[1]EskRateMatrixRD!$B$1:$AR$1,0)),"n/a") -> 0 | J10: =IFERROR(INDEX([1]EskRateMatrixRD!$B$2:$AR$261,MATCH($H10,[1]EskRateMatrixRD!$B$2:$B$261,0),MATCH(J$6,[1]EskRateMatrixRD!$B$1:$AR$1,0)),"n/a") -> 0 | K10: =IFERROR(INDEX([1]EskRateMatrixRD!$B$2:$AR$261,MATCH($H10,[1]EskRateMatrixRD!$B$2:$B$261,0),MATCH(K$6,[1]EskRateMatrixRD!$B$1:$AR$1,0)),"n/a") -> 142.89 | L10: =IFERROR(INDEX([1]EskRateMatrixRD!$B$2:$AR$261,MATCH($H10,[1]EskRateMatrixRD!$B$2:$B$261,0),MATCH(L$6,[1]EskRateMatrixRD!$B$1:$AR$1,0)),"n/a") -> 0.55 | M10: =IFERROR(INDEX([1]EskRateMatrixRD!$B$2:$AR$261,MATCH($H10,[1]EskRateMatrixRD!$B$2:$B$261,0),MATCH(M$6,[1]EskRateMatrixRD!$B$1:$AR$1,0)),"n/a") -> 20.17 | N10: =IFERROR(INDEX([1]EskRateMatrixRD!$B$2:$AR$261,MATCH($H10,[1]EskRateMatrixRD!$B$2:$B$261,0),MATCH(N$6,[1]EskRateMatrixRD!$B$1:$AR$1,0)),"n/a") -> 84.33 | O10: =IFERROR(INDEX([1]EskRateMatrixRD!$B$2:$AR$261,MATCH($H10,[1]EskRateMatrixRD!$B$2:$B$261,0),MATCH(O$6,[1]EskRateMatrixRD!$B$1:$AR$1,0)),"n/a") -> 25.03 | P10: =IFERROR(INDEX([1]EskRateMatrixRD!$B$2:$AR$261,MATCH($H10,[1]EskRateMatrixRD!$B$2:$B$261,0),MATCH(P$6,[1]EskRateMatrixRD!$B$1:$AR$1,0)),"n/a") -> n/a
C11: Businessrate 4 | D11: Non-Local Authority | G11: =C11&"_"&D11 -> Businessrate 4_Non-Local Authority | H11: B401N | I11: =IFERROR(INDEX([1]EskRateMatrixRD!$B$2:$AR$261,MATCH($H11,[1]EskRateMatrixRD!$B$2:$B$261,0),MATCH(I$6,[1]EskRateMatrixRD!$B$1:$AR$1,0)),"n/a") -> 0 | J11: =IFERROR(INDEX([1]EskRateMatrixRD!$B$2:$AR$261,MATCH($H11,[1]EskRateMatrixRD!$B$2:$B$261,0),MATCH(J$6,[1]EskRateMatrixRD!$B$1:$AR$1,0)),"n/a") -> 0 | K11: =IFERROR(INDEX([1]EskRateMatrixRD!$B$2:$AR$261,MATCH($H11,[1]EskRateMatrixRD!$B$2:$B$261,0),MATCH(K$6,[1]EskRateMatrixRD!$B$1:$AR$1,0)),"n/a") -> 384.54 | L11: =IFERROR(INDEX([1]EskRateMatrixRD!$B$2:$AR$261,MATCH($H11,[1]EskRateMatrixRD!$B$2:$B$261,0),MATCH(L$6,[1]EskRateMatrixRD!$B$1:$AR$1,0)),"n/a") -> 0.55 | M11: =IFERROR(INDEX([1]EskRateMatrixRD!$B$2:$AR$261,MATCH($H11,[1]EskRateMatrixRD!$B$2:$B$261,0),MATCH(M$6,[1]EskRateMatrixRD!$B$1:$AR$1,0)),"n/a") -> 20.17 | N11: =IFERROR(INDEX([1]EskRateMatrixRD!$B$2:$AR$261,MATCH($H11,[1]EskRateMatrixRD!$B$2:$B$261,0),MATCH(N$6,[1]EskRateMatrixRD!$B$1:$AR$1,0)),"n/a") -> 0 | O11: =IFERROR(INDEX([1]EskRateMatrixRD!$B$2:$AR$261,MATCH($H11,[1]EskRateMatrixRD!$B$2:$B$261,0),MATCH(O$6,[1]EskRateMatrixRD!$B$1:$AR$1,0)),"n/a") -> 0 | P11: =IFERROR(INDEX([1]EskRateMatrixRD!$B$2:$AR$261,MATCH($H11,[1]EskRateMatrixRD!$B$2:$B$261,0),MATCH(P$6,[1]EskRateMatrixRD!$B$1:$AR$1,0)),"n/a") -> n/a
C12: Homepower Bulk | D12: Non-Local Authority | G12: =C12&"_"&D12 -> Homepower Bulk_Non-Local Authority | H12: HB01N | I12: =IFERROR(INDEX([1]EskRateMatrixRD!$B$2:$AR$261,MATCH($H12,[1]EskRateMatrixRD!$B$2:$B$261,0),MATCH(I$6,[1]EskRateMatrixRD!$B$1:$AR$1,0)),"n/a") -> 0 | J12: =IFERROR(INDEX([1]EskRateMatrixRD!$B$2:$AR$261,MATCH($H12,[1]EskRateMatrixRD!$B$2:$B$261,0),MATCH(J$6,[1]EskRateMatrixRD!$B$1:$AR$1,0)),"n/a") -> 0 | K12: =IFERROR(INDEX([1]EskRateMatrixRD!$B$2:$AR$261,MATCH($H12,[1]EskRateMatrixRD!$B$2:$B$261,0),MATCH(K$6,[1]EskRateMatrixRD!$B$1:$AR$1,0)),"n/a") -> 219.88 | L12: =IFERROR(INDEX([1]EskRateMatrixRD!$B$2:$AR$261,MATCH($H12,[1]EskRateMatrixRD!$B$2:$B$261,0),MATCH(L$6,[1]EskRateMatrixRD!$B$1:$AR$1,0)),"n/a") -> 0 | M12: =IFERROR(INDEX([1]EskRateMatrixRD!$B$2:$AR$261,MATCH($H12,[1]EskRateMatrixRD!$B$2:$B$261,0),MATCH(M$6,[1]EskRateMatrixRD!$B$1:$AR$1,0)),"n/a") -> 0 | N12: =IFERROR(INDEX([1]EskRateMatrixRD!$B$2:$AR$261,MATCH($H12,[1]EskRateMatrixRD!$B$2:$B$261,0),MATCH(N$5,[1]EskRateMatrixRD!$B$1:$AR$1,0)),"n/a") -> 45.51 | O12: =IFERROR(INDEX([1]EskRateMatrixRD!$B$2:$AR$261,MATCH($H12,[1]EskRateMatrixRD!$B$2:$B$261,0),MATCH(O$6,[1]EskRateMatrixRD!$B$1:$AR$1,0)),"n/a") -> 0 | P12: =IFERROR(INDEX([1]EskRateMatrixRD!$B$2:$AR$261,MATCH($H12,[1]EskRateMatrixRD!$B$2:$B$261,0),MATCH(P$6,[1]EskRateMatrixRD!$B$1:$AR$1,0)),"n/a") -> n/a
C13: Homepower 1 | D13: Non-Local Authority | G13: =C13&"_"&D13 -> Homepower 1_Non-Local Authority | H13: H101N | I13: =IFERROR(INDEX([1]EskRateMatrixRD!$B$2:$AR$261,MATCH($H13,[1]EskRateMatrixRD!$B$2:$B$261,0),MATCH(I$6,[1]EskRateMatrixRD!$B$1:$AR$1,0)),"n/a") -> 167.47 | J13: =IFERROR(INDEX([1]EskRateMatrixRD!$B$2:$AR$261,MATCH($H13,[1]EskRateMatrixRD!$B$2:$B$261,0),MATCH(J$6,[1]EskRateMatrixRD!$B$1:$AR$1,0)),"n/a") -> 264.44 | K13: =IFERROR(INDEX([1]EskRateMatrixRD!$B$2:$AR$261,MATCH($H13,[1]EskRateMatrixRD!$B$2:$B$261,0),MATCH(K$6,[1]EskRateMatrixRD!$B$1:$AR$1,0)),"n/a") -> 0 | L13: =IFERROR(INDEX([1]EskRateMatrixRD!$B$2:$AR$261,MATCH($H13,[1]EskRateMatrixRD!$B$2:$B$261,0),MATCH(L$6,[1]EskRateMatrixRD!$B$1:$AR$1,0)),"n/a") -> 0 | M13: =IFERROR(INDEX([1]EskRateMatrixRD!$B$2:$AR$261,MATCH($H13,[1]EskRateMatrixRD!$B$2:$B$261,0),MATCH(M$6,[1]EskRateMatrixRD!$B$1:$AR$1,0)),"n/a") -> 0 | N13: =IFERROR(INDEX([1]EskRateMatrixRD!$B$2:$AR$261,MATCH($H13,[1]EskRateMatrixRD!$B$2:$B$261,0),MATCH(N$6,[1]EskRateMatrixRD!$B$1:$AR$1,0)),"n/a") -> 7.17 | O13: =IFERROR(INDEX([1]EskRateMatrixRD!$B$2:$AR$261,MATCH($H13,[1]EskRateMatrixRD!$B$2:$B$261,0),MATCH(O$6,[1]EskRateMatrixRD!$B$1:$AR$1,0)),"n/a") -> 0 | P13: =IFERROR(INDEX([1]EskRateMatrixRD!$B$2:$AR$261,MATCH($H13,[1]EskRateMatrixRD!$B$2:$B$261,0),MATCH(P$6,[1]EskRateMatrixRD!$B$1:$AR$1,0)),"n/a") -> n/a
C14: Homepower 2 | D14: Non-Local Authority | G14: Homepower 2_Non-Local Authority | H14: H201N | I14: =IFERROR(INDEX([1]EskRateMatrixRD!$B$2:$AR$261,MATCH($H14,[1]EskRateMatrixRD!$B$2:$B$261,0),MATCH(I$6,[1]EskRateMatrixRD!$B$1:$AR$1,0)),"n/a") -> 167.47 | J14: =IFERROR(INDEX([1]EskRateMatrixRD!$B$2:$AR$261,MATCH($H14,[1]EskRateMatrixRD!$B$2:$B$261,0),MATCH(J$6,[1]EskRateMatrixRD!$B$1:$AR$1,0)),"n/a") -> 257.84 | K14: =IFERROR(INDEX([1]EskRateMatrixRD!$B$2:$AR$261,MATCH($H14,[1]EskRateMatrixRD!$B$2:$B$261,0),MATCH(K$6,[1]EskRateMatrixRD!$B$1:$AR$1,0)),"n/a") -> 0 | L14: =IFERROR(INDEX([1]EskRateMatrixRD!$B$2:$AR$261,MATCH($H14,[1]EskRateMatrixRD!$B$2:$B$261,0),MATCH(L$6,[1]EskRateMatrixRD!$B$1:$AR$1,0)),"n/a") -> 0 | M14: =IFERROR(INDEX([1]EskRateMatrixRD!$B$2:$AR$261,MATCH($H14,[1]EskRateMatrixRD!$B$2:$B$261,0),MATCH(M$6,[1]EskRateMatrixRD!$B$1:$AR$1,0)),"n/a") -> 0 | N14: =IFERROR(INDEX([1]EskRateMatrixRD!$B$2:$AR$261,MATCH($H14,[1]EskRateMatrixRD!$B$2:$B$261,0),MATCH(N$6,[1]EskRateMatrixRD!$B$1:$AR$1,0)),"n/a") -> 13.44 | O14: =IFERROR(INDEX([1]EskRateMatrixRD!$B$2:$AR$261,MATCH($H14,[1]EskRateMatrixRD!$B$2:$B$261,0),MATCH(O$6,[1]EskRateMatrixRD!$B$1:$AR$1,0)),"n/a") -> 0 | P14: =IFERROR(INDEX([1]EskRateMatrixRD!$B$2:$AR$261,MATCH($H14,[1]EskRateMatrixRD!$B$2:$B$261,0),MATCH(P$6,[1]EskRateMatrixRD!$B$1:$AR$1,0)),"n/a") -> n/a
C15: Homepower 3 | D15: Non-Local Authority | G15: Homepower 3_Non-Local Authority | H15: H301N | I15: =IFERROR(INDEX([1]EskRateMatrixRD!$B$2:$AR$261,MATCH($H15,[1]EskRateMatrixRD!$B$2:$B$261,0),MATCH(I$6,[1]EskRateMatrixRD!$B$1:$AR$1,0)),"n/a") -> 167.47 | J15: =IFERROR(INDEX([1]EskRateMatrixRD!$B$2:$AR$261,MATCH($H15,[1]EskRateMatrixRD!$B$2:$B$261,0),MATCH(J$6,[1]EskRateMatrixRD!$B$1:$AR$1,0)),"n/a") -> 257.84 | K15: =IFERROR(INDEX([1]EskRateMatrixRD!$B$2:$AR$261,MATCH($H15,[1]EskRateMatrixRD!$B$2:$B$261,0),MATCH(K$6,[1]EskRateMatrixRD!$B$1:$AR$1,0)),"n/a") -> 0 | L15: =IFERROR(INDEX([1]EskRateMatrixRD!$B$2:$AR$261,MATCH($H15,[1]EskRateMatrixRD!$B$2:$B$261,0),MATCH(L$6,[1]EskRateMatrixRD!$B$1:$AR$1,0)),"n/a") -> 0 | M15: =IFERROR(INDEX([1]EskRateMatrixRD!$B$2:$AR$261,MATCH($H15,[1]EskRateMatrixRD!$B$2:$B$261,0),MATCH(M$6,[1]EskRateMatrixRD!$B$1:$AR$1,0)),"n/a") -> 0 | N15: =IFERROR(INDEX([1]EskRateMatrixRD!$B$2:$AR$261,MATCH($H15,[1]EskRateMatrixRD!$B$2:$B$261,0),MATCH(N$6,[1]EskRateMatrixRD!$B$1:$AR$1,0)),"n/a") -> 27.75 | O15: =IFERROR(INDEX([1]EskRateMatrixRD!$B$2:$AR$261,MATCH($H15,[1]EskRateMatrixRD!$B$2:$B$261,0),MATCH(O$6,[1]EskRateMatrixRD!$B$1:$AR$1,0)),"n/a") -> 0 | P15: =IFERROR(INDEX([1]EskRateMatrixRD!$B$2:$AR$261,MATCH($H15,[1]EskRateMatrixRD!$B$2:$B$261,0),MATCH(P$6,[1]EskRateMatrixRD!$B$1:$AR$1,0)),"n/a") -> n/a
C16: Homepower 4 | D16: Non-Local Authority | G16: Homepower 4_Non-Local Authority | H16: H401N | I16: =IFERROR(INDEX([1]EskRateMatrixRD!$B$2:$AR$261,MATCH($H16,[1]EskRateMatrixRD!$B$2:$B$261,0),MATCH(I$6,[1]EskRateMatrixRD!$B$1:$AR$1,0)),"n/a") -> 167.47 | J16: =IFERROR(INDEX([1]EskRateMatrixRD!$B$2:$AR$261,MATCH($H16,[1]EskRateMatrixRD!$B$2:$B$261,0),MATCH(J$6,[1]EskRateMatrixRD!$B$1:$AR$1,0)),"n/a") -> 269.31 | K16: =IFERROR(INDEX([1]EskRateMatrixRD!$B$2:$AR$261,MATCH($H16,[1]EskRateMatrixRD!$B$2:$B$261,0),MATCH(K$6,[1]EskRateMatrixRD!$B$1:$AR$1,0)),"n/a") -> 0 | L16: =IFERROR(INDEX([1]EskRateMatrixRD!$B$2:$AR$261,MATCH($H16,[1]EskRateMatrixRD!$B$2:$B$261,0),MATCH(L$6,[1]EskRateMatrixRD!$B$1:$AR$1,0)),"n/a") -> 0 | M16: =IFERROR(INDEX([1]EskRateMatrixRD!$B$2:$AR$261,MATCH($H16,[1]EskRateMatrixRD!$B$2:$B$261,0),MATCH(M$6,[1]EskRateMatrixRD!$B$1:$AR$1,0)),"n/a") -> 0 | N16: =IFERROR(INDEX([1]EskRateMatrixRD!$B$2:$AR$261,MATCH($H16,[1]EskRateMatrixRD!$B$2:$B$261,0),MATCH(N$6,[1]EskRateMatrixRD!$B$1:$AR$1,0)),"n/a") -> 4.38 | O16: =IFERROR(INDEX([1]EskRateMatrixRD!$B$2:$AR$261,MATCH($H16,[1]EskRateMatrixRD!$B$2:$B$261,0),MATCH(O$6,[1]EskRateMatrixRD!$B$1:$AR$1,0)),"n/a") -> 0 | P16: =IFERROR(INDEX([1]EskRateMatrixRD!$B$2:$AR$261,MATCH($H16,[1]EskRateMatrixRD!$B$2:$B$261,0),MATCH(P$6,[1]EskRateMatrixRD!$B$1:$AR$1,0)),"n/a") -> n/a
C17: Homelight 20A | D17: Non-Local Authority | G17: Homelight 20A_Non-Local Authority | H17: HL2001N | I17: =IFERROR(INDEX([1]EskRateMatrixRD!$B$2:$AR$261,MATCH($H17,[1]EskRateMatrixRD!$B$2:$B$261,0),MATCH(I$6,[1]EskRateMatrixRD!$B$1:$AR$1,0)),"n/a") -> 139.99 | J17: =IFERROR(INDEX([1]EskRateMatrixRD!$B$2:$AR$261,MATCH($H17,[1]EskRateMatrixRD!$B$2:$B$261,0),MATCH(J$6,[1]EskRateMatrixRD!$B$1:$AR$1,0)),"n/a") -> 158.62 | K17: =IFERROR(INDEX([1]EskRateMatrixRD!$B$2:$AR$261,MATCH($H17,[1]EskRateMatrixRD!$B$2:$B$261,0),MATCH(K$6,[1]EskRateMatrixRD!$B$1:$AR$1,0)),"n/a") -> 0 | L17: =IFERROR(INDEX([1]EskRateMatrixRD!$B$2:$AR$261,MATCH($H17,[1]EskRateMatrixRD!$B$2:$B$261,0),MATCH(L$6,[1]EskRateMatrixRD!$B$1:$AR$1,0)),"n/a") -> 0 | M17: =IFERROR(INDEX([1]EskRateMatrixRD!$B$2:$AR$261,MATCH($H17,[1]EskRateMatrixRD!$B$2:$B$261,0),MATCH(M$6,[1]EskRateMatrixRD!$B$1:$AR$1,0)),"n/a") -> 0 | N17: =IFERROR(INDEX([1]EskRateMatrixRD!$B$2:$AR$261,MATCH($H17,[1]EskRateMatrixRD!$B$2:$B$261,0),MATCH(N$6,[1]EskRateMatrixRD!$B$1:$AR$1,0)),"n/a") -> 0 | O17: =IFERROR(INDEX([1]EskRateMatrixRD!$B$2:$AR$261,MATCH($H17,[1]EskRateMatrixRD!$B$2:$B$261,0),MATCH(O$6,[1]EskRateMatrixRD!$B$1:$AR$1,0)),"n/a") -> 0 | P17: =IFERROR(INDEX([1]EskRateMatrixRD!$B$2:$AR$261,MATCH($H17,[1]EskRateMatrixRD!$B$2:$B$261,0),MATCH(P$6,[1]EskRateMatrixRD!$B$1:$AR$1,0)),"n/a") -> n/a
C18: Homelight 60A | D18: Non-Local Authority | G18: Homelight 60A_Non-Local Authority | H18: HL6001N | I18: =IFERROR(INDEX([1]EskRateMatrixRD!$B$2:$AR$261,MATCH($H18,[1]EskRateMatrixRD!$B$2:$B$261,0),MATCH(I$6,[1]EskRateMatrixRD!$B$1:$AR$1,0)),"n/a") -> 158.44 | J18: =IFERROR(INDEX([1]EskRateMatrixRD!$B$2:$AR$261,MATCH($H18,[1]EskRateMatrixRD!$B$2:$B$261,0),MATCH(J$6,[1]EskRateMatrixRD!$B$1:$AR$1,0)),"n/a") -> 269.31 | K18: =IFERROR(INDEX([1]EskRateMatrixRD!$B$2:$AR$261,MATCH($H18,[1]EskRateMatrixRD!$B$2:$B$261,0),MATCH(K$6,[1]EskRateMatrixRD!$B$1:$AR$1,0)),"n/a") -> 0 | L18: =IFERROR(INDEX([1]EskRateMatrixRD!$B$2:$AR$261,MATCH($H18,[1]EskRateMatrixRD!$B$2:$B$261,0),MATCH(L$6,[1]EskRateMatrixRD!$B$1:$AR$1,0)),"n/a") -> 0 | M18: =IFERROR(INDEX([1]EskRateMatrixRD!$B$2:$AR$261,MATCH($H18,[1]EskRateMatrixRD!$B$2:$B$261,0),MATCH(M$6,[1]EskRateMatrixRD!$B$1:$AR$1,0)),"n/a") -> 0 | N18: =IFERROR(INDEX([1]EskRateMatrixRD!$B$2:$AR$261,MATCH($H18,[1]EskRateMatrixRD!$B$2:$B$261,0),MATCH(N$6,[1]EskRateMatrixRD!$B$1:$AR$1,0)),"n/a") -> 0 | O18: =IFERROR(INDEX([1]EskRateMatrixRD!$B$2:$AR$261,MATCH($H18,[1]EskRateMatrixRD!$B$2:$B$261,0),MATCH(O$6,[1]EskRateMatrixRD!$B$1:$AR$1,0)),"n/a") -> 0 | P18: =IFERROR(INDEX([1]EskRateMatrixRD!$B$2:$AR$261,MATCH($H18,[1]EskRateMatrixRD!$B$2:$B$261,0),MATCH(P$6,[1]EskRateMatrixRD!$B$1:$AR$1,0)),"n/a") -> n/a
C19: Landrate 1 | D19: Non-Local Authority | G19: Landrate 1_Non-Local Authority | H19: L101N | I19: =IFERROR(INDEX([1]EskRateMatrixRD!$B$2:$AR$261,MATCH($H19,[1]EskRateMatrixRD!$B$2:$B$261,0),MATCH(I$6,[1]EskRateMatrixRD!$B$1:$AR$1,0)),"n/a") -> 0 | J19: =IFERROR(INDEX([1]EskRateMatrixRD!$B$2:$AR$261,MATCH($H19,[1]EskRateMatrixRD!$B$2:$B$261,0),MATCH(J$6,[1]EskRateMatrixRD!$B$1:$AR$1,0)),"n/a") -> 0 | K19: =IFERROR(INDEX([1]EskRateMatrixRD!$B$2:$AR$261,MATCH($H19,[1]EskRateMatrixRD!$B$2:$B$261,0),MATCH(K$6,[1]EskRateMatrixRD!$B$1:$AR$1,0)),"n/a") -> 142.19 | L19: =IFERROR(INDEX([1]EskRateMatrixRD!$B$2:$AR$261,MATCH($H19,[1]EskRateMatrixRD!$B$2:$B$261,0),MATCH(L$6,[1]EskRateMatrixRD!$B$1:$AR$1,0)),"n/a") -> 0.55 | M19: =IFERROR(INDEX([1]EskRateMatrixRD!$B$2:$AR$261,MATCH($H19,[1]EskRateMatrixRD!$B$2:$B$261,0),MATCH(M$6,[1]EskRateMatrixRD!$B$1:$AR$1,0)),"n/a") -> 35.53 | N19: =IFERROR(INDEX([1]EskRateMatrixRD!$B$2:$AR$261,MATCH($H19,[1]EskRateMatrixRD!$B$2:$B$261,0),MATCH(N$6,[1]EskRateMatrixRD!$B$1:$AR$1,0)),"n/a") -> 37.98 | O19: =IFERROR(INDEX([1]EskRateMatrixRD!$B$2:$AR$261,MATCH($H19,[1]EskRateMatrixRD!$B$2:$B$261,0),MATCH(O$6,[1]EskRateMatrixRD!$B$1:$AR$1,0)),"n/a") -> 31.54 | P19: =IFERROR(INDEX([1]EskRateMatrixRD!$B$2:$AR$261,MATCH($H19,[1]EskRateMatrixRD!$B$2:$B$261,0),MATCH(P$6,[1]EskRateMatrixRD!$B$1:$AR$1,0)),"n/a") -> n/a
C20: Landrate 2 | D20: Non-Local Authority | G20: Landrate 2_Non-Local Authority | H20: L201N | I20: =IFERROR(INDEX([1]EskRateMatrixRD!$B$2:$AR$261,MATCH($H20,[1]EskRateMatrixRD!$B$2:$B$261,0),MATCH(I$6,[1]EskRateMatrixRD!$B$1:$AR$1,0)),"n/a") -> 0 | J20: =IFERROR(INDEX([1]EskRateMatrixRD!$B$2:$AR$261,MATCH($H20,[1]EskRateMatrixRD!$B$2:$B$261,0),MATCH(J$6,[1]EskRateMatrixRD!$B$1:$AR$1,0)),"n/a") -> 0 | K20: =IFERROR(INDEX([1]EskRateMatrixRD!$B$2:$AR$261,MATCH($H20,[1]EskRateMatrixRD!$B$2:$B$261,0),MATCH(K$6,[1]EskRateMatrixRD!$B$1:$AR$1,0)),"n/a") -> 142.19 | L20: =IFERROR(INDEX([1]EskRateMatrixRD!$B$2:$AR$261,MATCH($H20,[1]EskRateMatrixRD!$B$2:$B$261,0),MATCH(L$6,[1]EskRateMatrixRD!$B$1:$AR$1,0)),"n/a") -> 0.55 | M20: =IFERROR(INDEX([1]EskRateMatrixRD!$B$2:$AR$261,MATCH($H20,[1]EskRateMatrixRD!$B$2:$B$261,0),MATCH(M$6,[1]EskRateMatrixRD!$B$1:$AR$1,0)),"n/a") -> 35.53 | N20: =IFERROR(INDEX([1]EskRateMatrixRD!$B$2:$AR$261,MATCH($H20,[1]EskRateMatrixRD!$B$2:$B$261,0),MATCH(N$6,[1]EskRateMatrixRD!$B$1:$AR$1,0)),"n/a") -> 58.38 | O20: =IFERROR(INDEX([1]EskRateMatrixRD!$B$2:$AR$261,MATCH($H20,[1]EskRateMatrixRD!$B$2:$B$261,0),MATCH(O$6,[1]EskRateMatrixRD!$B$1:$AR$1,0)),"n/a") -> 31.54 | P20: =IFERROR(INDEX([1]EskRateMatrixRD!$B$2:$AR$261,MATCH($H20,[1]EskRateMatrixRD!$B$2:$B$261,0),MATCH(P$6,[1]EskRateMatrixRD!$B$1:$AR$1,0)),"n/a") -> n/a
C21: Landrate 3 | D21: Non-Local Authority | G21: Landrate 3_Non-Local Authority | H21: L301N | I21: =IFERROR(INDEX([1]EskRateMatrixRD!$B$2:$AR$261,MATCH($H21,[1]EskRateMatrixRD!$B$2:$B$261,0),MATCH(I$6,[1]EskRateMatrixRD!$B$1:$AR$1,0)),"n/a") -> 0 | J21: =IFERROR(INDEX([1]EskRateMatrixRD!$B$2:$AR$261,MATCH($H21,[1]EskRateMatrixRD!$B$2:$B$261,0),MATCH(J$6,[1]EskRateMatrixRD!$B$1:$AR$1,0)),"n/a") -> 0 | K21: =IFERROR(INDEX([1]EskRateMatrixRD!$B$2:$AR$261,MATCH($H21,[1]EskRateMatrixRD!$B$2:$B$261,0),MATCH(K$6,[1]EskRateMatrixRD!$B$1:$AR$1,0)),"n/a") -> 142.19 | L21: =IFERROR(INDEX([1]EskRateMatrixRD!$B$2:$AR$261,MATCH($H21,[1]EskRateMatrixRD!$B$2:$B$261,0),MATCH(L$6,[1]EskRateMatrixRD!$B$1:$AR$1,0)),"n/a") -> 0.55 | M21: =IFERROR(INDEX([1]EskRateMatrixRD!$B$2:$AR$261,MATCH($H21,[1]EskRateMatrixRD!$B$2:$B$261,0),MATCH(M$6,[1]EskRateMatrixRD!$B$1:$AR$1,0)),"n/a") -> 35.53 | N21: =IFERROR(INDEX([1]EskRateMatrixRD!$B$2:$AR$261,MATCH($H21,[1]EskRateMatrixRD!$B$2:$B$261,0),MATCH(N$6,[1]EskRateMatrixRD!$B$1:$AR$1,0)),"n/a") -> 93.33 | O21: =IFERROR(INDEX([1]EskRateMatrixRD!$B$2:$AR$261,MATCH($H21,[1]EskRateMatrixRD!$B$2:$B$261,0),MATCH(O$6,[1]EskRateMatrixRD!$B$1:$AR$1,0)),"n/a") -> 31.54 | P21: =IFERROR(INDEX([1]EskRateMatrixRD!$B$2:$AR$261,MATCH($H21,[1]EskRateMatrixRD!$B$2:$B$261,0),MATCH(P$6,[1]EskRateMatrixRD!$B$1:$AR$1,0)),"n/a") -> n/a
C22: Landrate 4 | D22: Non-Local Authority | G22: Landrate 4_Non-Local Authority | H22: L401N | I22: =IFERROR(INDEX([1]EskRateMatrixRD!$B$2:$AR$261,MATCH($H22,[1]EskRateMatrixRD!$B$2:$B$261,0),MATCH(I$6,[1]EskRateMatrixRD!$B$1:$AR$1,0)),"n/a") -> 0 | J22: =IFERROR(INDEX([1]EskRateMatrixRD!$B$2:$AR$261,MATCH($H22,[1]EskRateMatrixRD!$B$2:$B$261,0),MATCH(J$6,[1]EskRateMatrixRD!$B$1:$AR$1,0)),"n/a") -> 0 | K22: =IFERROR(INDEX([1]EskRateMatrixRD!$B$2:$AR$261,MATCH($H22,[1]EskRateMatrixRD!$B$2:$B$261,0),MATCH(K$6,[1]EskRateMatrixRD!$B$1:$AR$1,0)),"n/a") -> 307.12 | L22: =IFERROR(INDEX([1]EskRateMatrixRD!$B$2:$AR$261,MATCH($H22,[1]EskRateMatrixRD!$B$2:$B$261,0),MATCH(L$6,[1]EskRateMatrixRD!$B$1:$AR$1,0)),"n/a") -> 0.55 | M22: =IFERROR(INDEX([1]EskRateMatrixRD!$B$2:$AR$261,MATCH($H22,[1]EskRateMatrixRD!$B$2:$B$261,0),MATCH(M$6,[1]EskRateMatrixRD!$B$1:$AR$1,0)),"n/a") -> 35.53 | N22: =IFERROR(INDEX([1]EskRateMatrixRD!$B$2:$AR$261,MATCH($H22,[1]EskRateMatrixRD!$B$2:$B$261,0),MATCH(N$6,[1]EskRateMatrixRD!$B$1:$AR$1,0)),"n/a") -> 30.24 | O22: =IFERROR(INDEX([1]EskRateMatrixRD!$B$2:$AR$261,MATCH($H22,[1]EskRateMatrixRD!$B$2:$B$261,0),MATCH(O$6,[1]EskRateMatrixRD!$B$1:$AR$1,0)),"n/a") -> 0 | P22: =IFERROR(INDEX([1]EskRateMatrixRD!$B$2:$AR$261,MATCH($H22,[1]EskRateMatrixRD!$B$2:$B$261,0),MATCH(P$6,[1]EskRateMatrixRD!$B$1:$AR$1,0)),"n/a") -> n/a
C23: Landrate Dx | D23: Non-Local Authority | G23: Landrate Dx_Non-Local Authority | H23: Ld01N | I23: =IFERROR(INDEX([1]EskRateMatrixRD!$B$2:$AR$261,MATCH($H23,[1]EskRateMatrixRD!$B$2:$B$261,0),MATCH(I$6,[1]EskRateMatrixRD!$B$1:$AR$1,0)),"n/a") -> 0 | J23: =IFERROR(INDEX([1]EskRateMatrixRD!$B$2:$AR$261,MATCH($H23,[1]EskRateMatrixRD!$B$2:$B$261,0),MATCH(J$6,[1]EskRateMatrixRD!$B$1:$AR$1,0)),"n/a") -> 0 | K23: =IFERROR(INDEX([1]EskRateMatrixRD!$B$2:$AR$261,MATCH($H23,[1]EskRateMatrixRD!$B$2:$B$261,0),MATCH(K$6,[1]EskRateMatrixRD!$B$1:$AR$1,0)),"n/a") -> 0 | L23: =IFERROR(INDEX([1]EskRateMatrixRD!$B$2:$AR$261,MATCH($H23,[1]EskRateMatrixRD!$B$2:$B$261,0),MATCH(L$6,[1]EskRateMatrixRD!$B$1:$AR$1,0)),"n/a") -> 0 | M23: =IFERROR(INDEX([1]EskRateMatrixRD!$B$2:$AR$261,MATCH($H23,[1]EskRateMatrixRD!$B$2:$B$261,0),MATCH(M$6,[1]EskRateMatrixRD!$B$1:$AR$1,0)),"n/a") -> 0 | N23: =IFERROR(INDEX([1]EskRateMatrixRD!$B$2:$AR$261,MATCH($H23,[1]EskRateMatrixRD!$B$2:$B$261,0),MATCH(N$6,[1]EskRateMatrixRD!$B$1:$AR$1,0)),"n/a") -> 0 | O23: =IFERROR(INDEX([1]EskRateMatrixRD!$B$2:$AR$261,MATCH($H23,[1]EskRateMatrixRD!$B$2:$B$261,0),MATCH(O$6,[1]EskRateMatrixRD!$B$1:$AR$1,0)),"n/a") -> 67.6409 | P23: =IFERROR(INDEX([1]EskRateMatrixRD!$B$2:$AR$261,MATCH($H23,[1]EskRateMatrixRD!$B$2:$B$261,0),MATCH(P$6,[1]EskRateMatrixRD!$B$1:$AR$1,0)),"n/a") -> n/a
C24: Landlight 20A | D24: Non-Local Authority | G24: =C24&"_"&D24 -> Landlight 20A_Non-Local Authority | H24: =INDEX(Matrix_Tariff_Map,MATCH(C24,Matrix_Model_Tariffs,0),2)&IFERROR(INDEX(Matrix_Transmission_Map,MATCH(E24,Matrix_Model_Transmission,0),2),0)&IFERROR(INDEX(Matrix_Voltage_Map,MATCH(F24,Matrix_Model_Voltage,0),2),1)&INDEX(Matrix_Category_Map,MATCH(D24,Matrix_Model_Category,0),2) -> Lt2001N | I24: =IFERROR(INDEX([1]EskRateMatrixRD!$B$2:$AR$261,MATCH($H24,[1]EskRateMatrixRD!$B$2:$B$261,0),MATCH(I$6,[1]EskRateMatrixRD!$B$1:$AR$1,0)),"n/a") -> 0 | J24: =IFERROR(INDEX([1]EskRateMatrixRD!$B$2:$AR$261,MATCH($H24,[1]EskRateMatrixRD!$B$2:$B$261,0),MATCH(J$6,[1]EskRateMatrixRD!$B$1:$AR$1,0)),"n/a") -> 0 | K24: =IFERROR(INDEX([1]EskRateMatrixRD!$B$2:$AR$261,MATCH($H24,[1]EskRateMatrixRD!$B$2:$B$261,0),MATCH(K$6,[1]EskRateMatrixRD!$B$1:$AR$1,0)),"n/a") -> 408.87 | L24: =IFERROR(INDEX([1]EskRateMatrixRD!$B$2:$AR$261,MATCH($H24,[1]EskRateMatrixRD!$B$2:$B$261,0),MATCH(L$6,[1]EskRateMatrixRD!$B$1:$AR$1,0)),"n/a") -> 0 | M24: =IFERROR(INDEX([1]EskRateMatrixRD!$B$2:$AR$261,MATCH($H24,[1]EskRateMatrixRD!$B$2:$B$261,0),MATCH(M$6,[1]EskRateMatrixRD!$B$1:$AR$1,0)),"n/a") -> 0 | N24: =IFERROR(INDEX([1]EskRateMatrixRD!$B$2:$AR$261,MATCH($H24,[1]EskRateMatrixRD!$B$2:$B$261,0),MATCH(N$6,[1]EskRateMatrixRD!$B$1:$AR$1,0)),"n/a") -> 0 | O24: =IFERROR(INDEX([1]EskRateMatrixRD!$B$2:$AR$261,MATCH($H24,[1]EskRateMatrixRD!$B$2:$B$261,0),MATCH(O$6,[1]EskRateMatrixRD!$B$1:$AR$1,0)),"n/a") -> 0 | P24: =IFERROR(INDEX([1]EskRateMatrixRD!$B$2:$AR$261,MATCH($H24,[1]EskRateMatrixRD!$B$2:$B$261,0),MATCH(P$6,[1]EskRateMatrixRD!$B$1:$AR$1,0)),"n/a") -> n/a
C25: Landlight 60A | D25: Non-Local Authority | G25: =C25&"_"&D25 -> Landlight 60A_Non-Local Authority | H25: =INDEX(Matrix_Tariff_Map,MATCH(C25,Matrix_Model_Tariffs,0),2)&IFERROR(INDEX(Matrix_Transmission_Map,MATCH(E25,Matrix_Model_Transmission,0),2),0)&IFERROR(INDEX(Matrix_Voltage_Map,MATCH(F25,Matrix_Model_Voltage,0),2),1)&INDEX(Matrix_Category_Map,MATCH(D25,Matrix_Model_Category,0),2) -> Lt6001N | I25: =IFERROR(INDEX([1]EskRateMatrixRD!$B$2:$AR$261,MATCH($H25,[1]EskRateMatrixRD!$B$2:$B$261,0),MATCH(I$6,[1]EskRateMatrixRD!$B$1:$AR$1,0)),"n/a") -> 0 | J25: =IFERROR(INDEX([1]EskRateMatrixRD!$B$2:$AR$261,MATCH($H25,[1]EskRateMatrixRD!$B$2:$B$261,0),MATCH(J$6,[1]EskRateMatrixRD!$B$1:$AR$1,0)),"n/a") -> 0 | K25: =IFERROR(INDEX([1]EskRateMatrixRD!$B$2:$AR$261,MATCH($H25,[1]EskRateMatrixRD!$B$2:$B$261,0),MATCH(K$6,[1]EskRateMatrixRD!$B$1:$AR$1,0)),"n/a") -> 527.08 | L25: =IFERROR(INDEX([1]EskRateMatrixRD!$B$2:$AR$261,MATCH($H25,[1]EskRateMatrixRD!$B$2:$B$261,0),MATCH(L$6,[1]EskRateMatrixRD!$B$1:$AR$1,0)),"n/a") -> 0 | M25: =IFERROR(INDEX([1]EskRateMatrixRD!$B$2:$AR$261,MATCH($H25,[1]EskRateMatrixRD!$B$2:$B$261,0),MATCH(M$6,[1]EskRateMatrixRD!$B$1:$AR$1,0)),"n/a") -> 0 | N25: =IFERROR(INDEX([1]EskRateMatrixRD!$B$2:$AR$261,MATCH($H25,[1]EskRateMatrixRD!$B$2:$B$261,0),MATCH(N$6,[1]EskRateMatrixRD!$B$1:$AR$1,0)),"n/a") -> 0 | O25: =IFERROR(INDEX([1]EskRateMatrixRD!$B$2:$AR$261,MATCH($H25,[1]EskRateMatrixRD!$B$2:$B$261,0),MATCH(O$6,[1]EskRateMatrixRD!$B$1:$AR$1,0)),"n/a") -> 0 | P25: =IFERROR(INDEX([1]EskRateMatrixRD!$B$2:$AR$261,MATCH($H25,[1]EskRateMatrixRD!$B$2:$B$261,0),MATCH(P$6,[1]EskRateMatrixRD!$B$1:$AR$1,0)),"n/a") -> n/a
C26: Public Lighting All Night | D26: Non-Local Authority | G26: =C26&"_"&D26 -> Public Lighting All Night_Non-Local Authority | H26: =INDEX(Matrix_Tariff_Map,MATCH(C26,Matrix_Model_Tariffs,0),2)&IFERROR(INDEX(Matrix_Transmission_Map,MATCH(E26,Matrix_Model_Transmission,0),2),0)&IFERROR(INDEX(Matrix_Voltage_Map,MATCH(F26,Matrix_Model_Voltage,0),2),1)&INDEX(Matrix_Category_Map,MATCH(D26,Matrix_Model_Category,0),2) -> Pa01N | I26: =IFERROR(INDEX([1]EskRateMatrixRD!$B$2:$AR$261,MATCH($H26,[1]EskRateMatrixRD!$B$2:$B$261,0),MATCH(I$6,[1]EskRateMatrixRD!$B$1:$AR$1,0)),"n/a") -> 0 | J26: =IFERROR(INDEX([1]EskRateMatrixRD!$B$2:$AR$261,MATCH($H26,[1]EskRateMatrixRD!$B$2:$B$261,0),MATCH(J$6,[1]EskRateMatrixRD!$B$1:$AR$1,0)),"n/a") -> 0 | K26: =IFERROR(INDEX([1]EskRateMatrixRD!$B$2:$AR$261,MATCH($H26,[1]EskRateMatrixRD!$B$2:$B$261,0),MATCH(K$6,[1]EskRateMatrixRD!$B$1:$AR$1,0)),"n/a") -> 113.71 | L26: =IFERROR(INDEX([1]EskRateMatrixRD!$B$2:$AR$261,MATCH($H26,[1]EskRateMatrixRD!$B$2:$B$261,0),MATCH(L$6,[1]EskRateMatrixRD!$B$1:$AR$1,0)),"n/a") -> 0 | M26: =IFERROR(INDEX([1]EskRateMatrixRD!$B$2:$AR$261,MATCH($H26,[1]EskRateMatrixRD!$B$2:$B$261,0),MATCH(M$6,[1]EskRateMatrixRD!$B$1:$AR$1,0)),"n/a") -> 0 | N26: =IFERROR(INDEX([1]EskRateMatrixRD!$B$2:$AR$261,MATCH($H26,[1]EskRateMatrixRD!$B$2:$B$261,0),MATCH(N$6,[1]EskRateMatrixRD!$B$1:$AR$1,0)),"n/a") -> 0 | O26: =IFERROR(INDEX([1]EskRateMatrixRD!$B$2:$AR$261,MATCH($H26,[1]EskRateMatrixRD!$B$2:$B$261,0),MATCH(O$6,[1]EskRateMatrixRD!$B$1:$AR$1,0)),"n/a") -> 0 | P26: =IFERROR(INDEX([1]EskRateMatrixRD!$B$2:$AR$261,MATCH($H26,[1]EskRateMatrixRD!$B$2:$B$261,0),MATCH(P$6,[1]EskRateMatrixRD!$B$1:$AR$1,0)),"n/a") -> n/a
C27: Public Lighting 24 Hours | D27: Non-Local Authority | G27: Public Lighting 24 Hours_Non-Local Authority | H27: =INDEX(Matrix_Tariff_Map,MATCH(C27,Matrix_Model_Tariffs,0),2)&IFERROR(INDEX(Matrix_Transmission_Map,MATCH(E27,Matrix_Model_Transmission,0),2),0)&IFERROR(INDEX(Matrix_Voltage_Map,MATCH(F27,Matrix_Model_Voltage,0),2),1)&INDEX(Matrix_Category_Map,MATCH(D27,Matrix_Model_Category,0),2) -> Pu01N | I27: =IFERROR(INDEX([1]EskRateMatrixRD!$B$2:$AR$261,MATCH($H27,[1]EskRateMatrixRD!$B$2:$B$261,0),MATCH(I$6,[1]EskRateMatrixRD!$B$1:$AR$1,0)),"n/a") -> 0 | J27: =IFERROR(INDEX([1]EskRateMatrixRD!$B$2:$AR$261,MATCH($H27,[1]EskRateMatrixRD!$B$2:$B$261,0),MATCH(J$6,[1]EskRateMatrixRD!$B$1:$AR$1,0)),"n/a") -> 0 | K27: =IFERROR(INDEX([1]EskRateMatrixRD!$B$2:$AR$261,MATCH($H27,[1]EskRateMatrixRD!$B$2:$B$261,0),MATCH(K$6,[1]EskRateMatrixRD!$B$1:$AR$1,0)),"n/a") -> 152.26 | L27: =IFERROR(INDEX([1]EskRateMatrixRD!$B$2:$AR$261,MATCH($H27,[1]EskRateMatrixRD!$B$2:$B$261,0),MATCH(L$6,[1]EskRateMatrixRD!$B$1:$AR$1,0)),"n/a") -> 0 | M27: =IFERROR(INDEX([1]EskRateMatrixRD!$B$2:$AR$261,MATCH($H27,[1]EskRateMatrixRD!$B$2:$B$261,0),MATCH(M$6,[1]EskRateMatrixRD!$B$1:$AR$1,0)),"n/a") -> 0 | N27: =IFERROR(INDEX([1]EskRateMatrixRD!$B$2:$AR$261,MATCH($H27,[1]EskRateMatrixRD!$B$2:$B$261,0),MATCH(N$6,[1]EskRateMatrixRD!$B$1:$AR$1,0)),"n/a") -> 0 | O27: =IFERROR(INDEX([1]EskRateMatrixRD!$B$2:$AR$261,MATCH($H27,[1]EskRateMatrixRD!$B$2:$B$261,0),MATCH(O$6,[1]EskRateMatrixRD!$B$1:$AR$1,0)),"n/a") -> 0 | P27: =IFERROR(INDEX([1]EskRateMatrixRD!$B$2:$AR$261,MATCH($H27,[1]EskRateMatrixRD!$B$2:$B$261,0),MATCH(P$6,[1]EskRateMatrixRD!$B$1:$AR$1,0)),"n/a") -> n/a
C28: Public Lighting Urban Fixed | D28: Non-Local Authority | G28: Public Lighting Urban Fixed_Non-Local Authority | H28: =INDEX(Matrix_Tariff_Map,MATCH(C28,Matrix_Model_Tariffs,0),2)&IFERROR(INDEX(Matrix_Transmission_Map,MATCH(E28,Matrix_Model_Transmission,0),2),0)&IFERROR(INDEX(Matrix_Voltage_Map,MATCH(F28,Matrix_Model_Voltage,0),2),1)&INDEX(Matrix_Category_Map,MATCH(D28,Matrix_Model_Category,0),2) -> Pt01N | I28: =IFERROR(INDEX([1]EskRateMatrixRD!$B$2:$AR$261,MATCH($H28,[1]EskRateMatrixRD!$B$2:$B$261,0),MATCH(I$6,[1]EskRateMatrixRD!$B$1:$AR$1,0)),"n/a") -> 0 | J28: =IFERROR(INDEX([1]EskRateMatrixRD!$B$2:$AR$261,MATCH($H28,[1]EskRateMatrixRD!$B$2:$B$261,0),MATCH(J$6,[1]EskRateMatrixRD!$B$1:$AR$1,0)),"n/a") -> 0 | K28: =IFERROR(INDEX([1]EskRateMatrixRD!$B$2:$AR$261,MATCH($H28,[1]EskRateMatrixRD!$B$2:$B$261,0),MATCH(K$6,[1]EskRateMatrixRD!$B$1:$AR$1,0)),"n/a") -> 0 | L28: =IFERROR(INDEX([1]EskRateMatrixRD!$B$2:$AR$261,MATCH($H28,[1]EskRateMatrixRD!$B$2:$B$261,0),MATCH(L$6,[1]EskRateMatrixRD!$B$1:$AR$1,0)),"n/a") -> 0 | M28: =IFERROR(INDEX([1]EskRateMatrixRD!$B$2:$AR$261,MATCH($H28,[1]EskRateMatrixRD!$B$2:$B$261,0),MATCH(M$6,[1]EskRateMatrixRD!$B$1:$AR$1,0)),"n/a") -> 0 | N28: =IFERROR(INDEX([1]EskRateMatrixRD!$B$2:$AR$261,MATCH($H28,[1]EskRateMatrixRD!$B$2:$B$261,0),MATCH(N$6,[1]EskRateMatrixRD!$B$1:$AR$1,0)),"n/a") -> 0 | O28: =IFERROR(INDEX([1]EskRateMatrixRD!$B$2:$AR$261,MATCH($H28,[1]EskRateMatrixRD!$B$2:$B$261,0),MATCH(O$6,[1]EskRateMatrixRD!$B$1:$AR$1,0)),"n/a") -> 7.48 | P28: =IFERROR(INDEX([1]EskRateMatrixRD!$B$2:$AR$261,MATCH($H28,[1]EskRateMatrixRD!$B$2:$B$261,0),MATCH(P$6,[1]EskRateMatrixRD!$B$1:$AR$1,0)),"n/a") -> n/a
C29: =C8 -> Businessrate 1 | D29: Local Authority | G29: Businessrate 1_Local Authority | H29: B101Y | I29: =IFERROR(INDEX([1]MunRateMatrixRD!$B$2:$AR$261,MATCH($H29,[1]MunRateMatrixRD!$B$2:$B$261,0),MATCH(I$6,[1]MunRateMatrixRD!$B$1:$AR$1,0)),"n/a") -> 0 | J29: =IFERROR(INDEX([1]MunRateMatrixRD!$B$2:$AR$261,MATCH($H29,[1]MunRateMatrixRD!$B$2:$B$261,0),MATCH(J$6,[1]MunRateMatrixRD!$B$1:$AR$1,0)),"n/a") -> 0 | K29: =IFERROR(INDEX([1]MunRateMatrixRD!$B$2:$AR$261,MATCH($H29,[1]MunRateMatrixRD!$B$2:$B$261,0),MATCH(K$6,[1]MunRateMatrixRD!$B$1:$AR$1,0)),"n/a") -> 149.65 | L29: =IFERROR(INDEX([1]MunRateMatrixRD!$B$2:$AR$261,MATCH($H29,[1]MunRateMatrixRD!$B$2:$B$261,0),MATCH(L$6,[1]MunRateMatrixRD!$B$1:$AR$1,0)),"n/a") -> 0.57 | M29: =IFERROR(INDEX([1]MunRateMatrixRD!$B$2:$AR$261,MATCH($H29,[1]MunRateMatrixRD!$B$2:$B$261,0),MATCH(M$6,[1]MunRateMatrixRD!$B$1:$AR$1,0)),"n/a") -> 20.74 | N29: =IFERROR(INDEX([1]MunRateMatrixRD!$B$2:$AR$261,MATCH($H29,[1]MunRateMatrixRD!$B$2:$B$261,0),MATCH(N$6,[1]MunRateMatrixRD!$B$1:$AR$1,0)),"n/a") -> 29.74 | O29: =IFERROR(INDEX([1]MunRateMatrixRD!$B$2:$AR$261,MATCH($H29,[1]MunRateMatrixRD!$B$2:$B$261,0),MATCH(O$6,[1]MunRateMatrixRD!$B$1:$AR$1,0)),"n/a") -> 25.47 | P29: =IFERROR(INDEX([1]MunRateMatrixRD!$B$2:$AR$261,MATCH($H29,[1]MunRateMatrixRD!$B$2:$B$261,0),MATCH(P$6,[1]MunRateMatrixRD!$B$1:$AR$1,0)),"n/a") -> n/a
C30: =C9 -> Businessrate 2 | D30: Local Authority | G30: =C30&"_"&D30 -> Businessrate 2_Local Authority | H30: B201Y | I30: =IFERROR(INDEX([1]MunRateMatrixRD!$B$2:$AR$261,MATCH($H30,[1]MunRateMatrixRD!$B$2:$B$261,0),MATCH(I$6,[1]MunRateMatrixRD!$B$1:$AR$1,0)),"n/a") -> 0 | J30: =IFERROR(INDEX([1]MunRateMatrixRD!$B$2:$AR$261,MATCH($H30,[1]MunRateMatrixRD!$B$2:$B$261,0),MATCH(J$6,[1]MunRateMatrixRD!$B$1:$AR$1,0)),"n/a") -> 0 | K30: =IFERROR(INDEX([1]MunRateMatrixRD!$B$2:$AR$261,MATCH($H30,[1]MunRateMatrixRD!$B$2:$B$261,0),MATCH(K$6,[1]MunRateMatrixRD!$B$1:$AR$1,0)),"n/a") -> 149.65 | L30: =IFERROR(INDEX([1]MunRateMatrixRD!$B$2:$AR$261,MATCH($H30,[1]MunRateMatrixRD!$B$2:$B$261,0),MATCH(L$6,[1]MunRateMatrixRD!$B$1:$AR$1,0)),"n/a") -> 0.57 | M30: =IFERROR(INDEX([1]MunRateMatrixRD!$B$2:$AR$261,MATCH($H30,[1]MunRateMatrixRD!$B$2:$B$261,0),MATCH(M$6,[1]MunRateMatrixRD!$B$1:$AR$1,0)),"n/a") -> 20.74 | N30: =IFERROR(INDEX([1]MunRateMatrixRD!$B$2:$AR$261,MATCH($H30,[1]MunRateMatrixRD!$B$2:$B$261,0),MATCH(N$6,[1]MunRateMatrixRD!$B$1:$AR$1,0)),"n/a") -> 50.16 | O30: =IFERROR(INDEX([1]MunRateMatrixRD!$B$2:$AR$261,MATCH($H30,[1]MunRateMatrixRD!$B$2:$B$261,0),MATCH(O$6,[1]MunRateMatrixRD!$B$1:$AR$1,0)),"n/a") -> 25.47 | P30: =IFERROR(INDEX([1]MunRateMatrixRD!$B$2:$AR$261,MATCH($H30,[1]MunRateMatrixRD!$B$2:$B$261,0),MATCH(P$6,[1]MunRateMatrixRD!$B$1:$AR$1,0)),"n/a") -> n/a
C31: =C10 -> Businessrate 3 | D31: Local Authority | G31: Businessrate 3_Local Authority | H31: B301Y | I31: =IFERROR(INDEX([1]MunRateMatrixRD!$B$2:$AR$261,MATCH($H31,[1]MunRateMatrixRD!$B$2:$B$261,0),MATCH(I$6,[1]MunRateMatrixRD!$B$1:$AR$1,0)),"n/a") -> 0 | J31: =IFERROR(INDEX([1]MunRateMatrixRD!$B$2:$AR$261,MATCH($H31,[1]MunRateMatrixRD!$B$2:$B$261,0),MATCH(J$6,[1]MunRateMatrixRD!$B$1:$AR$1,0)),"n/a") -> 0 | K31: =IFERROR(INDEX([1]MunRateMatrixRD!$B$2:$AR$261,MATCH($H31,[1]MunRateMatrixRD!$B$2:$B$261,0),MATCH(K$6,[1]MunRateMatrixRD!$B$1:$AR$1,0)),"n/a") -> 149.65 | L31: =IFERROR(INDEX([1]MunRateMatrixRD!$B$2:$AR$261,MATCH($H31,[1]MunRateMatrixRD!$B$2:$B$261,0),MATCH(L$6,[1]MunRateMatrixRD!$B$1:$AR$1,0)),"n/a") -> 0.57 | M31: =IFERROR(INDEX([1]MunRateMatrixRD!$B$2:$AR$261,MATCH($H31,[1]MunRateMatrixRD!$B$2:$B$261,0),MATCH(M$6,[1]MunRateMatrixRD!$B$1:$AR$1,0)),"n/a") -> 20.74 | N31: =IFERROR(INDEX([1]MunRateMatrixRD!$B$2:$AR$261,MATCH($H31,[1]MunRateMatrixRD!$B$2:$B$261,0),MATCH(N$6,[1]MunRateMatrixRD!$B$1:$AR$1,0)),"n/a") -> 86.68 | O31: =IFERROR(INDEX([1]MunRateMatrixRD!$B$2:$AR$261,MATCH($H31,[1]MunRateMatrixRD!$B$2:$B$261,0),MATCH(O$6,[1]MunRateMatrixRD!$B$1:$AR$1,0)),"n/a") -> 25.47 | P31: =IFERROR(INDEX([1]MunRateMatrixRD!$B$2:$AR$261,MATCH($H31,[1]MunRateMatrixRD!$B$2:$B$261,0),MATCH(P$6,[1]MunRateMatrixRD!$B$1:$AR$1,0)),"n/a") -> n/a
C32: =C11 -> Businessrate 4 | D32: Local Authority | G32: =C32&"_"&D32 -> Businessrate 4_Local Authority | H32: B401Y | I32: =IFERROR(INDEX([1]MunRateMatrixRD!$B$2:$AR$261,MATCH($H32,[1]MunRateMatrixRD!$B$2:$B$261,0),MATCH(I$6,[1]MunRateMatrixRD!$B$1:$AR$1,0)),"n/a") -> 0 | J32: =IFERROR(INDEX([1]MunRateMatrixRD!$B$2:$AR$261,MATCH($H32,[1]MunRateMatrixRD!$B$2:$B$261,0),MATCH(J$6,[1]MunRateMatrixRD!$B$1:$AR$1,0)),"n/a") -> 0 | K32: =IFERROR(INDEX([1]MunRateMatrixRD!$B$2:$AR$261,MATCH($H32,[1]MunRateMatrixRD!$B$2:$B$261,0),MATCH(K$6,[1]MunRateMatrixRD!$B$1:$AR$1,0)),"n/a") -> 402.72 | L32: =IFERROR(INDEX([1]MunRateMatrixRD!$B$2:$AR$261,MATCH($H32,[1]MunRateMatrixRD!$B$2:$B$261,0),MATCH(L$6,[1]MunRateMatrixRD!$B$1:$AR$1,0)),"n/a") -> 0.57 | M32: =IFERROR(INDEX([1]MunRateMatrixRD!$B$2:$AR$261,MATCH($H32,[1]MunRateMatrixRD!$B$2:$B$261,0),MATCH(M$6,[1]MunRateMatrixRD!$B$1:$AR$1,0)),"n/a") -> 20.74 | N32: =IFERROR(INDEX([1]MunRateMatrixRD!$B$2:$AR$261,MATCH($H32,[1]MunRateMatrixRD!$B$2:$B$261,0),MATCH(N$6,[1]MunRateMatrixRD!$B$1:$AR$1,0)),"n/a") -> 0 | O32: =IFERROR(INDEX([1]MunRateMatrixRD!$B$2:$AR$261,MATCH($H32,[1]MunRateMatrixRD!$B$2:$B$261,0),MATCH(O$6,[1]MunRateMatrixRD!$B$1:$AR$1,0)),"n/a") -> 0 | P32: =IFERROR(INDEX([1]MunRateMatrixRD!$B$2:$AR$261,MATCH($H32,[1]MunRateMatrixRD!$B$2:$B$261,0),MATCH(P$6,[1]MunRateMatrixRD!$B$1:$AR$1,0)),"n/a") -> n/a
C33: Homepower Bulk | D33: Local Authority | G33: =C33&"_"&D33 -> Homepower Bulk_Local Authority | H33: HB01Y | I33: =IFERROR(INDEX([1]MunRateMatrixRD!$B$2:$AR$261,MATCH($H33,[1]MunRateMatrixRD!$B$2:$B$261,0),MATCH(I$6,[1]MunRateMatrixRD!$B$1:$AR$1,0)),"n/a") -> 0 | J33: =IFERROR(INDEX([1]MunRateMatrixRD!$B$2:$AR$261,MATCH($H33,[1]MunRateMatrixRD!$B$2:$B$261,0),MATCH(J$6,[1]MunRateMatrixRD!$B$1:$AR$1,0)),"n/a") -> 0 | K33: =IFERROR(INDEX([1]MunRateMatrixRD!$B$2:$AR$261,MATCH($H33,[1]MunRateMatrixRD!$B$2:$B$261,0),MATCH(K$6,[1]MunRateMatrixRD!$B$1:$AR$1,0)),"n/a") -> 0 | L33: =IFERROR(INDEX([1]MunRateMatrixRD!$B$2:$AR$261,MATCH($H33,[1]MunRateMatrixRD!$B$2:$B$261,0),MATCH(L$6,[1]MunRateMatrixRD!$B$1:$AR$1,0)),"n/a") -> 0 | M33: =IFERROR(INDEX([1]MunRateMatrixRD!$B$2:$AR$261,MATCH($H33,[1]MunRateMatrixRD!$B$2:$B$261,0),MATCH(M$6,[1]MunRateMatrixRD!$B$1:$AR$1,0)),"n/a") -> 0 | N33: =IFERROR(INDEX([1]MunRateMatrixRD!$B$2:$AR$261,MATCH($H33,[1]MunRateMatrixRD!$B$2:$B$261,0),MATCH(N$6,[1]MunRateMatrixRD!$B$1:$AR$1,0)),"n/a") -> 0 | O33: =IFERROR(INDEX([1]MunRateMatrixRD!$B$2:$AR$261,MATCH($H33,[1]MunRateMatrixRD!$B$2:$B$261,0),MATCH(O$6,[1]MunRateMatrixRD!$B$1:$AR$1,0)),"n/a") -> 0 | P33: =IFERROR(INDEX([1]MunRateMatrixRD!$B$2:$AR$261,MATCH($H33,[1]MunRateMatrixRD!$B$2:$B$261,0),MATCH(P$6,[1]MunRateMatrixRD!$B$1:$AR$1,0)),"n/a") -> n/a
C34: =C13 -> Homepower 1 | D34: Local Authority | G34: =C34&"_"&D34 -> Homepower 1_Local Authority | H34: H101Y | I34: =IFERROR(INDEX([1]MunRateMatrixRD!$B$2:$AR$261,MATCH($H34,[1]MunRateMatrixRD!$B$2:$B$261,0),MATCH(I$6,[1]MunRateMatrixRD!$B$1:$AR$1,0)),"n/a") -> 171.32 | J34: =IFERROR(INDEX([1]MunRateMatrixRD!$B$2:$AR$261,MATCH($H34,[1]MunRateMatrixRD!$B$2:$B$261,0),MATCH(J$6,[1]MunRateMatrixRD!$B$1:$AR$1,0)),"n/a") -> 270.5 | K34: =IFERROR(INDEX([1]MunRateMatrixRD!$B$2:$AR$261,MATCH($H34,[1]MunRateMatrixRD!$B$2:$B$261,0),MATCH(K$6,[1]MunRateMatrixRD!$B$1:$AR$1,0)),"n/a") -> 0 | L34: =IFERROR(INDEX([1]MunRateMatrixRD!$B$2:$AR$261,MATCH($H34,[1]MunRateMatrixRD!$B$2:$B$261,0),MATCH(L$6,[1]MunRateMatrixRD!$B$1:$AR$1,0)),"n/a") -> 0 | M34: =IFERROR(INDEX([1]MunRateMatrixRD!$B$2:$AR$261,MATCH($H34,[1]MunRateMatrixRD!$B$2:$B$261,0),MATCH(M$6,[1]MunRateMatrixRD!$B$1:$AR$1,0)),"n/a") -> 0 | N34: =IFERROR(INDEX([1]MunRateMatrixRD!$B$2:$AR$261,MATCH($H34,[1]MunRateMatrixRD!$B$2:$B$261,0),MATCH(N$6,[1]MunRateMatrixRD!$B$1:$AR$1,0)),"n/a") -> 7.33 | O34: =IFERROR(INDEX([1]MunRateMatrixRD!$B$2:$AR$261,MATCH($H34,[1]MunRateMatrixRD!$B$2:$B$261,0),MATCH(O$6,[1]MunRateMatrixRD!$B$1:$AR$1,0)),"n/a") -> 0 | P34: =IFERROR(INDEX([1]MunRateMatrixRD!$B$2:$AR$261,MATCH($H34,[1]MunRateMatrixRD!$B$2:$B$261,0),MATCH(P$6,[1]MunRateMatrixRD!$B$1:$AR$1,0)),"n/a") -> n/a
C35: Homepower 2 | D35: Local Authority | G35: Homepower 2_Local Authority | H35: H201Y | I35: =IFERROR(INDEX([1]MunRateMatrixRD!$B$2:$AR$261,MATCH($H35,[1]MunRateMatrixRD!$B$2:$B$261,0),MATCH(I$6,[1]MunRateMatrixRD!$B$1:$AR$1,0)),"n/a") -> 171.32 | J35: =IFERROR(INDEX([1]MunRateMatrixRD!$B$2:$AR$261,MATCH($H35,[1]MunRateMatrixRD!$B$2:$B$261,0),MATCH(J$6,[1]MunRateMatrixRD!$B$1:$AR$1,0)),"n/a") -> 263.72 | K35: =IFERROR(INDEX([1]MunRateMatrixRD!$B$2:$AR$261,MATCH($H35,[1]MunRateMatrixRD!$B$2:$B$261,0),MATCH(K$6,[1]MunRateMatrixRD!$B$1:$AR$1,0)),"n/a") -> 0 | L35: =IFERROR(INDEX([1]MunRateMatrixRD!$B$2:$AR$261,MATCH($H35,[1]MunRateMatrixRD!$B$2:$B$261,0),MATCH(L$6,[1]MunRateMatrixRD!$B$1:$AR$1,0)),"n/a") -> 0 | M35: =IFERROR(INDEX([1]MunRateMatrixRD!$B$2:$AR$261,MATCH($H35,[1]MunRateMatrixRD!$B$2:$B$261,0),MATCH(M$6,[1]MunRateMatrixRD!$B$1:$AR$1,0)),"n/a") -> 0 | N35: =IFERROR(INDEX([1]MunRateMatrixRD!$B$2:$AR$261,MATCH($H35,[1]MunRateMatrixRD!$B$2:$B$261,0),MATCH(N$6,[1]MunRateMatrixRD!$B$1:$AR$1,0)),"n/a") -> 13.75 | O35: =IFERROR(INDEX([1]MunRateMatrixRD!$B$2:$AR$261,MATCH($H35,[1]MunRateMatrixRD!$B$2:$B$261,0),MATCH(O$6,[1]MunRateMatrixRD!$B$1:$AR$1,0)),"n/a") -> 0 | P35: =IFERROR(INDEX([1]MunRateMatrixRD!$B$2:$AR$261,MATCH($H35,[1]MunRateMatrixRD!$B$2:$B$261,0),MATCH(P$6,[1]MunRateMatrixRD!$B$1:$AR$1,0)),"n/a") -> n/a
C36: Homepower 3 | D36: Local Authority | G36: Homepower 3_Local Authority | H36: H301Y | I36: =IFERROR(INDEX([1]MunRateMatrixRD!$B$2:$AR$261,MATCH($H36,[1]MunRateMatrixRD!$B$2:$B$261,0),MATCH(I$6,[1]MunRateMatrixRD!$B$1:$AR$1,0)),"n/a") -> 171.32 | J36: =IFERROR(INDEX([1]MunRateMatrixRD!$B$2:$AR$261,MATCH($H36,[1]MunRateMatrixRD!$B$2:$B$261,0),MATCH(J$6,[1]MunRateMatrixRD!$B$1:$AR$1,0)),"n/a") -> 263.72 | K36: =IFERROR(INDEX([1]MunRateMatrixRD!$B$2:$AR$261,MATCH($H36,[1]MunRateMatrixRD!$B$2:$B$261,0),MATCH(K$6,[1]MunRateMatrixRD!$B$1:$AR$1,0)),"n/a") -> 0 | L36: =IFERROR(INDEX([1]MunRateMatrixRD!$B$2:$AR$261,MATCH($H36,[1]MunRateMatrixRD!$B$2:$B$261,0),MATCH(L$6,[1]MunRateMatrixRD!$B$1:$AR$1,0)),"n/a") -> 0 | M36: =IFERROR(INDEX([1]MunRateMatrixRD!$B$2:$AR$261,MATCH($H36,[1]MunRateMatrixRD!$B$2:$B$261,0),MATCH(M$6,[1]MunRateMatrixRD!$B$1:$AR$1,0)),"n/a") -> 0 | N36: =IFERROR(INDEX([1]MunRateMatrixRD!$B$2:$AR$261,MATCH($H36,[1]MunRateMatrixRD!$B$2:$B$261,0),MATCH(N$6,[1]MunRateMatrixRD!$B$1:$AR$1,0)),"n/a") -> 28.4 | O36: =IFERROR(INDEX([1]MunRateMatrixRD!$B$2:$AR$261,MATCH($H36,[1]MunRateMatrixRD!$B$2:$B$261,0),MATCH(O$6,[1]MunRateMatrixRD!$B$1:$AR$1,0)),"n/a") -> 0 | P36: =IFERROR(INDEX([1]MunRateMatrixRD!$B$2:$AR$261,MATCH($H36,[1]MunRateMatrixRD!$B$2:$B$261,0),MATCH(P$6,[1]MunRateMatrixRD!$B$1:$AR$1,0)),"n/a") -> n/a
C37: Homepower 4 | D37: Local Authority | G37: Homepower 4_Local Authority | H37: H401Y | I37: =IFERROR(INDEX([1]MunRateMatrixRD!$B$2:$AR$261,MATCH($H37,[1]MunRateMatrixRD!$B$2:$B$261,0),MATCH(I$6,[1]MunRateMatrixRD!$B$1:$AR$1,0)),"n/a") -> 171.32 | J37: =IFERROR(INDEX([1]MunRateMatrixRD!$B$2:$AR$261,MATCH($H37,[1]MunRateMatrixRD!$B$2:$B$261,0),MATCH(J$6,[1]MunRateMatrixRD!$B$1:$AR$1,0)),"n/a") -> 275.48 | K37: =IFERROR(INDEX([1]MunRateMatrixRD!$B$2:$AR$261,MATCH($H37,[1]MunRateMatrixRD!$B$2:$B$261,0),MATCH(K$6,[1]MunRateMatrixRD!$B$1:$AR$1,0)),"n/a") -> 0 | L37: =IFERROR(INDEX([1]MunRateMatrixRD!$B$2:$AR$261,MATCH($H37,[1]MunRateMatrixRD!$B$2:$B$261,0),MATCH(L$6,[1]MunRateMatrixRD!$B$1:$AR$1,0)),"n/a") -> 0 | M37: =IFERROR(INDEX([1]MunRateMatrixRD!$B$2:$AR$261,MATCH($H37,[1]MunRateMatrixRD!$B$2:$B$261,0),MATCH(M$6,[1]MunRateMatrixRD!$B$1:$AR$1,0)),"n/a") -> 0 | N37: =IFERROR(INDEX([1]MunRateMatrixRD!$B$2:$AR$261,MATCH($H37,[1]MunRateMatrixRD!$B$2:$B$261,0),MATCH(N$6,[1]MunRateMatrixRD!$B$1:$AR$1,0)),"n/a") -> 4.49 | O37: =IFERROR(INDEX([1]MunRateMatrixRD!$B$2:$AR$261,MATCH($H37,[1]MunRateMatrixRD!$B$2:$B$261,0),MATCH(O$6,[1]MunRateMatrixRD!$B$1:$AR$1,0)),"n/a") -> 0 | P37: =IFERROR(INDEX([1]MunRateMatrixRD!$B$2:$AR$261,MATCH($H37,[1]MunRateMatrixRD!$B$2:$B$261,0),MATCH(P$6,[1]MunRateMatrixRD!$B$1:$AR$1,0)),"n/a") -> n/a
C38: Homelight 20A | D38: Local Authority | G38: Homelight 20A_Local Authority | H38: HL2001Y | I38: =IFERROR(INDEX([1]MunRateMatrixRD!$B$2:$AR$261,MATCH($H38,[1]MunRateMatrixRD!$B$2:$B$261,0),MATCH(I$6,[1]MunRateMatrixRD!$B$1:$AR$1,0)),"n/a") -> 0 | J38: =IFERROR(INDEX([1]MunRateMatrixRD!$B$2:$AR$261,MATCH($H38,[1]MunRateMatrixRD!$B$2:$B$261,0),MATCH(J$6,[1]MunRateMatrixRD!$B$1:$AR$1,0)),"n/a") -> 0 | K38: =IFERROR(INDEX([1]MunRateMatrixRD!$B$2:$AR$261,MATCH($H38,[1]MunRateMatrixRD!$B$2:$B$261,0),MATCH(K$6,[1]MunRateMatrixRD!$B$1:$AR$1,0)),"n/a") -> 0 | L38: =IFERROR(INDEX([1]MunRateMatrixRD!$B$2:$AR$261,MATCH($H38,[1]MunRateMatrixRD!$B$2:$B$261,0),MATCH(L$6,[1]MunRateMatrixRD!$B$1:$AR$1,0)),"n/a") -> 0 | M38: =IFERROR(INDEX([1]MunRateMatrixRD!$B$2:$AR$261,MATCH($H38,[1]MunRateMatrixRD!$B$2:$B$261,0),MATCH(M$6,[1]MunRateMatrixRD!$B$1:$AR$1,0)),"n/a") -> 0 | N38: =IFERROR(INDEX([1]MunRateMatrixRD!$B$2:$AR$261,MATCH($H38,[1]MunRateMatrixRD!$B$2:$B$261,0),MATCH(N$6,[1]MunRateMatrixRD!$B$1:$AR$1,0)),"n/a") -> 0 | O38: =IFERROR(INDEX([1]MunRateMatrixRD!$B$2:$AR$261,MATCH($H38,[1]MunRateMatrixRD!$B$2:$B$261,0),MATCH(O$6,[1]MunRateMatrixRD!$B$1:$AR$1,0)),"n/a") -> 0 | P38: =IFERROR(INDEX([1]MunRateMatrixRD!$B$2:$AR$261,MATCH($H38,[1]MunRateMatrixRD!$B$2:$B$261,0),MATCH(P$6,[1]MunRateMatrixRD!$B$1:$AR$1,0)),"n/a") -> n/a
C39: Homelight 60A | D39: Local Authority | G39: Homelight 60A_Local Authority | H39: HL6001Y | I39: =IFERROR(INDEX([1]MunRateMatrixRD!$B$2:$AR$261,MATCH($H39,[1]MunRateMatrixRD!$B$2:$B$261,0),MATCH(I$6,[1]MunRateMatrixRD!$B$1:$AR$1,0)),"n/a") -> 0 | J39: =IFERROR(INDEX([1]MunRateMatrixRD!$B$2:$AR$261,MATCH($H39,[1]MunRateMatrixRD!$B$2:$B$261,0),MATCH(J$6,[1]MunRateMatrixRD!$B$1:$AR$1,0)),"n/a") -> 0 | K39: =IFERROR(INDEX([1]MunRateMatrixRD!$B$2:$AR$261,MATCH($H39,[1]MunRateMatrixRD!$B$2:$B$261,0),MATCH(K$6,[1]MunRateMatrixRD!$B$1:$AR$1,0)),"n/a") -> 0 | L39: =IFERROR(INDEX([1]MunRateMatrixRD!$B$2:$AR$261,MATCH($H39,[1]MunRateMatrixRD!$B$2:$B$261,0),MATCH(L$6,[1]MunRateMatrixRD!$B$1:$AR$1,0)),"n/a") -> 0 | M39: =IFERROR(INDEX([1]MunRateMatrixRD!$B$2:$AR$261,MATCH($H39,[1]MunRateMatrixRD!$B$2:$B$261,0),MATCH(M$6,[1]MunRateMatrixRD!$B$1:$AR$1,0)),"n/a") -> 0 | N39: =IFERROR(INDEX([1]MunRateMatrixRD!$B$2:$AR$261,MATCH($H39,[1]MunRateMatrixRD!$B$2:$B$261,0),MATCH(N$6,[1]MunRateMatrixRD!$B$1:$AR$1,0)),"n/a") -> 0 | O39: =IFERROR(INDEX([1]MunRateMatrixRD!$B$2:$AR$261,MATCH($H39,[1]MunRateMatrixRD!$B$2:$B$261,0),MATCH(O$6,[1]MunRateMatrixRD!$B$1:$AR$1,0)),"n/a") -> 0 | P39: =IFERROR(INDEX([1]MunRateMatrixRD!$B$2:$AR$261,MATCH($H39,[1]MunRateMatrixRD!$B$2:$B$261,0),MATCH(P$6,[1]MunRateMatrixRD!$B$1:$AR$1,0)),"n/a") -> n/a
C40: Landrate 1 | D40: Local Authority | G40: Landrate 1_Local Authority | H40: L101Y | I40: =IFERROR(INDEX([1]MunRateMatrixRD!$B$2:$AR$261,MATCH($H40,[1]MunRateMatrixRD!$B$2:$B$261,0),MATCH(I$6,[1]MunRateMatrixRD!$B$1:$AR$1,0)),"n/a") -> 0 | J40: =IFERROR(INDEX([1]MunRateMatrixRD!$B$2:$AR$261,MATCH($H40,[1]MunRateMatrixRD!$B$2:$B$261,0),MATCH(J$6,[1]MunRateMatrixRD!$B$1:$AR$1,0)),"n/a") -> 0 | K40: =IFERROR(INDEX([1]MunRateMatrixRD!$B$2:$AR$261,MATCH($H40,[1]MunRateMatrixRD!$B$2:$B$261,0),MATCH(K$6,[1]MunRateMatrixRD!$B$1:$AR$1,0)),"n/a") -> 148.91 | L40: =IFERROR(INDEX([1]MunRateMatrixRD!$B$2:$AR$261,MATCH($H40,[1]MunRateMatrixRD!$B$2:$B$261,0),MATCH(L$6,[1]MunRateMatrixRD!$B$1:$AR$1,0)),"n/a") -> 0.57 | M40: =IFERROR(INDEX([1]MunRateMatrixRD!$B$2:$AR$261,MATCH($H40,[1]MunRateMatrixRD!$B$2:$B$261,0),MATCH(M$6,[1]MunRateMatrixRD!$B$1:$AR$1,0)),"n/a") -> 36.71 | N40: =IFERROR(INDEX([1]MunRateMatrixRD!$B$2:$AR$261,MATCH($H40,[1]MunRateMatrixRD!$B$2:$B$261,0),MATCH(N$6,[1]MunRateMatrixRD!$B$1:$AR$1,0)),"n/a") -> 39.2 | O40: =IFERROR(INDEX([1]MunRateMatrixRD!$B$2:$AR$261,MATCH($H40,[1]MunRateMatrixRD!$B$2:$B$261,0),MATCH(O$6,[1]MunRateMatrixRD!$B$1:$AR$1,0)),"n/a") -> 32.09 | P40: =IFERROR(INDEX([1]MunRateMatrixRD!$B$2:$AR$261,MATCH($H40,[1]MunRateMatrixRD!$B$2:$B$261,0),MATCH(P$6,[1]MunRateMatrixRD!$B$1:$AR$1,0)),"n/a") -> n/a
C41: Landrate 2 | D41: Local Authority | G41: Landrate 2_Local Authority | H41: L201Y | I41: =IFERROR(INDEX([1]MunRateMatrixRD!$B$2:$AR$261,MATCH($H41,[1]MunRateMatrixRD!$B$2:$B$261,0),MATCH(I$6,[1]MunRateMatrixRD!$B$1:$AR$1,0)),"n/a") -> 0 | J41: =IFERROR(INDEX([1]MunRateMatrixRD!$B$2:$AR$261,MATCH($H41,[1]MunRateMatrixRD!$B$2:$B$261,0),MATCH(J$6,[1]MunRateMatrixRD!$B$1:$AR$1,0)),"n/a") -> 0 | K41: =IFERROR(INDEX([1]MunRateMatrixRD!$B$2:$AR$261,MATCH($H41,[1]MunRateMatrixRD!$B$2:$B$261,0),MATCH(K$6,[1]MunRateMatrixRD!$B$1:$AR$1,0)),"n/a") -> 148.91 | L41: =IFERROR(INDEX([1]MunRateMatrixRD!$B$2:$AR$261,MATCH($H41,[1]MunRateMatrixRD!$B$2:$B$261,0),MATCH(L$6,[1]MunRateMatrixRD!$B$1:$AR$1,0)),"n/a") -> 0.57 | M41: =IFERROR(INDEX([1]MunRateMatrixRD!$B$2:$AR$261,MATCH($H41,[1]MunRateMatrixRD!$B$2:$B$261,0),MATCH(M$6,[1]MunRateMatrixRD!$B$1:$AR$1,0)),"n/a") -> 36.71 | N41: =IFERROR(INDEX([1]MunRateMatrixRD!$B$2:$AR$261,MATCH($H41,[1]MunRateMatrixRD!$B$2:$B$261,0),MATCH(N$6,[1]MunRateMatrixRD!$B$1:$AR$1,0)),"n/a") -> 60.25 | O41: =IFERROR(INDEX([1]MunRateMatrixRD!$B$2:$AR$261,MATCH($H41,[1]MunRateMatrixRD!$B$2:$B$261,0),MATCH(O$6,[1]MunRateMatrixRD!$B$1:$AR$1,0)),"n/a") -> 32.09 | P41: =IFERROR(INDEX([1]MunRateMatrixRD!$B$2:$AR$261,MATCH($H41,[1]MunRateMatrixRD!$B$2:$B$261,0),MATCH(P$6,[1]MunRateMatrixRD!$B$1:$AR$1,0)),"n/a") -> n/a
C42: Landrate 3 | D42: Local Authority | G42: Landrate 3_Local Authority | H42: L301Y | I42: =IFERROR(INDEX([1]MunRateMatrixRD!$B$2:$AR$261,MATCH($H42,[1]MunRateMatrixRD!$B$2:$B$261,0),MATCH(I$6,[1]MunRateMatrixRD!$B$1:$AR$1,0)),"n/a") -> 0 | J42: =IFERROR(INDEX([1]MunRateMatrixRD!$B$2:$AR$261,MATCH($H42,[1]MunRateMatrixRD!$B$2:$B$261,0),MATCH(J$6,[1]MunRateMatrixRD!$B$1:$AR$1,0)),"n/a") -> 0 | K42: =IFERROR(INDEX([1]MunRateMatrixRD!$B$2:$AR$261,MATCH($H42,[1]MunRateMatrixRD!$B$2:$B$261,0),MATCH(K$6,[1]MunRateMatrixRD!$B$1:$AR$1,0)),"n/a") -> 148.91 | L42: =IFERROR(INDEX([1]MunRateMatrixRD!$B$2:$AR$261,MATCH($H42,[1]MunRateMatrixRD!$B$2:$B$261,0),MATCH(L$6,[1]MunRateMatrixRD!$B$1:$AR$1,0)),"n/a") -> 0.57 | M42: =IFERROR(INDEX([1]MunRateMatrixRD!$B$2:$AR$261,MATCH($H42,[1]MunRateMatrixRD!$B$2:$B$261,0),MATCH(M$6,[1]MunRateMatrixRD!$B$1:$AR$1,0)),"n/a") -> 36.71 | N42: =IFERROR(INDEX([1]MunRateMatrixRD!$B$2:$AR$261,MATCH($H42,[1]MunRateMatrixRD!$B$2:$B$261,0),MATCH(N$6,[1]MunRateMatrixRD!$B$1:$AR$1,0)),"n/a") -> 96.35 | O42: =IFERROR(INDEX([1]MunRateMatrixRD!$B$2:$AR$261,MATCH($H42,[1]MunRateMatrixRD!$B$2:$B$261,0),MATCH(O$6,[1]MunRateMatrixRD!$B$1:$AR$1,0)),"n/a") -> 32.09 | P42: =IFERROR(INDEX([1]MunRateMatrixRD!$B$2:$AR$261,MATCH($H42,[1]MunRateMatrixRD!$B$2:$B$261,0),MATCH(P$6,[1]MunRateMatrixRD!$B$1:$AR$1,0)),"n/a") -> n/a
C43: Landrate 4 | D43: Local Authority | G43: Landrate 4_Local Authority | H43: L401Y | I43: =IFERROR(INDEX([1]MunRateMatrixRD!$B$2:$AR$261,MATCH($H43,[1]MunRateMatrixRD!$B$2:$B$261,0),MATCH(I$6,[1]MunRateMatrixRD!$B$1:$AR$1,0)),"n/a") -> 0 | J43: =IFERROR(INDEX([1]MunRateMatrixRD!$B$2:$AR$261,MATCH($H43,[1]MunRateMatrixRD!$B$2:$B$261,0),MATCH(J$6,[1]MunRateMatrixRD!$B$1:$AR$1,0)),"n/a") -> 0 | K43: =IFERROR(INDEX([1]MunRateMatrixRD!$B$2:$AR$261,MATCH($H43,[1]MunRateMatrixRD!$B$2:$B$261,0),MATCH(K$6,[1]MunRateMatrixRD!$B$1:$AR$1,0)),"n/a") -> 321.63 | L43: =IFERROR(INDEX([1]MunRateMatrixRD!$B$2:$AR$261,MATCH($H43,[1]MunRateMatrixRD!$B$2:$B$261,0),MATCH(L$6,[1]MunRateMatrixRD!$B$1:$AR$1,0)),"n/a") -> 0.57 | M43: =IFERROR(INDEX([1]MunRateMatrixRD!$B$2:$AR$261,MATCH($H43,[1]MunRateMatrixRD!$B$2:$B$261,0),MATCH(M$6,[1]MunRateMatrixRD!$B$1:$AR$1,0)),"n/a") -> 36.71 | N43: =IFERROR(INDEX([1]MunRateMatrixRD!$B$2:$AR$261,MATCH($H43,[1]MunRateMatrixRD!$B$2:$B$261,0),MATCH(N$6,[1]MunRateMatrixRD!$B$1:$AR$1,0)),"n/a") -> 31.22 | O43: =IFERROR(INDEX([1]MunRateMatrixRD!$B$2:$AR$261,MATCH($H43,[1]MunRateMatrixRD!$B$2:$B$261,0),MATCH(O$6,[1]MunRateMatrixRD!$B$1:$AR$1,0)),"n/a") -> 0 | P43: =IFERROR(INDEX([1]MunRateMatrixRD!$B$2:$AR$261,MATCH($H43,[1]MunRateMatrixRD!$B$2:$B$261,0),MATCH(P$6,[1]MunRateMatrixRD!$B$1:$AR$1,0)),"n/a") -> n/a
C44: Landrate Dx | D44: Local Authority | G44: =C44&"_"&D44 -> Landrate Dx_Local Authority | H44: Ld01Y | I44: =IFERROR(INDEX([1]MunRateMatrixRD!$B$2:$AR$261,MATCH($H44,[1]MunRateMatrixRD!$B$2:$B$261,0),MATCH(I$6,[1]MunRateMatrixRD!$B$1:$AR$1,0)),"n/a") -> 0 | J44: =IFERROR(INDEX([1]MunRateMatrixRD!$B$2:$AR$261,MATCH($H44,[1]MunRateMatrixRD!$B$2:$B$261,0),MATCH(J$6,[1]MunRateMatrixRD!$B$1:$AR$1,0)),"n/a") -> 0 | K44: =IFERROR(INDEX([1]MunRateMatrixRD!$B$2:$AR$261,MATCH($H44,[1]MunRateMatrixRD!$B$2:$B$261,0),MATCH(K$6,[1]MunRateMatrixRD!$B$1:$AR$1,0)),"n/a") -> 0 | L44: =IFERROR(INDEX([1]MunRateMatrixRD!$B$2:$AR$261,MATCH($H44,[1]MunRateMatrixRD!$B$2:$B$261,0),MATCH(L$6,[1]MunRateMatrixRD!$B$1:$AR$1,0)),"n/a") -> 0 | M44: =IFERROR(INDEX([1]MunRateMatrixRD!$B$2:$AR$261,MATCH($H44,[1]MunRateMatrixRD!$B$2:$B$261,0),MATCH(M$6,[1]MunRateMatrixRD!$B$1:$AR$1,0)),"n/a") -> 0 | N44: =IFERROR(INDEX([1]MunRateMatrixRD!$B$2:$AR$261,MATCH($H44,[1]MunRateMatrixRD!$B$2:$B$261,0),MATCH(N$6,[1]MunRateMatrixRD!$B$1:$AR$1,0)),"n/a") -> 0 | O44: =IFERROR(INDEX([1]MunRateMatrixRD!$B$2:$AR$261,MATCH($H44,[1]MunRateMatrixRD!$B$2:$B$261,0),MATCH(O$6,[1]MunRateMatrixRD!$B$1:$AR$1,0)),"n/a") -> 69.4313 | P44: =IFERROR(INDEX([1]MunRateMatrixRD!$B$2:$AR$261,MATCH($H44,[1]MunRateMatrixRD!$B$2:$B$261,0),MATCH(P$6,[1]MunRateMatrixRD!$B$1:$AR$1,0)),"n/a") -> n/a
C45: Public Lighting All Night | D45: Local Authority | G45: =C45&"_"&D45 -> Public Lighting All Night_Local Authority | H45: =INDEX(Matrix_Tariff_Map,MATCH(C45,Matrix_Model_Tariffs,0),2)&IFERROR(INDEX(Matrix_Transmission_Map,MATCH(E45,Matrix_Model_Transmission,0),2),0)&IFERROR(INDEX(Matrix_Voltage_Map,MATCH(F45,Matrix_Model_Voltage,0),2),1)&INDEX(Matrix_Category_Map,MATCH(D45,Matrix_Model_Category,0),2) -> Pa01Y | I45: =IFERROR(INDEX([1]MunRateMatrixRD!$B$2:$AR$261,MATCH($H45,[1]MunRateMatrixRD!$B$2:$B$261,0),MATCH(I$6,[1]MunRateMatrixRD!$B$1:$AR$1,0)),"n/a") -> 0 | J45: =IFERROR(INDEX([1]MunRateMatrixRD!$B$2:$AR$261,MATCH($H45,[1]MunRateMatrixRD!$B$2:$B$261,0),MATCH(J$6,[1]MunRateMatrixRD!$B$1:$AR$1,0)),"n/a") -> 0 | K45: =IFERROR(INDEX([1]MunRateMatrixRD!$B$2:$AR$261,MATCH($H45,[1]MunRateMatrixRD!$B$2:$B$261,0),MATCH(K$6,[1]MunRateMatrixRD!$B$1:$AR$1,0)),"n/a") -> 120.8 | L45: =IFERROR(INDEX([1]MunRateMatrixRD!$B$2:$AR$261,MATCH($H45,[1]MunRateMatrixRD!$B$2:$B$261,0),MATCH(L$6,[1]MunRateMatrixRD!$B$1:$AR$1,0)),"n/a") -> 0 | M45: =IFERROR(INDEX([1]MunRateMatrixRD!$B$2:$AR$261,MATCH($H45,[1]MunRateMatrixRD!$B$2:$B$261,0),MATCH(M$6,[1]MunRateMatrixRD!$B$1:$AR$1,0)),"n/a") -> 0 | N45: =IFERROR(INDEX([1]MunRateMatrixRD!$B$2:$AR$261,MATCH($H45,[1]MunRateMatrixRD!$B$2:$B$261,0),MATCH(N$6,[1]MunRateMatrixRD!$B$1:$AR$1,0)),"n/a") -> 0 | O45: =IFERROR(INDEX([1]MunRateMatrixRD!$B$2:$AR$261,MATCH($H45,[1]MunRateMatrixRD!$B$2:$B$261,0),MATCH(O$6,[1]MunRateMatrixRD!$B$1:$AR$1,0)),"n/a") -> 0 | P45: =IFERROR(INDEX([1]MunRateMatrixRD!$B$2:$AR$261,MATCH($H45,[1]MunRateMatrixRD!$B$2:$B$261,0),MATCH(P$6,[1]MunRateMatrixRD!$B$1:$AR$1,0)),"n/a") -> n/a
C46: Public Lighting 24 Hours | D46: Local Authority | G46: =C46&"_"&D46 -> Public Lighting 24 Hours_Local Authority | H46: =INDEX(Matrix_Tariff_Map,MATCH(C46,Matrix_Model_Tariffs,0),2)&IFERROR(INDEX(Matrix_Transmission_Map,MATCH(E46,Matrix_Model_Transmission,0),2),0)&IFERROR(INDEX(Matrix_Voltage_Map,MATCH(F46,Matrix_Model_Voltage,0),2),1)&INDEX(Matrix_Category_Map,MATCH(D46,Matrix_Model_Category,0),2) -> Pu01Y | I46: =IFERROR(INDEX([1]MunRateMatrixRD!$B$2:$AR$261,MATCH($H46,[1]MunRateMatrixRD!$B$2:$B$261,0),MATCH(I$6,[1]MunRateMatrixRD!$B$1:$AR$1,0)),"n/a") -> 0 | J46: =IFERROR(INDEX([1]MunRateMatrixRD!$B$2:$AR$261,MATCH($H46,[1]MunRateMatrixRD!$B$2:$B$261,0),MATCH(J$6,[1]MunRateMatrixRD!$B$1:$AR$1,0)),"n/a") -> 0 | K46: =IFERROR(INDEX([1]MunRateMatrixRD!$B$2:$AR$261,MATCH($H46,[1]MunRateMatrixRD!$B$2:$B$261,0),MATCH(K$6,[1]MunRateMatrixRD!$B$1:$AR$1,0)),"n/a") -> 161.75 | L46: =IFERROR(INDEX([1]MunRateMatrixRD!$B$2:$AR$261,MATCH($H46,[1]MunRateMatrixRD!$B$2:$B$261,0),MATCH(L$6,[1]MunRateMatrixRD!$B$1:$AR$1,0)),"n/a") -> 0 | M46: =IFERROR(INDEX([1]MunRateMatrixRD!$B$2:$AR$261,MATCH($H46,[1]MunRateMatrixRD!$B$2:$B$261,0),MATCH(M$6,[1]MunRateMatrixRD!$B$1:$AR$1,0)),"n/a") -> 0 | N46: =IFERROR(INDEX([1]MunRateMatrixRD!$B$2:$AR$261,MATCH($H46,[1]MunRateMatrixRD!$B$2:$B$261,0),MATCH(N$6,[1]MunRateMatrixRD!$B$1:$AR$1,0)),"n/a") -> 0 | O46: =IFERROR(INDEX([1]MunRateMatrixRD!$B$2:$AR$261,MATCH($H46,[1]MunRateMatrixRD!$B$2:$B$261,0),MATCH(O$6,[1]MunRateMatrixRD!$B$1:$AR$1,0)),"n/a") -> 0 | P46: =IFERROR(INDEX([1]MunRateMatrixRD!$B$2:$AR$261,MATCH($H46,[1]MunRateMatrixRD!$B$2:$B$261,0),MATCH(P$6,[1]MunRateMatrixRD!$B$1:$AR$1,0)),"n/a") -> n/a
C47: Public Lighting Urban Fixed | D47: Local Authority | G47: =C47&"_"&D47 -> Public Lighting Urban Fixed_Local Authority | H47: =INDEX(Matrix_Tariff_Map,MATCH(C47,Matrix_Model_Tariffs,0),2)&IFERROR(INDEX(Matrix_Transmission_Map,MATCH(E47,Matrix_Model_Transmission,0),2),0)&IFERROR(INDEX(Matrix_Voltage_Map,MATCH(F47,Matrix_Model_Voltage,0),2),1)&INDEX(Matrix_Category_Map,MATCH(D47,Matrix_Model_Category,0),2) -> Pt01Y | I47: =IFERROR(INDEX([1]MunRateMatrixRD!$B$2:$AR$261,MATCH($H47,[1]MunRateMatrixRD!$B$2:$B$261,0),MATCH(I$6,[1]MunRateMatrixRD!$B$1:$AR$1,0)),"n/a") -> 0 | J47: =IFERROR(INDEX([1]MunRateMatrixRD!$B$2:$AR$261,MATCH($H47,[1]MunRateMatrixRD!$B$2:$B$261,0),MATCH(J$6,[1]MunRateMatrixRD!$B$1:$AR$1,0)),"n/a") -> 0 | K47: =IFERROR(INDEX([1]MunRateMatrixRD!$B$2:$AR$261,MATCH($H47,[1]MunRateMatrixRD!$B$2:$B$261,0),MATCH(K$6,[1]MunRateMatrixRD!$B$1:$AR$1,0)),"n/a") -> 0 | L47: =IFERROR(INDEX([1]MunRateMatrixRD!$B$2:$AR$261,MATCH($H47,[1]MunRateMatrixRD!$B$2:$B$261,0),MATCH(L$6,[1]MunRateMatrixRD!$B$1:$AR$1,0)),"n/a") -> 0 | M47: =IFERROR(INDEX([1]MunRateMatrixRD!$B$2:$AR$261,MATCH($H47,[1]MunRateMatrixRD!$B$2:$B$261,0),MATCH(M$6,[1]MunRateMatrixRD!$B$1:$AR$1,0)),"n/a") -> 0 | N47: =IFERROR(INDEX([1]MunRateMatrixRD!$B$2:$AR$261,MATCH($H47,[1]MunRateMatrixRD!$B$2:$B$261,0),MATCH(N$6,[1]MunRateMatrixRD!$B$1:$AR$1,0)),"n/a") -> 0 | O47: =IFERROR(INDEX([1]MunRateMatrixRD!$B$2:$AR$261,MATCH($H47,[1]MunRateMatrixRD!$B$2:$B$261,0),MATCH(O$6,[1]MunRateMatrixRD!$B$1:$AR$1,0)),"n/a") -> 7.943004994 | P47: =IFERROR(INDEX([1]MunRateMatrixRD!$B$2:$AR$261,MATCH($H47,[1]MunRateMatrixRD!$B$2:$B$261,0),MATCH(P$6,[1]MunRateMatrixRD!$B$1:$AR$1,0)),"n/a") -> n/a

Sheet Rates SPU - Current (hidden)
C4: ="Small Power User | Tariff Inputs | "&Current_Period -> Small Power User | Tariff Inputs | 2020/2021
N5: Dx NAC
C6: Rates - All Other | I6: kWhRBlock1 | J6: kWhRBlock4 | K6: kWhHP | L6: Reliab | M6: DxNDC Energy | N6: NAC POD | O6: SerS
C7: Tariff | D7: Tariff Category | E7: Type | F7: Column1 | G7: Code | H7: Matrix Code | I7: Energy charge Block 1 [c/kWh] | J7: Energy charge Block 2 [c/kWh] | K7: Energy charge [c/kWh] | L7: Ancillary service charge [c/kWh] | M7: Network demand charge [c/kWh] | N7: Network capacity charge [R/POD/day] | O7: Service and administration charge [R/POD/day] | P7: Environmental levy charge [c/kWh]
C8: Businessrate 1 | D8: Non-Local Authority | G8: =C8&"_"&D8 -> Businessrate 1_Non-Local Authority | H8: =INDEX(Matrix_Tariff_Map,MATCH(C8,Matrix_Model_Tariffs,0),2)&IFERROR(INDEX(Matrix_Transmission_Map,MATCH(E8,Matrix_Model_Transmission,0),2),0)&IFERROR(INDEX(Matrix_Voltage_Map,MATCH(F8,Matrix_Model_Voltage,0),2),1)&INDEX(Matrix_Category_Map,MATCH(D8,Matrix_Model_Category,0),2) -> B101N | I8: =IFERROR(INDEX([2]EskRateMatrixRD!$B$2:$AR$257,MATCH($H8,[2]EskRateMatrixRD!$B$2:$B$257,0),MATCH(I$6,[2]EskRateMatrixRD!$B$1:$AR$1,0)),"n/a") -> 0 | J8: =IFERROR(INDEX([2]EskRateMatrixRD!$B$2:$AR$257,MATCH($H8,[2]EskRateMatrixRD!$B$2:$B$257,0),MATCH(J$6,[2]EskRateMatrixRD!$B$1:$AR$1,0)),"n/a") -> 0 | K8: =IFERROR(INDEX([2]EskRateMatrixRD!$B$2:$AR$257,MATCH($H8,[2]EskRateMatrixRD!$B$2:$B$257,0),MATCH(K$6,[2]EskRateMatrixRD!$B$1:$AR$1,0)),"n/a") -> 124.19 | L8: =IFERROR(INDEX([2]EskRateMatrixRD!$B$2:$AR$257,MATCH($H8,[2]EskRateMatrixRD!$B$2:$B$257,0),MATCH(L$6,[2]EskRateMatrixRD!$B$1:$AR$1,0)),"n/a") -> 0.48 | M8: =IFERROR(INDEX([2]EskRateMatrixRD!$B$2:$AR$257,MATCH($H8,[2]EskRateMatrixRD!$B$2:$B$257,0),MATCH(M$6,[2]EskRateMatrixRD!$B$1:$AR$1,0)),"n/a") -> 17.53 | N8: =IFERROR(INDEX([2]EskRateMatrixRD!$B$2:$AR$257,MATCH($H8,[2]EskRateMatrixRD!$B$2:$B$257,0),MATCH(N$6,[2]EskRateMatrixRD!$B$1:$AR$1,0)),"n/a") -> 25.18 | O8: =IFERROR(INDEX([2]EskRateMatrixRD!$B$2:$AR$257,MATCH($H8,[2]EskRateMatrixRD!$B$2:$B$257,0),MATCH(O$6,[2]EskRateMatrixRD!$B$1:$AR$1,0)),"n/a") -> 21.75 | P8: =IFERROR(INDEX([2]EskRateMatrixRD!$B$2:$AR$257,MATCH($H8,[2]EskRateMatrixRD!$B$2:$B$257,0),MATCH(P$6,[2]EskRateMatrixRD!$B$1:$AR$1,0)),"n/a") -> n/a
C9: Businessrate 2 | D9: Non-Local Authority | G9: =C9&"_"&D9 -> Businessrate 2_Non-Local Authority | H9: B201N | I9: =IFERROR(INDEX([2]EskRateMatrixRD!$B$2:$AR$257,MATCH($H9,[2]EskRateMatrixRD!$B$2:$B$257,0),MATCH(I$6,[2]EskRateMatrixRD!$B$1:$AR$1,0)),"n/a") -> 0 | J9: =IFERROR(INDEX([2]EskRateMatrixRD!$B$2:$AR$257,MATCH($H9,[2]EskRateMatrixRD!$B$2:$B$257,0),MATCH(J$6,[2]EskRateMatrixRD!$B$1:$AR$1,0)),"n/a") -> 0 | K9: =IFERROR(INDEX([2]EskRateMatrixRD!$B$2:$AR$257,MATCH($H9,[2]EskRateMatrixRD!$B$2:$B$257,0),MATCH(K$6,[2]EskRateMatrixRD!$B$1:$AR$1,0)),"n/a") -> 124.19 | L9: =IFERROR(INDEX([2]EskRateMatrixRD!$B$2:$AR$257,MATCH($H9,[2]EskRateMatrixRD!$B$2:$B$257,0),MATCH(L$6,[2]EskRateMatrixRD!$B$1:$AR$1,0)),"n/a") -> 0.48 | M9: =IFERROR(INDEX([2]EskRateMatrixRD!$B$2:$AR$257,MATCH($H9,[2]EskRateMatrixRD!$B$2:$B$257,0),MATCH(M$6,[2]EskRateMatrixRD!$B$1:$AR$1,0)),"n/a") -> 17.53 | N9: =IFERROR(INDEX([2]EskRateMatrixRD!$B$2:$AR$257,MATCH($H9,[2]EskRateMatrixRD!$B$2:$B$257,0),MATCH(N$6,[2]EskRateMatrixRD!$B$1:$AR$1,0)),"n/a") -> 42.42 | O9: =IFERROR(INDEX([2]EskRateMatrixRD!$B$2:$AR$257,MATCH($H9,[2]EskRateMatrixRD!$B$2:$B$257,0),MATCH(O$6,[2]EskRateMatrixRD!$B$1:$AR$1,0)),"n/a") -> 21.75 | P9: =IFERROR(INDEX([2]EskRateMatrixRD!$B$2:$AR$257,MATCH($H9,[2]EskRateMatrixRD!$B$2:$B$257,0),MATCH(P$6,[2]EskRateMatrixRD!$B$1:$AR$1,0)),"n/a") -> n/a
C10: Businessrate 3 | D10: Non-Local Authority | G10: Businessrate 3_Non-Local Authority | H10: B301N | I10: =IFERROR(INDEX([2]EskRateMatrixRD!$B$2:$AR$257,MATCH($H10,[2]EskRateMatrixRD!$B$2:$B$257,0),MATCH(I$6,[2]EskRateMatrixRD!$B$1:$AR$1,0)),"n/a") -> 0 | J10: =IFERROR(INDEX([2]EskRateMatrixRD!$B$2:$AR$257,MATCH($H10,[2]EskRateMatrixRD!$B$2:$B$257,0),MATCH(J$6,[2]EskRateMatrixRD!$B$1:$AR$1,0)),"n/a") -> 0 | K10: =IFERROR(INDEX([2]EskRateMatrixRD!$B$2:$AR$257,MATCH($H10,[2]EskRateMatrixRD!$B$2:$B$257,0),MATCH(K$6,[2]EskRateMatrixRD!$B$1:$AR$1,0)),"n/a") -> 124.19 | L10: =IFERROR(INDEX([2]EskRateMatrixRD!$B$2:$AR$257,MATCH($H10,[2]EskRateMatrixRD!$B$2:$B$257,0),MATCH(L$6,[2]EskRateMatrixRD!$B$1:$AR$1,0)),"n/a") -> 0.48 | M10: =IFERROR(INDEX([2]EskRateMatrixRD!$B$2:$AR$257,MATCH($H10,[2]EskRateMatrixRD!$B$2:$B$257,0),MATCH(M$6,[2]EskRateMatrixRD!$B$1:$AR$1,0)),"n/a") -> 17.53 | N10: =IFERROR(INDEX([2]EskRateMatrixRD!$B$2:$AR$257,MATCH($H10,[2]EskRateMatrixRD!$B$2:$B$257,0),MATCH(N$6,[2]EskRateMatrixRD!$B$1:$AR$1,0)),"n/a") -> 73.29 | O10: =IFERROR(INDEX([2]EskRateMatrixRD!$B$2:$AR$257,MATCH($H10,[2]EskRateMatrixRD!$B$2:$B$257,0),MATCH(O$6,[2]EskRateMatrixRD!$B$1:$AR$1,0)),"n/a") -> 21.75 | P10: =IFERROR(INDEX([2]EskRateMatrixRD!$B$2:$AR$257,MATCH($H10,[2]EskRateMatrixRD!$B$2:$B$257,0),MATCH(P$6,[2]EskRateMatrixRD!$B$1:$AR$1,0)),"n/a") -> n/a
C11: Businessrate 4 | D11: Non-Local Authority | G11: =C11&"_"&D11 -> Businessrate 4_Non-Local Authority | H11: B401N | I11: =IFERROR(INDEX([2]EskRateMatrixRD!$B$2:$AR$257,MATCH($H11,[2]EskRateMatrixRD!$B$2:$B$257,0),MATCH(I$6,[2]EskRateMatrixRD!$B$1:$AR$1,0)),"n/a") -> 0 | J11: =IFERROR(INDEX([2]EskRateMatrixRD!$B$2:$AR$257,MATCH($H11,[2]EskRateMatrixRD!$B$2:$B$257,0),MATCH(J$6,[2]EskRateMatrixRD!$B$1:$AR$1,0)),"n/a") -> 0 | K11: =IFERROR(INDEX([2]EskRateMatrixRD!$B$2:$AR$257,MATCH($H11,[2]EskRateMatrixRD!$B$2:$B$257,0),MATCH(K$6,[2]EskRateMatrixRD!$B$1:$AR$1,0)),"n/a") -> 334.21 | L11: =IFERROR(INDEX([2]EskRateMatrixRD!$B$2:$AR$257,MATCH($H11,[2]EskRateMatrixRD!$B$2:$B$257,0),MATCH(L$6,[2]EskRateMatrixRD!$B$1:$AR$1,0)),"n/a") -> 0.48 | M11: =IFERROR(INDEX([2]EskRateMatrixRD!$B$2:$AR$257,MATCH($H11,[2]EskRateMatrixRD!$B$2:$B$257,0),MATCH(M$6,[2]EskRateMatrixRD!$B$1:$AR$1,0)),"n/a") -> 17.53 | N11: =IFERROR(INDEX([2]EskRateMatrixRD!$B$2:$AR$257,MATCH($H11,[2]EskRateMatrixRD!$B$2:$B$257,0),MATCH(N$6,[2]EskRateMatrixRD!$B$1:$AR$1,0)),"n/a") -> 0 | O11: =IFERROR(INDEX([2]EskRateMatrixRD!$B$2:$AR$257,MATCH($H11,[2]EskRateMatrixRD!$B$2:$B$257,0),MATCH(O$6,[2]EskRateMatrixRD!$B$1:$AR$1,0)),"n/a") -> 0 | P11: =IFERROR(INDEX([2]EskRateMatrixRD!$B$2:$AR$257,MATCH($H11,[2]EskRateMatrixRD!$B$2:$B$257,0),MATCH(P$6,[2]EskRateMatrixRD!$B$1:$AR$1,0)),"n/a") -> n/a
C12: Homepower Bulk | D12: Non-Local Authority | G12: =C12&"_"&D12 -> Homepower Bulk_Non-Local Authority | H12: HB01N | I12: =IFERROR(INDEX([2]EskRateMatrixRD!$B$2:$AR$257,MATCH($H12,[2]EskRateMatrixRD!$B$2:$B$257,0),MATCH(I$6,[2]EskRateMatrixRD!$B$1:$AR$1,0)),"n/a") -> 0 | J12: =IFERROR(INDEX([2]EskRateMatrixRD!$B$2:$AR$257,MATCH($H12,[2]EskRateMatrixRD!$B$2:$B$257,0),MATCH(J$6,[2]EskRateMatrixRD!$B$1:$AR$1,0)),"n/a") -> 0 | K12: =IFERROR(INDEX([2]EskRateMatrixRD!$B$2:$AR$257,MATCH($H12,[2]EskRateMatrixRD!$B$2:$B$257,0),MATCH(K$6,[2]EskRateMatrixRD!$B$1:$AR$1,0)),"n/a") -> 191.1 | L12: =IFERROR(INDEX([2]EskRateMatrixRD!$B$2:$AR$257,MATCH($H12,[2]EskRateMatrixRD!$B$2:$B$257,0),MATCH(L$6,[2]EskRateMatrixRD!$B$1:$AR$1,0)),"n/a") -> 0 | M12: =IFERROR(INDEX([2]EskRateMatrixRD!$B$2:$AR$257,MATCH($H12,[2]EskRateMatrixRD!$B$2:$B$257,0),MATCH(M$6,[2]EskRateMatrixRD!$B$1:$AR$1,0)),"n/a") -> 0 | N12: =IFERROR(INDEX([2]EskRateMatrixRD!$B$2:$AR$257,MATCH($H12,[2]EskRateMatrixRD!$B$2:$B$257,0),MATCH(N$5,[2]EskRateMatrixRD!$B$1:$AR$1,0)),"n/a") -> 39.55 | O12: =IFERROR(INDEX([2]EskRateMatrixRD!$B$2:$AR$257,MATCH($H12,[2]EskRateMatrixRD!$B$2:$B$257,0),MATCH(O$6,[2]EskRateMatrixRD!$B$1:$AR$1,0)),"n/a") -> 0 | P12: =IFERROR(INDEX([2]EskRateMatrixRD!$B$2:$AR$257,MATCH($H12,[2]EskRateMatrixRD!$B$2:$B$257,0),MATCH(P$6,[2]EskRateMatrixRD!$B$1:$AR$1,0)),"n/a") -> n/a
C13: Homepower 1 | D13: Non-Local Authority | G13: =C13&"_"&D13 -> Homepower 1_Non-Local Authority | H13: H101N | I13: =IFERROR(INDEX([2]EskRateMatrixRD!$B$2:$AR$257,MATCH($H13,[2]EskRateMatrixRD!$B$2:$B$257,0),MATCH(I$6,[2]EskRateMatrixRD!$B$1:$AR$1,0)),"n/a") -> 145.55 | J13: =IFERROR(INDEX([2]EskRateMatrixRD!$B$2:$AR$257,MATCH($H13,[2]EskRateMatrixRD!$B$2:$B$257,0),MATCH(J$6,[2]EskRateMatrixRD!$B$1:$AR$1,0)),"n/a") -> 229.83 | K13: =IFERROR(INDEX([2]EskRateMatrixRD!$B$2:$AR$257,MATCH($H13,[2]EskRateMatrixRD!$B$2:$B$257,0),MATCH(K$6,[2]EskRateMatrixRD!$B$1:$AR$1,0)),"n/a") -> 0 | L13: =IFERROR(INDEX([2]EskRateMatrixRD!$B$2:$AR$257,MATCH($H13,[2]EskRateMatrixRD!$B$2:$B$257,0),MATCH(L$6,[2]EskRateMatrixRD!$B$1:$AR$1,0)),"n/a") -> 0 | M13: =IFERROR(INDEX([2]EskRateMatrixRD!$B$2:$AR$257,MATCH($H13,[2]EskRateMatrixRD!$B$2:$B$257,0),MATCH(M$6,[2]EskRateMatrixRD!$B$1:$AR$1,0)),"n/a") -> 0 | N13: =IFERROR(INDEX([2]EskRateMatrixRD!$B$2:$AR$257,MATCH($H13,[2]EskRateMatrixRD!$B$2:$B$257,0),MATCH(N$6,[2]EskRateMatrixRD!$B$1:$AR$1,0)),"n/a") -> 6.23 | O13: =IFERROR(INDEX([2]EskRateMatrixRD!$B$2:$AR$257,MATCH($H13,[2]EskRateMatrixRD!$B$2:$B$257,0),MATCH(O$6,[2]EskRateMatrixRD!$B$1:$AR$1,0)),"n/a") -> 0 | P13: =IFERROR(INDEX([2]EskRateMatrixRD!$B$2:$AR$257,MATCH($H13,[2]EskRateMatrixRD!$B$2:$B$257,0),MATCH(P$6,[2]EskRateMatrixRD!$B$1:$AR$1,0)),"n/a") -> n/a
C14: Homepower 2 | D14: Non-Local Authority | G14: Homepower 2_Non-Local Authority | H14: H201N | I14: =IFERROR(INDEX([2]EskRateMatrixRD!$B$2:$AR$257,MATCH($H14,[2]EskRateMatrixRD!$B$2:$B$257,0),MATCH(I$6,[2]EskRateMatrixRD!$B$1:$AR$1,0)),"n/a") -> 145.55 | J14: =IFERROR(INDEX([2]EskRateMatrixRD!$B$2:$AR$257,MATCH($H14,[2]EskRateMatrixRD!$B$2:$B$257,0),MATCH(J$6,[2]EskRateMatrixRD!$B$1:$AR$1,0)),"n/a") -> 224.09 | K14: =IFERROR(INDEX([2]EskRateMatrixRD!$B$2:$AR$257,MATCH($H14,[2]EskRateMatrixRD!$B$2:$B$257,0),MATCH(K$6,[2]EskRateMatrixRD!$B$1:$AR$1,0)),"n/a") -> 0 | L14: =IFERROR(INDEX([2]EskRateMatrixRD!$B$2:$AR$257,MATCH($H14,[2]EskRateMatrixRD!$B$2:$B$257,0),MATCH(L$6,[2]EskRateMatrixRD!$B$1:$AR$1,0)),"n/a") -> 0 | M14: =IFERROR(INDEX([2]EskRateMatrixRD!$B$2:$AR$257,MATCH($H14,[2]EskRateMatrixRD!$B$2:$B$257,0),MATCH(M$6,[2]EskRateMatrixRD!$B$1:$AR$1,0)),"n/a") -> 0 | N14: =IFERROR(INDEX([2]EskRateMatrixRD!$B$2:$AR$257,MATCH($H14,[2]EskRateMatrixRD!$B$2:$B$257,0),MATCH(N$6,[2]EskRateMatrixRD!$B$1:$AR$1,0)),"n/a") -> 11.68 | O14: =IFERROR(INDEX([2]EskRateMatrixRD!$B$2:$AR$257,MATCH($H14,[2]EskRateMatrixRD!$B$2:$B$257,0),MATCH(O$6,[2]EskRateMatrixRD!$B$1:$AR$1,0)),"n/a") -> 0 | P14: =IFERROR(INDEX([2]EskRateMatrixRD!$B$2:$AR$257,MATCH($H14,[2]EskRateMatrixRD!$B$2:$B$257,0),MATCH(P$6,[2]EskRateMatrixRD!$B$1:$AR$1,0)),"n/a") -> n/a
C15: Homepower 3 | D15: Non-Local Authority | G15: Homepower 3_Non-Local Authority | H15: H301N | I15: =IFERROR(INDEX([2]EskRateMatrixRD!$B$2:$AR$257,MATCH($H15,[2]EskRateMatrixRD!$B$2:$B$257,0),MATCH(I$6,[2]EskRateMatrixRD!$B$1:$AR$1,0)),"n/a") -> 145.55 | J15: =IFERROR(INDEX([2]EskRateMatrixRD!$B$2:$AR$257,MATCH($H15,[2]EskRateMatrixRD!$B$2:$B$257,0),MATCH(J$6,[2]EskRateMatrixRD!$B$1:$AR$1,0)),"n/a") -> 224.09 | K15: =IFERROR(INDEX([2]EskRateMatrixRD!$B$2:$AR$257,MATCH($H15,[2]EskRateMatrixRD!$B$2:$B$257,0),MATCH(K$6,[2]EskRateMatrixRD!$B$1:$AR$1,0)),"n/a") -> 0 | L15: =IFERROR(INDEX([2]EskRateMatrixRD!$B$2:$AR$257,MATCH($H15,[2]EskRateMatrixRD!$B$2:$B$257,0),MATCH(L$6,[2]EskRateMatrixRD!$B$1:$AR$1,0)),"n/a") -> 0 | M15: =IFERROR(INDEX([2]EskRateMatrixRD!$B$2:$AR$257,MATCH($H15,[2]EskRateMatrixRD!$B$2:$B$257,0),MATCH(M$6,[2]EskRateMatrixRD!$B$1:$AR$1,0)),"n/a") -> 0 | N15: =IFERROR(INDEX([2]EskRateMatrixRD!$B$2:$AR$257,MATCH($H15,[2]EskRateMatrixRD!$B$2:$B$257,0),MATCH(N$6,[2]EskRateMatrixRD!$B$1:$AR$1,0)),"n/a") -> 24.12 | O15: =IFERROR(INDEX([2]EskRateMatrixRD!$B$2:$AR$257,MATCH($H15,[2]EskRateMatrixRD!$B$2:$B$257,0),MATCH(O$6,[2]EskRateMatrixRD!$B$1:$AR$1,0)),"n/a") -> 0 | P15: =IFERROR(INDEX([2]EskRateMatrixRD!$B$2:$AR$257,MATCH($H15,[2]EskRateMatrixRD!$B$2:$B$257,0),MATCH(P$6,[2]EskRateMatrixRD!$B$1:$AR$1,0)),"n/a") -> n/a
C16: Homepower 4 | D16: Non-Local Authority | G16: Homepower 4_Non-Local Authority | H16: H401N | I16: =IFERROR(INDEX([2]EskRateMatrixRD!$B$2:$AR$257,MATCH($H16,[2]EskRateMatrixRD!$B$2:$B$257,0),MATCH(I$6,[2]EskRateMatrixRD!$B$1:$AR$1,0)),"n/a") -> 145.55 | J16: =IFERROR(INDEX([2]EskRateMatrixRD!$B$2:$AR$257,MATCH($H16,[2]EskRateMatrixRD!$B$2:$B$257,0),MATCH(J$6,[2]EskRateMatrixRD!$B$1:$AR$1,0)),"n/a") -> 234.06 | K16: =IFERROR(INDEX([2]EskRateMatrixRD!$B$2:$AR$257,MATCH($H16,[2]EskRateMatrixRD!$B$2:$B$257,0),MATCH(K$6,[2]EskRateMatrixRD!$B$1:$AR$1,0)),"n/a") -> 0 | L16: =IFERROR(INDEX([2]EskRateMatrixRD!$B$2:$AR$257,MATCH($H16,[2]EskRateMatrixRD!$B$2:$B$257,0),MATCH(L$6,[2]EskRateMatrixRD!$B$1:$AR$1,0)),"n/a") -> 0 | M16: =IFERROR(INDEX([2]EskRateMatrixRD!$B$2:$AR$257,MATCH($H16,[2]EskRateMatrixRD!$B$2:$B$257,0),MATCH(M$6,[2]EskRateMatrixRD!$B$1:$AR$1,0)),"n/a") -> 0 | N16: =IFERROR(INDEX([2]EskRateMatrixRD!$B$2:$AR$257,MATCH($H16,[2]EskRateMatrixRD!$B$2:$B$257,0),MATCH(N$6,[2]EskRateMatrixRD!$B$1:$AR$1,0)),"n/a") -> 3.81 | O16: =IFERROR(INDEX([2]EskRateMatrixRD!$B$2:$AR$257,MATCH($H16,[2]EskRateMatrixRD!$B$2:$B$257,0),MATCH(O$6,[2]EskRateMatrixRD!$B$1:$AR$1,0)),"n/a") -> 0 | P16: =IFERROR(INDEX([2]EskRateMatrixRD!$B$2:$AR$257,MATCH($H16,[2]EskRateMatrixRD!$B$2:$B$257,0),MATCH(P$6,[2]EskRateMatrixRD!$B$1:$AR$1,0)),"n/a") -> n/a
C17: Homelight 20A | D17: Non-Local Authority | G17: Homelight 20A_Non-Local Authority | H17: HL2001N | I17: =IFERROR(INDEX([2]EskRateMatrixRD!$B$2:$AR$257,MATCH($H17,[2]EskRateMatrixRD!$B$2:$B$257,0),MATCH(I$6,[2]EskRateMatrixRD!$B$1:$AR$1,0)),"n/a") -> 121.67 | J17: =IFERROR(INDEX([2]EskRateMatrixRD!$B$2:$AR$257,MATCH($H17,[2]EskRateMatrixRD!$B$2:$B$257,0),MATCH(J$6,[2]EskRateMatrixRD!$B$1:$AR$1,0)),"n/a") -> 137.86 | K17: =IFERROR(INDEX([2]EskRateMatrixRD!$B$2:$AR$257,MATCH($H17,[2]EskRateMatrixRD!$B$2:$B$257,0),MATCH(K$6,[2]EskRateMatrixRD!$B$1:$AR$1,0)),"n/a") -> 0 | L17: =IFERROR(INDEX([2]EskRateMatrixRD!$B$2:$AR$257,MATCH($H17,[2]EskRateMatrixRD!$B$2:$B$257,0),MATCH(L$6,[2]EskRateMatrixRD!$B$1:$AR$1,0)),"n/a") -> 0 | M17: =IFERROR(INDEX([2]EskRateMatrixRD!$B$2:$AR$257,MATCH($H17,[2]EskRateMatrixRD!$B$2:$B$257,0),MATCH(M$6,[2]EskRateMatrixRD!$B$1:$AR$1,0)),"n/a") -> 0 | N17: =IFERROR(INDEX([2]EskRateMatrixRD!$B$2:$AR$257,MATCH($H17,[2]EskRateMatrixRD!$B$2:$B$257,0),MATCH(N$6,[2]EskRateMatrixRD!$B$1:$AR$1,0)),"n/a") -> 0 | O17: =IFERROR(INDEX([2]EskRateMatrixRD!$B$2:$AR$257,MATCH($H17,[2]EskRateMatrixRD!$B$2:$B$257,0),MATCH(O$6,[2]EskRateMatrixRD!$B$1:$AR$1,0)),"n/a") -> 0 | P17: =IFERROR(INDEX([2]EskRateMatrixRD!$B$2:$AR$257,MATCH($H17,[2]EskRateMatrixRD!$B$2:$B$257,0),MATCH(P$6,[2]EskRateMatrixRD!$B$1:$AR$1,0)),"n/a") -> n/a
C18: Homelight 60A | D18: Non-Local Authority | G18: Homelight 60A_Non-Local Authority | H18: HL6001N | I18: =IFERROR(INDEX([2]EskRateMatrixRD!$B$2:$AR$257,MATCH($H18,[2]EskRateMatrixRD!$B$2:$B$257,0),MATCH(I$6,[2]EskRateMatrixRD!$B$1:$AR$1,0)),"n/a") -> 137.7 | J18: =IFERROR(INDEX([2]EskRateMatrixRD!$B$2:$AR$257,MATCH($H18,[2]EskRateMatrixRD!$B$2:$B$257,0),MATCH(J$6,[2]EskRateMatrixRD!$B$1:$AR$1,0)),"n/a") -> 234.06 | K18: =IFERROR(INDEX([2]EskRateMatrixRD!$B$2:$AR$257,MATCH($H18,[2]EskRateMatrixRD!$B$2:$B$257,0),MATCH(K$6,[2]EskRateMatrixRD!$B$1:$AR$1,0)),"n/a") -> 0 | L18: =IFERROR(INDEX([2]EskRateMatrixRD!$B$2:$AR$257,MATCH($H18,[2]EskRateMatrixRD!$B$2:$B$257,0),MATCH(L$6,[2]EskRateMatrixRD!$B$1:$AR$1,0)),"n/a") -> 0 | M18: =IFERROR(INDEX([2]EskRateMatrixRD!$B$2:$AR$257,MATCH($H18,[2]EskRateMatrixRD!$B$2:$B$257,0),MATCH(M$6,[2]EskRateMatrixRD!$B$1:$AR$1,0)),"n/a") -> 0 | N18: =IFERROR(INDEX([2]EskRateMatrixRD!$B$2:$AR$257,MATCH($H18,[2]EskRateMatrixRD!$B$2:$B$257,0),MATCH(N$6,[2]EskRateMatrixRD!$B$1:$AR$1,0)),"n/a") -> 0 | O18: =IFERROR(INDEX([2]EskRateMatrixRD!$B$2:$AR$257,MATCH($H18,[2]EskRateMatrixRD!$B$2:$B$257,0),MATCH(O$6,[2]EskRateMatrixRD!$B$1:$AR$1,0)),"n/a") -> 0 | P18: =IFERROR(INDEX([2]EskRateMatrixRD!$B$2:$AR$257,MATCH($H18,[2]EskRateMatrixRD!$B$2:$B$257,0),MATCH(P$6,[2]EskRateMatrixRD!$B$1:$AR$1,0)),"n/a") -> n/a
C19: Landrate 1 | D19: Non-Local Authority | G19: Landrate 1_Non-Local Authority | H19: L101N | I19: =IFERROR(INDEX([2]EskRateMatrixRD!$B$2:$AR$257,MATCH($H19,[2]EskRateMatrixRD!$B$2:$B$257,0),MATCH(I$6,[2]EskRateMatrixRD!$B$1:$AR$1,0)),"n/a") -> 0 | J19: =IFERROR(INDEX([2]EskRateMatrixRD!$B$2:$AR$257,MATCH($H19,[2]EskRateMatrixRD!$B$2:$B$257,0),MATCH(J$6,[2]EskRateMatrixRD!$B$1:$AR$1,0)),"n/a") -> 0 | K19: =IFERROR(INDEX([2]EskRateMatrixRD!$B$2:$AR$257,MATCH($H19,[2]EskRateMatrixRD!$B$2:$B$257,0),MATCH(K$6,[2]EskRateMatrixRD!$B$1:$AR$1,0)),"n/a") -> 123.58 | L19: =IFERROR(INDEX([2]EskRateMatrixRD!$B$2:$AR$257,MATCH($H19,[2]EskRateMatrixRD!$B$2:$B$257,0),MATCH(L$6,[2]EskRateMatrixRD!$B$1:$AR$1,0)),"n/a") -> 0.48 | M19: =IFERROR(INDEX([2]EskRateMatrixRD!$B$2:$AR$257,MATCH($H19,[2]EskRateMatrixRD!$B$2:$B$257,0),MATCH(M$6,[2]EskRateMatrixRD!$B$1:$AR$1,0)),"n/a") -> 30.88 | N19: =IFERROR(INDEX([2]EskRateMatrixRD!$B$2:$AR$257,MATCH($H19,[2]EskRateMatrixRD!$B$2:$B$257,0),MATCH(N$6,[2]EskRateMatrixRD!$B$1:$AR$1,0)),"n/a") -> 33.01 | O19: =IFERROR(INDEX([2]EskRateMatrixRD!$B$2:$AR$257,MATCH($H19,[2]EskRateMatrixRD!$B$2:$B$257,0),MATCH(O$6,[2]EskRateMatrixRD!$B$1:$AR$1,0)),"n/a") -> 27.41 | P19: =IFERROR(INDEX([2]EskRateMatrixRD!$B$2:$AR$257,MATCH($H19,[2]EskRateMatrixRD!$B$2:$B$257,0),MATCH(P$6,[2]EskRateMatrixRD!$B$1:$AR$1,0)),"n/a") -> n/a
C20: Landrate 2 | D20: Non-Local Authority | G20: Landrate 2_Non-Local Authority | H20: L201N | I20: =IFERROR(INDEX([2]EskRateMatrixRD!$B$2:$AR$257,MATCH($H20,[2]EskRateMatrixRD!$B$2:$B$257,0),MATCH(I$6,[2]EskRateMatrixRD!$B$1:$AR$1,0)),"n/a") -> 0 | J20: =IFERROR(INDEX([2]EskRateMatrixRD!$B$2:$AR$257,MATCH($H20,[2]EskRateMatrixRD!$B$2:$B$257,0),MATCH(J$6,[2]EskRateMatrixRD!$B$1:$AR$1,0)),"n/a") -> 0 | K20: =IFERROR(INDEX([2]EskRateMatrixRD!$B$2:$AR$257,MATCH($H20,[2]EskRateMatrixRD!$B$2:$B$257,0),MATCH(K$6,[2]EskRateMatrixRD!$B$1:$AR$1,0)),"n/a") -> 123.58 | L20: =IFERROR(INDEX([2]EskRateMatrixRD!$B$2:$AR$257,MATCH($H20,[2]EskRateMatrixRD!$B$2:$B$257,0),MATCH(L$6,[2]EskRateMatrixRD!$B$1:$AR$1,0)),"n/a") -> 0.48 | M20: =IFERROR(INDEX([2]EskRateMatrixRD!$B$2:$AR$257,MATCH($H20,[2]EskRateMatrixRD!$B$2:$B$257,0),MATCH(M$6,[2]EskRateMatrixRD!$B$1:$AR$1,0)),"n/a") -> 30.88 | N20: =IFERROR(INDEX([2]EskRateMatrixRD!$B$2:$AR$257,MATCH($H20,[2]EskRateMatrixRD!$B$2:$B$257,0),MATCH(N$6,[2]EskRateMatrixRD!$B$1:$AR$1,0)),"n/a") -> 50.74 | O20: =IFERROR(INDEX([2]EskRateMatrixRD!$B$2:$AR$257,MATCH($H20,[2]EskRateMatrixRD!$B$2:$B$257,0),MATCH(O$6,[2]EskRateMatrixRD!$B$1:$AR$1,0)),"n/a") -> 27.41 | P20: =IFERROR(INDEX([2]EskRateMatrixRD!$B$2:$AR$257,MATCH($H20,[2]EskRateMatrixRD!$B$2:$B$257,0),MATCH(P$6,[2]EskRateMatrixRD!$B$1:$AR$1,0)),"n/a") -> n/a
C21: Landrate 3 | D21: Non-Local Authority | G21: Landrate 3_Non-Local Authority | H21: L301N | I21: =IFERROR(INDEX([2]EskRateMatrixRD!$B$2:$AR$257,MATCH($H21,[2]EskRateMatrixRD!$B$2:$B$257,0),MATCH(I$6,[2]EskRateMatrixRD!$B$1:$AR$1,0)),"n/a") -> 0 | J21: =IFERROR(INDEX([2]EskRateMatrixRD!$B$2:$AR$257,MATCH($H21,[2]EskRateMatrixRD!$B$2:$B$257,0),MATCH(J$6,[2]EskRateMatrixRD!$B$1:$AR$1,0)),"n/a") -> 0 | K21: =IFERROR(INDEX([2]EskRateMatrixRD!$B$2:$AR$257,MATCH($H21,[2]EskRateMatrixRD!$B$2:$B$257,0),MATCH(K$6,[2]EskRateMatrixRD!$B$1:$AR$1,0)),"n/a") -> 123.58 | L21: =IFERROR(INDEX([2]EskRateMatrixRD!$B$2:$AR$257,MATCH($H21,[2]EskRateMatrixRD!$B$2:$B$257,0),MATCH(L$6,[2]EskRateMatrixRD!$B$1:$AR$1,0)),"n/a") -> 0.48 | M21: =IFERROR(INDEX([2]EskRateMatrixRD!$B$2:$AR$257,MATCH($H21,[2]EskRateMatrixRD!$B$2:$B$257,0),MATCH(M$6,[2]EskRateMatrixRD!$B$1:$AR$1,0)),"n/a") -> 30.88 | N21: =IFERROR(INDEX([2]EskRateMatrixRD!$B$2:$AR$257,MATCH($H21,[2]EskRateMatrixRD!$B$2:$B$257,0),MATCH(N$6,[2]EskRateMatrixRD!$B$1:$AR$1,0)),"n/a") -> 81.11 | O21: =IFERROR(INDEX([2]EskRateMatrixRD!$B$2:$AR$257,MATCH($H21,[2]EskRateMatrixRD!$B$2:$B$257,0),MATCH(O$6,[2]EskRateMatrixRD!$B$1:$AR$1,0)),"n/a") -> 27.41 | P21: =IFERROR(INDEX([2]EskRateMatrixRD!$B$2:$AR$257,MATCH($H21,[2]EskRateMatrixRD!$B$2:$B$257,0),MATCH(P$6,[2]EskRateMatrixRD!$B$1:$AR$1,0)),"n/a") -> n/a
C22: Landrate 4 | D22: Non-Local Authority | G22: Landrate 4_Non-Local Authority | H22: L401N | I22: =IFERROR(INDEX([2]EskRateMatrixRD!$B$2:$AR$257,MATCH($H22,[2]EskRateMatrixRD!$B$2:$B$257,0),MATCH(I$6,[2]EskRateMatrixRD!$B$1:$AR$1,0)),"n/a") -> 0 | J22: =IFERROR(INDEX([2]EskRateMatrixRD!$B$2:$AR$257,MATCH($H22,[2]EskRateMatrixRD!$B$2:$B$257,0),MATCH(J$6,[2]EskRateMatrixRD!$B$1:$AR$1,0)),"n/a") -> 0 | K22: =IFERROR(INDEX([2]EskRateMatrixRD!$B$2:$AR$257,MATCH($H22,[2]EskRateMatrixRD!$B$2:$B$257,0),MATCH(K$6,[2]EskRateMatrixRD!$B$1:$AR$1,0)),"n/a") -> 266.92 | L22: =IFERROR(INDEX([2]EskRateMatrixRD!$B$2:$AR$257,MATCH($H22,[2]EskRateMatrixRD!$B$2:$B$257,0),MATCH(L$6,[2]EskRateMatrixRD!$B$1:$AR$1,0)),"n/a") -> 0.48 | M22: =IFERROR(INDEX([2]EskRateMatrixRD!$B$2:$AR$257,MATCH($H22,[2]EskRateMatrixRD!$B$2:$B$257,0),MATCH(M$6,[2]EskRateMatrixRD!$B$1:$AR$1,0)),"n/a") -> 30.88 | N22: =IFERROR(INDEX([2]EskRateMatrixRD!$B$2:$AR$257,MATCH($H22,[2]EskRateMatrixRD!$B$2:$B$257,0),MATCH(N$6,[2]EskRateMatrixRD!$B$1:$AR$1,0)),"n/a") -> 26.28 | O22: =IFERROR(INDEX([2]EskRateMatrixRD!$B$2:$AR$257,MATCH($H22,[2]EskRateMatrixRD!$B$2:$B$257,0),MATCH(O$6,[2]EskRateMatrixRD!$B$1:$AR$1,0)),"n/a") -> 0 | P22: =IFERROR(INDEX([2]EskRateMatrixRD!$B$2:$AR$257,MATCH($H22,[2]EskRateMatrixRD!$B$2:$B$257,0),MATCH(P$6,[2]EskRateMatrixRD!$B$1:$AR$1,0)),"n/a") -> n/a
C23: Landrate Dx | D23: Non-Local Authority | G23: Landrate Dx_Non-Local Authority | H23: Ld01N | I23: =IFERROR(INDEX([2]EskRateMatrixRD!$B$2:$AR$257,MATCH($H23,[2]EskRateMatrixRD!$B$2:$B$257,0),MATCH(I$6,[2]EskRateMatrixRD!$B$1:$AR$1,0)),"n/a") -> 0 | J23: =IFERROR(INDEX([2]EskRateMatrixRD!$B$2:$AR$257,MATCH($H23,[2]EskRateMatrixRD!$B$2:$B$257,0),MATCH(J$6,[2]EskRateMatrixRD!$B$1:$AR$1,0)),"n/a") -> 0 | K23: =IFERROR(INDEX([2]EskRateMatrixRD!$B$2:$AR$257,MATCH($H23,[2]EskRateMatrixRD!$B$2:$B$257,0),MATCH(K$6,[2]EskRateMatrixRD!$B$1:$AR$1,0)),"n/a") -> 0 | L23: =IFERROR(INDEX([2]EskRateMatrixRD!$B$2:$AR$257,MATCH($H23,[2]EskRateMatrixRD!$B$2:$B$257,0),MATCH(L$6,[2]EskRateMatrixRD!$B$1:$AR$1,0)),"n/a") -> 0 | M23: =IFERROR(INDEX([2]EskRateMatrixRD!$B$2:$AR$257,MATCH($H23,[2]EskRateMatrixRD!$B$2:$B$257,0),MATCH(M$6,[2]EskRateMatrixRD!$B$1:$AR$1,0)),"n/a") -> 0 | N23: =IFERROR(INDEX([2]EskRateMatrixRD!$B$2:$AR$257,MATCH($H23,[2]EskRateMatrixRD!$B$2:$B$257,0),MATCH(N$6,[2]EskRateMatrixRD!$B$1:$AR$1,0)),"n/a") -> 0 | O23: =IFERROR(INDEX([2]EskRateMatrixRD!$B$2:$AR$257,MATCH($H23,[2]EskRateMatrixRD!$B$2:$B$257,0),MATCH(O$6,[2]EskRateMatrixRD!$B$1:$AR$1,0)),"n/a") -> 58.7839 | P23: =IFERROR(INDEX([2]EskRateMatrixRD!$B$2:$AR$257,MATCH($H23,[2]EskRateMatrixRD!$B$2:$B$257,0),MATCH(P$6,[2]EskRateMatrixRD!$B$1:$AR$1,0)),"n/a") -> n/a
C24: Landlight 20A | D24: Non-Local Authority | G24: =C24&"_"&D24 -> Landlight 20A_Non-Local Authority | H24: Lt2001N | I24: =IFERROR(INDEX([2]EskRateMatrixRD!$B$2:$AR$257,MATCH($H24,[2]EskRateMatrixRD!$B$2:$B$257,0),MATCH(I$6,[2]EskRateMatrixRD!$B$1:$AR$1,0)),"n/a") -> 0 | J24: =IFERROR(INDEX([2]EskRateMatrixRD!$B$2:$AR$257,MATCH($H24,[2]EskRateMatrixRD!$B$2:$B$257,0),MATCH(J$6,[2]EskRateMatrixRD!$B$1:$AR$1,0)),"n/a") -> 0 | K24: =IFERROR(INDEX([2]EskRateMatrixRD!$B$2:$AR$257,MATCH($H24,[2]EskRateMatrixRD!$B$2:$B$257,0),MATCH(K$6,[2]EskRateMatrixRD!$B$1:$AR$1,0)),"n/a") -> 355.35 | L24: =IFERROR(INDEX([2]EskRateMatrixRD!$B$2:$AR$257,MATCH($H24,[2]EskRateMatrixRD!$B$2:$B$257,0),MATCH(L$6,[2]EskRateMatrixRD!$B$1:$AR$1,0)),"n/a") -> 0 | M24: =IFERROR(INDEX([2]EskRateMatrixRD!$B$2:$AR$257,MATCH($H24,[2]EskRateMatrixRD!$B$2:$B$257,0),MATCH(M$6,[2]EskRateMatrixRD!$B$1:$AR$1,0)),"n/a") -> 0 | N24: =IFERROR(INDEX([2]EskRateMatrixRD!$B$2:$AR$257,MATCH($H24,[2]EskRateMatrixRD!$B$2:$B$257,0),MATCH(N$6,[2]EskRateMatrixRD!$B$1:$AR$1,0)),"n/a") -> 0 | O24: =IFERROR(INDEX([2]EskRateMatrixRD!$B$2:$AR$257,MATCH($H24,[2]EskRateMatrixRD!$B$2:$B$257,0),MATCH(O$6,[2]EskRateMatrixRD!$B$1:$AR$1,0)),"n/a") -> 0 | P24: =IFERROR(INDEX([2]EskRateMatrixRD!$B$2:$AR$257,MATCH($H24,[2]EskRateMatrixRD!$B$2:$B$257,0),MATCH(P$6,[2]EskRateMatrixRD!$B$1:$AR$1,0)),"n/a") -> n/a
C25: Landlight 60A | D25: Non-Local Authority | G25: =C25&"_"&D25 -> Landlight 60A_Non-Local Authority | H25: =INDEX(Matrix_Tariff_Map,MATCH(C25,Matrix_Model_Tariffs,0),2)&IFERROR(INDEX(Matrix_Transmission_Map,MATCH(E25,Matrix_Model_Transmission,0),2),0)&IFERROR(INDEX(Matrix_Voltage_Map,MATCH(F25,Matrix_Model_Voltage,0),2),1)&INDEX(Matrix_Category_Map,MATCH(D25,Matrix_Model_Category,0),2) -> Lt6001N | I25: =IFERROR(INDEX([2]EskRateMatrixRD!$B$2:$AR$257,MATCH($H25,[2]EskRateMatrixRD!$B$2:$B$257,0),MATCH(I$6,[2]EskRateMatrixRD!$B$1:$AR$1,0)),"n/a") -> 0 | J25: =IFERROR(INDEX([2]EskRateMatrixRD!$B$2:$AR$257,MATCH($H25,[2]EskRateMatrixRD!$B$2:$B$257,0),MATCH(J$6,[2]EskRateMatrixRD!$B$1:$AR$1,0)),"n/a") -> 0 | K25: =IFERROR(INDEX([2]EskRateMatrixRD!$B$2:$AR$257,MATCH($H25,[2]EskRateMatrixRD!$B$2:$B$257,0),MATCH(K$6,[2]EskRateMatrixRD!$B$1:$AR$1,0)),"n/a") -> 458.09 | L25: =IFERROR(INDEX([2]EskRateMatrixRD!$B$2:$AR$257,MATCH($H25,[2]EskRateMatrixRD!$B$2:$B$257,0),MATCH(L$6,[2]EskRateMatrixRD!$B$1:$AR$1,0)),"n/a") -> 0 | M25: =IFERROR(INDEX([2]EskRateMatrixRD!$B$2:$AR$257,MATCH($H25,[2]EskRateMatrixRD!$B$2:$B$257,0),MATCH(M$6,[2]EskRateMatrixRD!$B$1:$AR$1,0)),"n/a") -> 0 | N25: =IFERROR(INDEX([2]EskRateMatrixRD!$B$2:$AR$257,MATCH($H25,[2]EskRateMatrixRD!$B$2:$B$257,0),MATCH(N$6,[2]EskRateMatrixRD!$B$1:$AR$1,0)),"n/a") -> 0 | O25: =IFERROR(INDEX([2]EskRateMatrixRD!$B$2:$AR$257,MATCH($H25,[2]EskRateMatrixRD!$B$2:$B$257,0),MATCH(O$6,[2]EskRateMatrixRD!$B$1:$AR$1,0)),"n/a") -> 0 | P25: =IFERROR(INDEX([2]EskRateMatrixRD!$B$2:$AR$257,MATCH($H25,[2]EskRateMatrixRD!$B$2:$B$257,0),MATCH(P$6,[2]EskRateMatrixRD!$B$1:$AR$1,0)),"n/a") -> n/a
C26: Public Lighting All Night | D26: Non-Local Authority | G26: =C26&"_"&D26 -> Public Lighting All Night_Non-Local Authority | H26: =INDEX(Matrix_Tariff_Map,MATCH(C26,Matrix_Model_Tariffs,0),2)&IFERROR(INDEX(Matrix_Transmission_Map,MATCH(E26,Matrix_Model_Transmission,0),2),0)&IFERROR(INDEX(Matrix_Voltage_Map,MATCH(F26,Matrix_Model_Voltage,0),2),1)&INDEX(Matrix_Category_Map,MATCH(D26,Matrix_Model_Category,0),2) -> Pa01N | I26: =IFERROR(INDEX([2]EskRateMatrixRD!$B$2:$AR$257,MATCH($H26,[2]EskRateMatrixRD!$B$2:$B$257,0),MATCH(I$6,[2]EskRateMatrixRD!$B$1:$AR$1,0)),"n/a") -> 0 | J26: =IFERROR(INDEX([2]EskRateMatrixRD!$B$2:$AR$257,MATCH($H26,[2]EskRateMatrixRD!$B$2:$B$257,0),MATCH(J$6,[2]EskRateMatrixRD!$B$1:$AR$1,0)),"n/a") -> 0 | K26: =IFERROR(INDEX([2]EskRateMatrixRD!$B$2:$AR$257,MATCH($H26,[2]EskRateMatrixRD!$B$2:$B$257,0),MATCH(K$6,[2]EskRateMatrixRD!$B$1:$AR$1,0)),"n/a") -> 98.83 | L26: =IFERROR(INDEX([2]EskRateMatrixRD!$B$2:$AR$257,MATCH($H26,[2]EskRateMatrixRD!$B$2:$B$257,0),MATCH(L$6,[2]EskRateMatrixRD!$B$1:$AR$1,0)),"n/a") -> 0 | M26: =IFERROR(INDEX([2]EskRateMatrixRD!$B$2:$AR$257,MATCH($H26,[2]EskRateMatrixRD!$B$2:$B$257,0),MATCH(M$6,[2]EskRateMatrixRD!$B$1:$AR$1,0)),"n/a") -> 0 | N26: =IFERROR(INDEX([2]EskRateMatrixRD!$B$2:$AR$257,MATCH($H26,[2]EskRateMatrixRD!$B$2:$B$257,0),MATCH(N$6,[2]EskRateMatrixRD!$B$1:$AR$1,0)),"n/a") -> 0 | O26: =IFERROR(INDEX([2]EskRateMatrixRD!$B$2:$AR$257,MATCH($H26,[2]EskRateMatrixRD!$B$2:$B$257,0),MATCH(O$6,[2]EskRateMatrixRD!$B$1:$AR$1,0)),"n/a") -> 0 | P26: =IFERROR(INDEX([2]EskRateMatrixRD!$B$2:$AR$257,MATCH($H26,[2]EskRateMatrixRD!$B$2:$B$257,0),MATCH(P$6,[2]EskRateMatrixRD!$B$1:$AR$1,0)),"n/a") -> n/a
C27: Public Lighting 24 Hours | D27: Non-Local Authority | G27: Public Lighting 24 Hours_Non-Local Authority | H27: =INDEX(Matrix_Tariff_Map,MATCH(C27,Matrix_Model_Tariffs,0),2)&IFERROR(INDEX(Matrix_Transmission_Map,MATCH(E27,Matrix_Model_Transmission,0),2),0)&IFERROR(INDEX(Matrix_Voltage_Map,MATCH(F27,Matrix_Model_Voltage,0),2),1)&INDEX(Matrix_Category_Map,MATCH(D27,Matrix_Model_Category,0),2) -> Pu01N | I27: =IFERROR(INDEX([2]EskRateMatrixRD!$B$2:$AR$257,MATCH($H27,[2]EskRateMatrixRD!$B$2:$B$257,0),MATCH(I$6,[2]EskRateMatrixRD!$B$1:$AR$1,0)),"n/a") -> 0 | J27: =IFERROR(INDEX([2]EskRateMatrixRD!$B$2:$AR$257,MATCH($H27,[2]EskRateMatrixRD!$B$2:$B$257,0),MATCH(J$6,[2]EskRateMatrixRD!$B$1:$AR$1,0)),"n/a") -> 0 | K27: =IFERROR(INDEX([2]EskRateMatrixRD!$B$2:$AR$257,MATCH($H27,[2]EskRateMatrixRD!$B$2:$B$257,0),MATCH(K$6,[2]EskRateMatrixRD!$B$1:$AR$1,0)),"n/a") -> 132.33 | L27: =IFERROR(INDEX([2]EskRateMatrixRD!$B$2:$AR$257,MATCH($H27,[2]EskRateMatrixRD!$B$2:$B$257,0),MATCH(L$6,[2]EskRateMatrixRD!$B$1:$AR$1,0)),"n/a") -> 0 | M27: =IFERROR(INDEX([2]EskRateMatrixRD!$B$2:$AR$257,MATCH($H27,[2]EskRateMatrixRD!$B$2:$B$257,0),MATCH(M$6,[2]EskRateMatrixRD!$B$1:$AR$1,0)),"n/a") -> 0 | N27: =IFERROR(INDEX([2]EskRateMatrixRD!$B$2:$AR$257,MATCH($H27,[2]EskRateMatrixRD!$B$2:$B$257,0),MATCH(N$6,[2]EskRateMatrixRD!$B$1:$AR$1,0)),"n/a") -> 0 | O27: =IFERROR(INDEX([2]EskRateMatrixRD!$B$2:$AR$257,MATCH($H27,[2]EskRateMatrixRD!$B$2:$B$257,0),MATCH(O$6,[2]EskRateMatrixRD!$B$1:$AR$1,0)),"n/a") -> 0 | P27: =IFERROR(INDEX([2]EskRateMatrixRD!$B$2:$AR$257,MATCH($H27,[2]EskRateMatrixRD!$B$2:$B$257,0),MATCH(P$6,[2]EskRateMatrixRD!$B$1:$AR$1,0)),"n/a") -> n/a
C28: Public Lighting Urban Fixed | D28: Non-Local Authority | G28: Public Lighting Urban Fixed_Non-Local Authority | H28: =INDEX(Matrix_Tariff_Map,MATCH(C28,Matrix_Model_Tariffs,0),2)&IFERROR(INDEX(Matrix_Transmission_Map,MATCH(E28,Matrix_Model_Transmission,0),2),0)&IFERROR(INDEX(Matrix_Voltage_Map,MATCH(F28,Matrix_Model_Voltage,0),2),1)&INDEX(Matrix_Category_Map,MATCH(D28,Matrix_Model_Category,0),2) -> Pt01N | I28: =IFERROR(INDEX([2]EskRateMatrixRD!$B$2:$AR$257,MATCH($H28,[2]EskRateMatrixRD!$B$2:$B$257,0),MATCH(I$6,[2]EskRateMatrixRD!$B$1:$AR$1,0)),"n/a") -> 0 | J28: =IFERROR(INDEX([2]EskRateMatrixRD!$B$2:$AR$257,MATCH($H28,[2]EskRateMatrixRD!$B$2:$B$257,0),MATCH(J$6,[2]EskRateMatrixRD!$B$1:$AR$1,0)),"n/a") -> 0 | K28: =IFERROR(INDEX([2]EskRateMatrixRD!$B$2:$AR$257,MATCH($H28,[2]EskRateMatrixRD!$B$2:$B$257,0),MATCH(K$6,[2]EskRateMatrixRD!$B$1:$AR$1,0)),"n/a") -> 0 | L28: =IFERROR(INDEX([2]EskRateMatrixRD!$B$2:$AR$257,MATCH($H28,[2]EskRateMatrixRD!$B$2:$B$257,0),MATCH(L$6,[2]EskRateMatrixRD!$B$1:$AR$1,0)),"n/a") -> 0 | M28: =IFERROR(INDEX([2]EskRateMatrixRD!$B$2:$AR$257,MATCH($H28,[2]EskRateMatrixRD!$B$2:$B$257,0),MATCH(M$6,[2]EskRateMatrixRD!$B$1:$AR$1,0)),"n/a") -> 0 | N28: =IFERROR(INDEX([2]EskRateMatrixRD!$B$2:$AR$257,MATCH($H28,[2]EskRateMatrixRD!$B$2:$B$257,0),MATCH(N$6,[2]EskRateMatrixRD!$B$1:$AR$1,0)),"n/a") -> 0 | O28: =IFERROR(INDEX([2]EskRateMatrixRD!$B$2:$AR$257,MATCH($H28,[2]EskRateMatrixRD!$B$2:$B$257,0),MATCH(O$6,[2]EskRateMatrixRD!$B$1:$AR$1,0)),"n/a") -> 6.5 | P28: =IFERROR(INDEX([2]EskRateMatrixRD!$B$2:$AR$257,MATCH($H28,[2]EskRateMatrixRD!$B$2:$B$257,0),MATCH(P$6,[2]EskRateMatrixRD!$B$1:$AR$1,0)),"n/a") -> n/a
C29: =C8 -> Businessrate 1 | D29: Local Authority | G29: Businessrate 1_Local Authority | H29: B101Y | I29: =IFERROR(INDEX([2]MunRateMatrixRD!$B$2:$AR$257,MATCH($H29,[2]MunRateMatrixRD!$B$2:$B$257,0),MATCH(I$6,[2]MunRateMatrixRD!$B$1:$AR$1,0)),"n/a") -> 0 | J29: =IFERROR(INDEX([2]MunRateMatrixRD!$B$2:$AR$257,MATCH($H29,[2]MunRateMatrixRD!$B$2:$B$257,0),MATCH(J$6,[2]MunRateMatrixRD!$B$1:$AR$1,0)),"n/a") -> 0 | K29: =IFERROR(INDEX([2]MunRateMatrixRD!$B$2:$AR$257,MATCH($H29,[2]MunRateMatrixRD!$B$2:$B$257,0),MATCH(K$6,[2]MunRateMatrixRD!$B$1:$AR$1,0)),"n/a") -> 127.04 | L29: =IFERROR(INDEX([2]MunRateMatrixRD!$B$2:$AR$257,MATCH($H29,[2]MunRateMatrixRD!$B$2:$B$257,0),MATCH(L$6,[2]MunRateMatrixRD!$B$1:$AR$1,0)),"n/a") -> 0.48 | M29: =IFERROR(INDEX([2]MunRateMatrixRD!$B$2:$AR$257,MATCH($H29,[2]MunRateMatrixRD!$B$2:$B$257,0),MATCH(M$6,[2]MunRateMatrixRD!$B$1:$AR$1,0)),"n/a") -> 17.61 | N29: =IFERROR(INDEX([2]MunRateMatrixRD!$B$2:$AR$257,MATCH($H29,[2]MunRateMatrixRD!$B$2:$B$257,0),MATCH(N$6,[2]MunRateMatrixRD!$B$1:$AR$1,0)),"n/a") -> 25.25 | O29: =IFERROR(INDEX([2]MunRateMatrixRD!$B$2:$AR$257,MATCH($H29,[2]MunRateMatrixRD!$B$2:$B$257,0),MATCH(O$6,[2]MunRateMatrixRD!$B$1:$AR$1,0)),"n/a") -> 21.62 | P29: =IFERROR(INDEX([2]MunRateMatrixRD!$B$2:$AR$257,MATCH($H29,[2]MunRateMatrixRD!$B$2:$B$257,0),MATCH(P$6,[2]MunRateMatrixRD!$B$1:$AR$1,0)),"n/a") -> n/a
C30: Businessrate 2 | D30: Local Authority | G30: =C30&"_"&D30 -> Businessrate 2_Local Authority | H30: B201Y | I30: =IFERROR(INDEX([2]MunRateMatrixRD!$B$2:$AR$257,MATCH($H30,[2]MunRateMatrixRD!$B$2:$B$257,0),MATCH(I$6,[2]MunRateMatrixRD!$B$1:$AR$1,0)),"n/a") -> 0 | J30: =IFERROR(INDEX([2]MunRateMatrixRD!$B$2:$AR$257,MATCH($H30,[2]MunRateMatrixRD!$B$2:$B$257,0),MATCH(J$6,[2]MunRateMatrixRD!$B$1:$AR$1,0)),"n/a") -> 0 | K30: =IFERROR(INDEX([2]MunRateMatrixRD!$B$2:$AR$257,MATCH($H30,[2]MunRateMatrixRD!$B$2:$B$257,0),MATCH(K$6,[2]MunRateMatrixRD!$B$1:$AR$1,0)),"n/a") -> 127.04 | L30: =IFERROR(INDEX([2]MunRateMatrixRD!$B$2:$AR$257,MATCH($H30,[2]MunRateMatrixRD!$B$2:$B$257,0),MATCH(L$6,[2]MunRateMatrixRD!$B$1:$AR$1,0)),"n/a") -> 0.48 | M30: =IFERROR(INDEX([2]MunRateMatrixRD!$B$2:$AR$257,MATCH($H30,[2]MunRateMatrixRD!$B$2:$B$257,0),MATCH(M$6,[2]MunRateMatrixRD!$B$1:$AR$1,0)),"n/a") -> 17.61 | N30: =IFERROR(INDEX([2]MunRateMatrixRD!$B$2:$AR$257,MATCH($H30,[2]MunRateMatrixRD!$B$2:$B$257,0),MATCH(N$6,[2]MunRateMatrixRD!$B$1:$AR$1,0)),"n/a") -> 42.58 | O30: =IFERROR(INDEX([2]MunRateMatrixRD!$B$2:$AR$257,MATCH($H30,[2]MunRateMatrixRD!$B$2:$B$257,0),MATCH(O$6,[2]MunRateMatrixRD!$B$1:$AR$1,0)),"n/a") -> 21.62 | P30: =IFERROR(INDEX([2]MunRateMatrixRD!$B$2:$AR$257,MATCH($H30,[2]MunRateMatrixRD!$B$2:$B$257,0),MATCH(P$6,[2]MunRateMatrixRD!$B$1:$AR$1,0)),"n/a") -> n/a
C31: Businessrate 3 | D31: Local Authority | G31: Businessrate 3_Local Authority | H31: B301Y | I31: =IFERROR(INDEX([2]MunRateMatrixRD!$B$2:$AR$257,MATCH($H31,[2]MunRateMatrixRD!$B$2:$B$257,0),MATCH(I$6,[2]MunRateMatrixRD!$B$1:$AR$1,0)),"n/a") -> 0 | J31: =IFERROR(INDEX([2]MunRateMatrixRD!$B$2:$AR$257,MATCH($H31,[2]MunRateMatrixRD!$B$2:$B$257,0),MATCH(J$6,[2]MunRateMatrixRD!$B$1:$AR$1,0)),"n/a") -> 0 | K31: =IFERROR(INDEX([2]MunRateMatrixRD!$B$2:$AR$257,MATCH($H31,[2]MunRateMatrixRD!$B$2:$B$257,0),MATCH(K$6,[2]MunRateMatrixRD!$B$1:$AR$1,0)),"n/a") -> 127.04 | L31: =IFERROR(INDEX([2]MunRateMatrixRD!$B$2:$AR$257,MATCH($H31,[2]MunRateMatrixRD!$B$2:$B$257,0),MATCH(L$6,[2]MunRateMatrixRD!$B$1:$AR$1,0)),"n/a") -> 0.48 | M31: =IFERROR(INDEX([2]MunRateMatrixRD!$B$2:$AR$257,MATCH($H31,[2]MunRateMatrixRD!$B$2:$B$257,0),MATCH(M$6,[2]MunRateMatrixRD!$B$1:$AR$1,0)),"n/a") -> 17.61 | N31: =IFERROR(INDEX([2]MunRateMatrixRD!$B$2:$AR$257,MATCH($H31,[2]MunRateMatrixRD!$B$2:$B$257,0),MATCH(N$6,[2]MunRateMatrixRD!$B$1:$AR$1,0)),"n/a") -> 73.58 | O31: =IFERROR(INDEX([2]MunRateMatrixRD!$B$2:$AR$257,MATCH($H31,[2]MunRateMatrixRD!$B$2:$B$257,0),MATCH(O$6,[2]MunRateMatrixRD!$B$1:$AR$1,0)),"n/a") -> 21.62 | P31: =IFERROR(INDEX([2]MunRateMatrixRD!$B$2:$AR$257,MATCH($H31,[2]MunRateMatrixRD!$B$2:$B$257,0),MATCH(P$6,[2]MunRateMatrixRD!$B$1:$AR$1,0)),"n/a") -> n/a
C32: Businessrate 4 | D32: Local Authority | G32: =C32&"_"&D32 -> Businessrate 4_Local Authority | H32: B401Y | I32: =IFERROR(INDEX([2]MunRateMatrixRD!$B$2:$AR$257,MATCH($H32,[2]MunRateMatrixRD!$B$2:$B$257,0),MATCH(I$6,[2]MunRateMatrixRD!$B$1:$AR$1,0)),"n/a") -> 0 | J32: =IFERROR(INDEX([2]MunRateMatrixRD!$B$2:$AR$257,MATCH($H32,[2]MunRateMatrixRD!$B$2:$B$257,0),MATCH(J$6,[2]MunRateMatrixRD!$B$1:$AR$1,0)),"n/a") -> 0 | K32: =IFERROR(INDEX([2]MunRateMatrixRD!$B$2:$AR$257,MATCH($H32,[2]MunRateMatrixRD!$B$2:$B$257,0),MATCH(K$6,[2]MunRateMatrixRD!$B$1:$AR$1,0)),"n/a") -> 341.87 | L32: =IFERROR(INDEX([2]MunRateMatrixRD!$B$2:$AR$257,MATCH($H32,[2]MunRateMatrixRD!$B$2:$B$257,0),MATCH(L$6,[2]MunRateMatrixRD!$B$1:$AR$1,0)),"n/a") -> 0.48 | M32: =IFERROR(INDEX([2]MunRateMatrixRD!$B$2:$AR$257,MATCH($H32,[2]MunRateMatrixRD!$B$2:$B$257,0),MATCH(M$6,[2]MunRateMatrixRD!$B$1:$AR$1,0)),"n/a") -> 17.61 | N32: =IFERROR(INDEX([2]MunRateMatrixRD!$B$2:$AR$257,MATCH($H32,[2]MunRateMatrixRD!$B$2:$B$257,0),MATCH(N$6,[2]MunRateMatrixRD!$B$1:$AR$1,0)),"n/a") -> 0 | O32: =IFERROR(INDEX([2]MunRateMatrixRD!$B$2:$AR$257,MATCH($H32,[2]MunRateMatrixRD!$B$2:$B$257,0),MATCH(O$6,[2]MunRateMatrixRD!$B$1:$AR$1,0)),"n/a") -> 0 | P32: =IFERROR(INDEX([2]MunRateMatrixRD!$B$2:$AR$257,MATCH($H32,[2]MunRateMatrixRD!$B$2:$B$257,0),MATCH(P$6,[2]MunRateMatrixRD!$B$1:$AR$1,0)),"n/a") -> n/a
C33: Homepower Bulk | D33: Local Authority | G33: =C33&"_"&D33 -> Homepower Bulk_Local Authority | H33: HB01Y | I33: =IFERROR(INDEX([2]MunRateMatrixRD!$B$2:$AR$257,MATCH($H33,[2]MunRateMatrixRD!$B$2:$B$257,0),MATCH(I$6,[2]MunRateMatrixRD!$B$1:$AR$1,0)),"n/a") -> 0 | J33: =IFERROR(INDEX([2]MunRateMatrixRD!$B$2:$AR$257,MATCH($H33,[2]MunRateMatrixRD!$B$2:$B$257,0),MATCH(J$6,[2]MunRateMatrixRD!$B$1:$AR$1,0)),"n/a") -> 0 | K33: =IFERROR(INDEX([2]MunRateMatrixRD!$B$2:$AR$257,MATCH($H33,[2]MunRateMatrixRD!$B$2:$B$257,0),MATCH(K$6,[2]MunRateMatrixRD!$B$1:$AR$1,0)),"n/a") -> 0 | L33: =IFERROR(INDEX([2]MunRateMatrixRD!$B$2:$AR$257,MATCH($H33,[2]MunRateMatrixRD!$B$2:$B$257,0),MATCH(L$6,[2]MunRateMatrixRD!$B$1:$AR$1,0)),"n/a") -> 0 | M33: =IFERROR(INDEX([2]MunRateMatrixRD!$B$2:$AR$257,MATCH($H33,[2]MunRateMatrixRD!$B$2:$B$257,0),MATCH(M$6,[2]MunRateMatrixRD!$B$1:$AR$1,0)),"n/a") -> 0 | N33: =IFERROR(INDEX([2]MunRateMatrixRD!$B$2:$AR$257,MATCH($H33,[2]MunRateMatrixRD!$B$2:$B$257,0),MATCH(N$6,[2]MunRateMatrixRD!$B$1:$AR$1,0)),"n/a") -> 0 | O33: =IFERROR(INDEX([2]MunRateMatrixRD!$B$2:$AR$257,MATCH($H33,[2]MunRateMatrixRD!$B$2:$B$257,0),MATCH(O$6,[2]MunRateMatrixRD!$B$1:$AR$1,0)),"n/a") -> 0 | P33: =IFERROR(INDEX([2]MunRateMatrixRD!$B$2:$AR$257,MATCH($H33,[2]MunRateMatrixRD!$B$2:$B$257,0),MATCH(P$6,[2]MunRateMatrixRD!$B$1:$AR$1,0)),"n/a") -> n/a
C34: Homepower 1 | D34: Local Authority | G34: =C34&"_"&D34 -> Homepower 1_Local Authority | H34: H101Y | I34: =IFERROR(INDEX([2]MunRateMatrixRD!$B$2:$AR$257,MATCH($H34,[2]MunRateMatrixRD!$B$2:$B$257,0),MATCH(I$6,[2]MunRateMatrixRD!$B$1:$AR$1,0)),"n/a") -> 145.43 | J34: =IFERROR(INDEX([2]MunRateMatrixRD!$B$2:$AR$257,MATCH($H34,[2]MunRateMatrixRD!$B$2:$B$257,0),MATCH(J$6,[2]MunRateMatrixRD!$B$1:$AR$1,0)),"n/a") -> 229.63 | K34: =IFERROR(INDEX([2]MunRateMatrixRD!$B$2:$AR$257,MATCH($H34,[2]MunRateMatrixRD!$B$2:$B$257,0),MATCH(K$6,[2]MunRateMatrixRD!$B$1:$AR$1,0)),"n/a") -> 0 | L34: =IFERROR(INDEX([2]MunRateMatrixRD!$B$2:$AR$257,MATCH($H34,[2]MunRateMatrixRD!$B$2:$B$257,0),MATCH(L$6,[2]MunRateMatrixRD!$B$1:$AR$1,0)),"n/a") -> 0 | M34: =IFERROR(INDEX([2]MunRateMatrixRD!$B$2:$AR$257,MATCH($H34,[2]MunRateMatrixRD!$B$2:$B$257,0),MATCH(M$6,[2]MunRateMatrixRD!$B$1:$AR$1,0)),"n/a") -> 0 | N34: =IFERROR(INDEX([2]MunRateMatrixRD!$B$2:$AR$257,MATCH($H34,[2]MunRateMatrixRD!$B$2:$B$257,0),MATCH(N$6,[2]MunRateMatrixRD!$B$1:$AR$1,0)),"n/a") -> 6.22 | O34: =IFERROR(INDEX([2]MunRateMatrixRD!$B$2:$AR$257,MATCH($H34,[2]MunRateMatrixRD!$B$2:$B$257,0),MATCH(O$6,[2]MunRateMatrixRD!$B$1:$AR$1,0)),"n/a") -> 0 | P34: =IFERROR(INDEX([2]MunRateMatrixRD!$B$2:$AR$257,MATCH($H34,[2]MunRateMatrixRD!$B$2:$B$257,0),MATCH(P$6,[2]MunRateMatrixRD!$B$1:$AR$1,0)),"n/a") -> n/a
C35: Homepower 2 | D35: Local Authority | G35: Homepower 2_Local Authority | H35: H201Y | I35: =IFERROR(INDEX([2]MunRateMatrixRD!$B$2:$AR$257,MATCH($H35,[2]MunRateMatrixRD!$B$2:$B$257,0),MATCH(I$6,[2]MunRateMatrixRD!$B$1:$AR$1,0)),"n/a") -> 145.43 | J35: =IFERROR(INDEX([2]MunRateMatrixRD!$B$2:$AR$257,MATCH($H35,[2]MunRateMatrixRD!$B$2:$B$257,0),MATCH(J$6,[2]MunRateMatrixRD!$B$1:$AR$1,0)),"n/a") -> 223.87 | K35: =IFERROR(INDEX([2]MunRateMatrixRD!$B$2:$AR$257,MATCH($H35,[2]MunRateMatrixRD!$B$2:$B$257,0),MATCH(K$6,[2]MunRateMatrixRD!$B$1:$AR$1,0)),"n/a") -> 0 | L35: =IFERROR(INDEX([2]MunRateMatrixRD!$B$2:$AR$257,MATCH($H35,[2]MunRateMatrixRD!$B$2:$B$257,0),MATCH(L$6,[2]MunRateMatrixRD!$B$1:$AR$1,0)),"n/a") -> 0 | M35: =IFERROR(INDEX([2]MunRateMatrixRD!$B$2:$AR$257,MATCH($H35,[2]MunRateMatrixRD!$B$2:$B$257,0),MATCH(M$6,[2]MunRateMatrixRD!$B$1:$AR$1,0)),"n/a") -> 0 | N35: =IFERROR(INDEX([2]MunRateMatrixRD!$B$2:$AR$257,MATCH($H35,[2]MunRateMatrixRD!$B$2:$B$257,0),MATCH(N$6,[2]MunRateMatrixRD!$B$1:$AR$1,0)),"n/a") -> 11.67 | O35: =IFERROR(INDEX([2]MunRateMatrixRD!$B$2:$AR$257,MATCH($H35,[2]MunRateMatrixRD!$B$2:$B$257,0),MATCH(O$6,[2]MunRateMatrixRD!$B$1:$AR$1,0)),"n/a") -> 0 | P35: =IFERROR(INDEX([2]MunRateMatrixRD!$B$2:$AR$257,MATCH($H35,[2]MunRateMatrixRD!$B$2:$B$257,0),MATCH(P$6,[2]MunRateMatrixRD!$B$1:$AR$1,0)),"n/a") -> n/a
C36: Homepower 3 | D36: Local Authority | G36: Homepower 3_Local Authority | H36: H301Y | I36: =IFERROR(INDEX([2]MunRateMatrixRD!$B$2:$AR$257,MATCH($H36,[2]MunRateMatrixRD!$B$2:$B$257,0),MATCH(I$6,[2]MunRateMatrixRD!$B$1:$AR$1,0)),"n/a") -> 145.43 | J36: =IFERROR(INDEX([2]MunRateMatrixRD!$B$2:$AR$257,MATCH($H36,[2]MunRateMatrixRD!$B$2:$B$257,0),MATCH(J$6,[2]MunRateMatrixRD!$B$1:$AR$1,0)),"n/a") -> 223.87 | K36: =IFERROR(INDEX([2]MunRateMatrixRD!$B$2:$AR$257,MATCH($H36,[2]MunRateMatrixRD!$B$2:$B$257,0),MATCH(K$6,[2]MunRateMatrixRD!$B$1:$AR$1,0)),"n/a") -> 0 | L36: =IFERROR(INDEX([2]MunRateMatrixRD!$B$2:$AR$257,MATCH($H36,[2]MunRateMatrixRD!$B$2:$B$257,0),MATCH(L$6,[2]MunRateMatrixRD!$B$1:$AR$1,0)),"n/a") -> 0 | M36: =IFERROR(INDEX([2]MunRateMatrixRD!$B$2:$AR$257,MATCH($H36,[2]MunRateMatrixRD!$B$2:$B$257,0),MATCH(M$6,[2]MunRateMatrixRD!$B$1:$AR$1,0)),"n/a") -> 0 | N36: =IFERROR(INDEX([2]MunRateMatrixRD!$B$2:$AR$257,MATCH($H36,[2]MunRateMatrixRD!$B$2:$B$257,0),MATCH(N$6,[2]MunRateMatrixRD!$B$1:$AR$1,0)),"n/a") -> 24.11 | O36: =IFERROR(INDEX([2]MunRateMatrixRD!$B$2:$AR$257,MATCH($H36,[2]MunRateMatrixRD!$B$2:$B$257,0),MATCH(O$6,[2]MunRateMatrixRD!$B$1:$AR$1,0)),"n/a") -> 0 | P36: =IFERROR(INDEX([2]MunRateMatrixRD!$B$2:$AR$257,MATCH($H36,[2]MunRateMatrixRD!$B$2:$B$257,0),MATCH(P$6,[2]MunRateMatrixRD!$B$1:$AR$1,0)),"n/a") -> n/a
C37: Homepower 4 | D37: Local Authority | G37: Homepower 4_Local Authority | H37: H401Y | I37: =IFERROR(INDEX([2]MunRateMatrixRD!$B$2:$AR$257,MATCH($H37,[2]MunRateMatrixRD!$B$2:$B$257,0),MATCH(I$6,[2]MunRateMatrixRD!$B$1:$AR$1,0)),"n/a") -> 145.43 | J37: =IFERROR(INDEX([2]MunRateMatrixRD!$B$2:$AR$257,MATCH($H37,[2]MunRateMatrixRD!$B$2:$B$257,0),MATCH(J$6,[2]MunRateMatrixRD!$B$1:$AR$1,0)),"n/a") -> 233.85 | K37: =IFERROR(INDEX([2]MunRateMatrixRD!$B$2:$AR$257,MATCH($H37,[2]MunRateMatrixRD!$B$2:$B$257,0),MATCH(K$6,[2]MunRateMatrixRD!$B$1:$AR$1,0)),"n/a") -> 0 | L37: =IFERROR(INDEX([2]MunRateMatrixRD!$B$2:$AR$257,MATCH($H37,[2]MunRateMatrixRD!$B$2:$B$257,0),MATCH(L$6,[2]MunRateMatrixRD!$B$1:$AR$1,0)),"n/a") -> 0 | M37: =IFERROR(INDEX([2]MunRateMatrixRD!$B$2:$AR$257,MATCH($H37,[2]MunRateMatrixRD!$B$2:$B$257,0),MATCH(M$6,[2]MunRateMatrixRD!$B$1:$AR$1,0)),"n/a") -> 0 | N37: =IFERROR(INDEX([2]MunRateMatrixRD!$B$2:$AR$257,MATCH($H37,[2]MunRateMatrixRD!$B$2:$B$257,0),MATCH(N$6,[2]MunRateMatrixRD!$B$1:$AR$1,0)),"n/a") -> 3.81 | O37: =IFERROR(INDEX([2]MunRateMatrixRD!$B$2:$AR$257,MATCH($H37,[2]MunRateMatrixRD!$B$2:$B$257,0),MATCH(O$6,[2]MunRateMatrixRD!$B$1:$AR$1,0)),"n/a") -> 0 | P37: =IFERROR(INDEX([2]MunRateMatrixRD!$B$2:$AR$257,MATCH($H37,[2]MunRateMatrixRD!$B$2:$B$257,0),MATCH(P$6,[2]MunRateMatrixRD!$B$1:$AR$1,0)),"n/a") -> n/a
C38: Homelight 20A | D38: Local Authority | G38: Homelight 20A_Local Authority | H38: HL2001Y | I38: =IFERROR(INDEX([2]MunRateMatrixRD!$B$2:$AR$257,MATCH($H38,[2]MunRateMatrixRD!$B$2:$B$257,0),MATCH(I$6,[2]MunRateMatrixRD!$B$1:$AR$1,0)),"n/a") -> 0 | J38: =IFERROR(INDEX([2]MunRateMatrixRD!$B$2:$AR$257,MATCH($H38,[2]MunRateMatrixRD!$B$2:$B$257,0),MATCH(J$6,[2]MunRateMatrixRD!$B$1:$AR$1,0)),"n/a") -> 0 | K38: =IFERROR(INDEX([2]MunRateMatrixRD!$B$2:$AR$257,MATCH($H38,[2]MunRateMatrixRD!$B$2:$B$257,0),MATCH(K$6,[2]MunRateMatrixRD!$B$1:$AR$1,0)),"n/a") -> 0 | L38: =IFERROR(INDEX([2]MunRateMatrixRD!$B$2:$AR$257,MATCH($H38,[2]MunRateMatrixRD!$B$2:$B$257,0),MATCH(L$6,[2]MunRateMatrixRD!$B$1:$AR$1,0)),"n/a") -> 0 | M38: =IFERROR(INDEX([2]MunRateMatrixRD!$B$2:$AR$257,MATCH($H38,[2]MunRateMatrixRD!$B$2:$B$257,0),MATCH(M$6,[2]MunRateMatrixRD!$B$1:$AR$1,0)),"n/a") -> 0 | N38: =IFERROR(INDEX([2]MunRateMatrixRD!$B$2:$AR$257,MATCH($H38,[2]MunRateMatrixRD!$B$2:$B$257,0),MATCH(N$6,[2]MunRateMatrixRD!$B$1:$AR$1,0)),"n/a") -> 0 | O38: =IFERROR(INDEX([2]MunRateMatrixRD!$B$2:$AR$257,MATCH($H38,[2]MunRateMatrixRD!$B$2:$B$257,0),MATCH(O$6,[2]MunRateMatrixRD!$B$1:$AR$1,0)),"n/a") -> 0 | P38: =IFERROR(INDEX([2]MunRateMatrixRD!$B$2:$AR$257,MATCH($H38,[2]MunRateMatrixRD!$B$2:$B$257,0),MATCH(P$6,[2]MunRateMatrixRD!$B$1:$AR$1,0)),"n/a") -> n/a
C39: Homelight 60A | D39: Local Authority | G39: Homelight 60A_Local Authority | H39: HL6001Y | I39: =IFERROR(INDEX([2]MunRateMatrixRD!$B$2:$AR$257,MATCH($H39,[2]MunRateMatrixRD!$B$2:$B$257,0),MATCH(I$6,[2]MunRateMatrixRD!$B$1:$AR$1,0)),"n/a") -> 0 | J39: =IFERROR(INDEX([2]MunRateMatrixRD!$B$2:$AR$257,MATCH($H39,[2]MunRateMatrixRD!$B$2:$B$257,0),MATCH(J$6,[2]MunRateMatrixRD!$B$1:$AR$1,0)),"n/a") -> 0 | K39: =IFERROR(INDEX([2]MunRateMatrixRD!$B$2:$AR$257,MATCH($H39,[2]MunRateMatrixRD!$B$2:$B$257,0),MATCH(K$6,[2]MunRateMatrixRD!$B$1:$AR$1,0)),"n/a") -> 0 | L39: =IFERROR(INDEX([2]MunRateMatrixRD!$B$2:$AR$257,MATCH($H39,[2]MunRateMatrixRD!$B$2:$B$257,0),MATCH(L$6,[2]MunRateMatrixRD!$B$1:$AR$1,0)),"n/a") -> 0 | M39: =IFERROR(INDEX([2]MunRateMatrixRD!$B$2:$AR$257,MATCH($H39,[2]MunRateMatrixRD!$B$2:$B$257,0),MATCH(M$6,[2]MunRateMatrixRD!$B$1:$AR$1,0)),"n/a") -> 0 | N39: =IFERROR(INDEX([2]MunRateMatrixRD!$B$2:$AR$257,MATCH($H39,[2]MunRateMatrixRD!$B$2:$B$257,0),MATCH(N$6,[2]MunRateMatrixRD!$B$1:$AR$1,0)),"n/a") -> 0 | O39: =IFERROR(INDEX([2]MunRateMatrixRD!$B$2:$AR$257,MATCH($H39,[2]MunRateMatrixRD!$B$2:$B$257,0),MATCH(O$6,[2]MunRateMatrixRD!$B$1:$AR$1,0)),"n/a") -> 0 | P39: =IFERROR(INDEX([2]MunRateMatrixRD!$B$2:$AR$257,MATCH($H39,[2]MunRateMatrixRD!$B$2:$B$257,0),MATCH(P$6,[2]MunRateMatrixRD!$B$1:$AR$1,0)),"n/a") -> n/a
C40: Landrate 1 | D40: Local Authority | G40: Landrate 1_Local Authority | H40: L101Y | I40: =IFERROR(INDEX([2]MunRateMatrixRD!$B$2:$AR$257,MATCH($H40,[2]MunRateMatrixRD!$B$2:$B$257,0),MATCH(I$6,[2]MunRateMatrixRD!$B$1:$AR$1,0)),"n/a") -> 0 | J40: =IFERROR(INDEX([2]MunRateMatrixRD!$B$2:$AR$257,MATCH($H40,[2]MunRateMatrixRD!$B$2:$B$257,0),MATCH(J$6,[2]MunRateMatrixRD!$B$1:$AR$1,0)),"n/a") -> 0 | K40: =IFERROR(INDEX([2]MunRateMatrixRD!$B$2:$AR$257,MATCH($H40,[2]MunRateMatrixRD!$B$2:$B$257,0),MATCH(K$6,[2]MunRateMatrixRD!$B$1:$AR$1,0)),"n/a") -> 126.41 | L40: =IFERROR(INDEX([2]MunRateMatrixRD!$B$2:$AR$257,MATCH($H40,[2]MunRateMatrixRD!$B$2:$B$257,0),MATCH(L$6,[2]MunRateMatrixRD!$B$1:$AR$1,0)),"n/a") -> 0.48 | M40: =IFERROR(INDEX([2]MunRateMatrixRD!$B$2:$AR$257,MATCH($H40,[2]MunRateMatrixRD!$B$2:$B$257,0),MATCH(M$6,[2]MunRateMatrixRD!$B$1:$AR$1,0)),"n/a") -> 31.16 | N40: =IFERROR(INDEX([2]MunRateMatrixRD!$B$2:$AR$257,MATCH($H40,[2]MunRateMatrixRD!$B$2:$B$257,0),MATCH(N$6,[2]MunRateMatrixRD!$B$1:$AR$1,0)),"n/a") -> 33.28 | O40: =IFERROR(INDEX([2]MunRateMatrixRD!$B$2:$AR$257,MATCH($H40,[2]MunRateMatrixRD!$B$2:$B$257,0),MATCH(O$6,[2]MunRateMatrixRD!$B$1:$AR$1,0)),"n/a") -> 27.24 | P40: =IFERROR(INDEX([2]MunRateMatrixRD!$B$2:$AR$257,MATCH($H40,[2]MunRateMatrixRD!$B$2:$B$257,0),MATCH(P$6,[2]MunRateMatrixRD!$B$1:$AR$1,0)),"n/a") -> n/a
C41: Landrate 2 | D41: Local Authority | G41: Landrate 2_Local Authority | H41: L201Y | I41: =IFERROR(INDEX([2]MunRateMatrixRD!$B$2:$AR$257,MATCH($H41,[2]MunRateMatrixRD!$B$2:$B$257,0),MATCH(I$6,[2]MunRateMatrixRD!$B$1:$AR$1,0)),"n/a") -> 0 | J41: =IFERROR(INDEX([2]MunRateMatrixRD!$B$2:$AR$257,MATCH($H41,[2]MunRateMatrixRD!$B$2:$B$257,0),MATCH(J$6,[2]MunRateMatrixRD!$B$1:$AR$1,0)),"n/a") -> 0 | K41: =IFERROR(INDEX([2]MunRateMatrixRD!$B$2:$AR$257,MATCH($H41,[2]MunRateMatrixRD!$B$2:$B$257,0),MATCH(K$6,[2]MunRateMatrixRD!$B$1:$AR$1,0)),"n/a") -> 126.41 | L41: =IFERROR(INDEX([2]MunRateMatrixRD!$B$2:$AR$257,MATCH($H41,[2]MunRateMatrixRD!$B$2:$B$257,0),MATCH(L$6,[2]MunRateMatrixRD!$B$1:$AR$1,0)),"n/a") -> 0.48 | M41: =IFERROR(INDEX([2]MunRateMatrixRD!$B$2:$AR$257,MATCH($H41,[2]MunRateMatrixRD!$B$2:$B$257,0),MATCH(M$6,[2]MunRateMatrixRD!$B$1:$AR$1,0)),"n/a") -> 31.16 | N41: =IFERROR(INDEX([2]MunRateMatrixRD!$B$2:$AR$257,MATCH($H41,[2]MunRateMatrixRD!$B$2:$B$257,0),MATCH(N$6,[2]MunRateMatrixRD!$B$1:$AR$1,0)),"n/a") -> 51.15 | O41: =IFERROR(INDEX([2]MunRateMatrixRD!$B$2:$AR$257,MATCH($H41,[2]MunRateMatrixRD!$B$2:$B$257,0),MATCH(O$6,[2]MunRateMatrixRD!$B$1:$AR$1,0)),"n/a") -> 27.24 | P41: =IFERROR(INDEX([2]MunRateMatrixRD!$B$2:$AR$257,MATCH($H41,[2]MunRateMatrixRD!$B$2:$B$257,0),MATCH(P$6,[2]MunRateMatrixRD!$B$1:$AR$1,0)),"n/a") -> n/a
C42: Landrate 3 | D42: Local Authority | G42: Landrate 3_Local Authority | H42: L301Y | I42: =IFERROR(INDEX([2]MunRateMatrixRD!$B$2:$AR$257,MATCH($H42,[2]MunRateMatrixRD!$B$2:$B$257,0),MATCH(I$6,[2]MunRateMatrixRD!$B$1:$AR$1,0)),"n/a") -> 0 | J42: =IFERROR(INDEX([2]MunRateMatrixRD!$B$2:$AR$257,MATCH($H42,[2]MunRateMatrixRD!$B$2:$B$257,0),MATCH(J$6,[2]MunRateMatrixRD!$B$1:$AR$1,0)),"n/a") -> 0 | K42: =IFERROR(INDEX([2]MunRateMatrixRD!$B$2:$AR$257,MATCH($H42,[2]MunRateMatrixRD!$B$2:$B$257,0),MATCH(K$6,[2]MunRateMatrixRD!$B$1:$AR$1,0)),"n/a") -> 126.41 | L42: =IFERROR(INDEX([2]MunRateMatrixRD!$B$2:$AR$257,MATCH($H42,[2]MunRateMatrixRD!$B$2:$B$257,0),MATCH(L$6,[2]MunRateMatrixRD!$B$1:$AR$1,0)),"n/a") -> 0.48 | M42: =IFERROR(INDEX([2]MunRateMatrixRD!$B$2:$AR$257,MATCH($H42,[2]MunRateMatrixRD!$B$2:$B$257,0),MATCH(M$6,[2]MunRateMatrixRD!$B$1:$AR$1,0)),"n/a") -> 31.16 | N42: =IFERROR(INDEX([2]MunRateMatrixRD!$B$2:$AR$257,MATCH($H42,[2]MunRateMatrixRD!$B$2:$B$257,0),MATCH(N$6,[2]MunRateMatrixRD!$B$1:$AR$1,0)),"n/a") -> 81.79 | O42: =IFERROR(INDEX([2]MunRateMatrixRD!$B$2:$AR$257,MATCH($H42,[2]MunRateMatrixRD!$B$2:$B$257,0),MATCH(O$6,[2]MunRateMatrixRD!$B$1:$AR$1,0)),"n/a") -> 27.24 | P42: =IFERROR(INDEX([2]MunRateMatrixRD!$B$2:$AR$257,MATCH($H42,[2]MunRateMatrixRD!$B$2:$B$257,0),MATCH(P$6,[2]MunRateMatrixRD!$B$1:$AR$1,0)),"n/a") -> n/a
C43: Landrate 4 | D43: Local Authority | G43: Landrate 4_Local Authority | H43: L401Y | I43: =IFERROR(INDEX([2]MunRateMatrixRD!$B$2:$AR$257,MATCH($H43,[2]MunRateMatrixRD!$B$2:$B$257,0),MATCH(I$6,[2]MunRateMatrixRD!$B$1:$AR$1,0)),"n/a") -> 0 | J43: =IFERROR(INDEX([2]MunRateMatrixRD!$B$2:$AR$257,MATCH($H43,[2]MunRateMatrixRD!$B$2:$B$257,0),MATCH(J$6,[2]MunRateMatrixRD!$B$1:$AR$1,0)),"n/a") -> 0 | K43: =IFERROR(INDEX([2]MunRateMatrixRD!$B$2:$AR$257,MATCH($H43,[2]MunRateMatrixRD!$B$2:$B$257,0),MATCH(K$6,[2]MunRateMatrixRD!$B$1:$AR$1,0)),"n/a") -> 273.03 | L43: =IFERROR(INDEX([2]MunRateMatrixRD!$B$2:$AR$257,MATCH($H43,[2]MunRateMatrixRD!$B$2:$B$257,0),MATCH(L$6,[2]MunRateMatrixRD!$B$1:$AR$1,0)),"n/a") -> 0.48 | M43: =IFERROR(INDEX([2]MunRateMatrixRD!$B$2:$AR$257,MATCH($H43,[2]MunRateMatrixRD!$B$2:$B$257,0),MATCH(M$6,[2]MunRateMatrixRD!$B$1:$AR$1,0)),"n/a") -> 31.16 | N43: =IFERROR(INDEX([2]MunRateMatrixRD!$B$2:$AR$257,MATCH($H43,[2]MunRateMatrixRD!$B$2:$B$257,0),MATCH(N$6,[2]MunRateMatrixRD!$B$1:$AR$1,0)),"n/a") -> 26.5 | O43: =IFERROR(INDEX([2]MunRateMatrixRD!$B$2:$AR$257,MATCH($H43,[2]MunRateMatrixRD!$B$2:$B$257,0),MATCH(O$6,[2]MunRateMatrixRD!$B$1:$AR$1,0)),"n/a") -> 0 | P43: =IFERROR(INDEX([2]MunRateMatrixRD!$B$2:$AR$257,MATCH($H43,[2]MunRateMatrixRD!$B$2:$B$257,0),MATCH(P$6,[2]MunRateMatrixRD!$B$1:$AR$1,0)),"n/a") -> n/a
C44: Landrate Dx | D44: Local Authority | G44: =C44&"_"&D44 -> Landrate Dx_Local Authority | H44: Ld01Y | I44: =IFERROR(INDEX([2]MunRateMatrixRD!$B$2:$AR$257,MATCH($H44,[2]MunRateMatrixRD!$B$2:$B$257,0),MATCH(I$6,[2]MunRateMatrixRD!$B$1:$AR$1,0)),"n/a") -> 0 | J44: =IFERROR(INDEX([2]MunRateMatrixRD!$B$2:$AR$257,MATCH($H44,[2]MunRateMatrixRD!$B$2:$B$257,0),MATCH(J$6,[2]MunRateMatrixRD!$B$1:$AR$1,0)),"n/a") -> 0 | K44: =IFERROR(INDEX([2]MunRateMatrixRD!$B$2:$AR$257,MATCH($H44,[2]MunRateMatrixRD!$B$2:$B$257,0),MATCH(K$6,[2]MunRateMatrixRD!$B$1:$AR$1,0)),"n/a") -> 0 | L44: =IFERROR(INDEX([2]MunRateMatrixRD!$B$2:$AR$257,MATCH($H44,[2]MunRateMatrixRD!$B$2:$B$257,0),MATCH(L$6,[2]MunRateMatrixRD!$B$1:$AR$1,0)),"n/a") -> 0 | M44: =IFERROR(INDEX([2]MunRateMatrixRD!$B$2:$AR$257,MATCH($H44,[2]MunRateMatrixRD!$B$2:$B$257,0),MATCH(M$6,[2]MunRateMatrixRD!$B$1:$AR$1,0)),"n/a") -> 0 | N44: =IFERROR(INDEX([2]MunRateMatrixRD!$B$2:$AR$257,MATCH($H44,[2]MunRateMatrixRD!$B$2:$B$257,0),MATCH(N$6,[2]MunRateMatrixRD!$B$1:$AR$1,0)),"n/a") -> 0 | O44: =IFERROR(INDEX([2]MunRateMatrixRD!$B$2:$AR$257,MATCH($H44,[2]MunRateMatrixRD!$B$2:$B$257,0),MATCH(O$6,[2]MunRateMatrixRD!$B$1:$AR$1,0)),"n/a") -> 58.9362 | P44: =IFERROR(INDEX([2]MunRateMatrixRD!$B$2:$AR$257,MATCH($H44,[2]MunRateMatrixRD!$B$2:$B$257,0),MATCH(P$6,[2]MunRateMatrixRD!$B$1:$AR$1,0)),"n/a") -> n/a
C45: Public Lighting All Night | D45: Local Authority | G45: =C45&"_"&D45 -> Public Lighting All Night_Local Authority | H45: =INDEX(Matrix_Tariff_Map,MATCH(C45,Matrix_Model_Tariffs,0),2)&IFERROR(INDEX(Matrix_Transmission_Map,MATCH(E45,Matrix_Model_Transmission,0),2),0)&IFERROR(INDEX(Matrix_Voltage_Map,MATCH(F45,Matrix_Model_Voltage,0),2),1)&INDEX(Matrix_Category_Map,MATCH(D45,Matrix_Model_Category,0),2) -> Pa01Y | I45: =IFERROR(INDEX([2]MunRateMatrixRD!$B$2:$AR$257,MATCH($H45,[2]MunRateMatrixRD!$B$2:$B$257,0),MATCH(I$6,[2]MunRateMatrixRD!$B$1:$AR$1,0)),"n/a") -> 0 | J45: =IFERROR(INDEX([2]MunRateMatrixRD!$B$2:$AR$257,MATCH($H45,[2]MunRateMatrixRD!$B$2:$B$257,0),MATCH(J$6,[2]MunRateMatrixRD!$B$1:$AR$1,0)),"n/a") -> 0 | K45: =IFERROR(INDEX([2]MunRateMatrixRD!$B$2:$AR$257,MATCH($H45,[2]MunRateMatrixRD!$B$2:$B$257,0),MATCH(K$6,[2]MunRateMatrixRD!$B$1:$AR$1,0)),"n/a") -> 102.55 | L45: =IFERROR(INDEX([2]MunRateMatrixRD!$B$2:$AR$257,MATCH($H45,[2]MunRateMatrixRD!$B$2:$B$257,0),MATCH(L$6,[2]MunRateMatrixRD!$B$1:$AR$1,0)),"n/a") -> 0 | M45: =IFERROR(INDEX([2]MunRateMatrixRD!$B$2:$AR$257,MATCH($H45,[2]MunRateMatrixRD!$B$2:$B$257,0),MATCH(M$6,[2]MunRateMatrixRD!$B$1:$AR$1,0)),"n/a") -> 0 | N45: =IFERROR(INDEX([2]MunRateMatrixRD!$B$2:$AR$257,MATCH($H45,[2]MunRateMatrixRD!$B$2:$B$257,0),MATCH(N$6,[2]MunRateMatrixRD!$B$1:$AR$1,0)),"n/a") -> 0 | O45: =IFERROR(INDEX([2]MunRateMatrixRD!$B$2:$AR$257,MATCH($H45,[2]MunRateMatrixRD!$B$2:$B$257,0),MATCH(O$6,[2]MunRateMatrixRD!$B$1:$AR$1,0)),"n/a") -> 0 | P45: =IFERROR(INDEX([2]MunRateMatrixRD!$B$2:$AR$257,MATCH($H45,[2]MunRateMatrixRD!$B$2:$B$257,0),MATCH(P$6,[2]MunRateMatrixRD!$B$1:$AR$1,0)),"n/a") -> n/a
C46: Public Lighting 24 Hours | D46: Local Authority | G46: =C46&"_"&D46 -> Public Lighting 24 Hours_Local Authority | H46: =INDEX(Matrix_Tariff_Map,MATCH(C46,Matrix_Model_Tariffs,0),2)&IFERROR(INDEX(Matrix_Transmission_Map,MATCH(E46,Matrix_Model_Transmission,0),2),0)&IFERROR(INDEX(Matrix_Voltage_Map,MATCH(F46,Matrix_Model_Voltage,0),2),1)&INDEX(Matrix_Category_Map,MATCH(D46,Matrix_Model_Category,0),2) -> Pu01Y | I46: =IFERROR(INDEX([2]MunRateMatrixRD!$B$2:$AR$257,MATCH($H46,[2]MunRateMatrixRD!$B$2:$B$257,0),MATCH(I$6,[2]MunRateMatrixRD!$B$1:$AR$1,0)),"n/a") -> 0 | J46: =IFERROR(INDEX([2]MunRateMatrixRD!$B$2:$AR$257,MATCH($H46,[2]MunRateMatrixRD!$B$2:$B$257,0),MATCH(J$6,[2]MunRateMatrixRD!$B$1:$AR$1,0)),"n/a") -> 0 | K46: =IFERROR(INDEX([2]MunRateMatrixRD!$B$2:$AR$257,MATCH($H46,[2]MunRateMatrixRD!$B$2:$B$257,0),MATCH(K$6,[2]MunRateMatrixRD!$B$1:$AR$1,0)),"n/a") -> 137.31 | L46: =IFERROR(INDEX([2]MunRateMatrixRD!$B$2:$AR$257,MATCH($H46,[2]MunRateMatrixRD!$B$2:$B$257,0),MATCH(L$6,[2]MunRateMatrixRD!$B$1:$AR$1,0)),"n/a") -> 0 | M46: =IFERROR(INDEX([2]MunRateMatrixRD!$B$2:$AR$257,MATCH($H46,[2]MunRateMatrixRD!$B$2:$B$257,0),MATCH(M$6,[2]MunRateMatrixRD!$B$1:$AR$1,0)),"n/a") -> 0 | N46: =IFERROR(INDEX([2]MunRateMatrixRD!$B$2:$AR$257,MATCH($H46,[2]MunRateMatrixRD!$B$2:$B$257,0),MATCH(N$6,[2]MunRateMatrixRD!$B$1:$AR$1,0)),"n/a") -> 0 | O46: =IFERROR(INDEX([2]MunRateMatrixRD!$B$2:$AR$257,MATCH($H46,[2]MunRateMatrixRD!$B$2:$B$257,0),MATCH(O$6,[2]MunRateMatrixRD!$B$1:$AR$1,0)),"n/a") -> 0 | P46: =IFERROR(INDEX([2]MunRateMatrixRD!$B$2:$AR$257,MATCH($H46,[2]MunRateMatrixRD!$B$2:$B$257,0),MATCH(P$6,[2]MunRateMatrixRD!$B$1:$AR$1,0)),"n/a") -> n/a
C47: Public Lighting Urban Fixed | D47: Local Authority | G47: =C47&"_"&D47 -> Public Lighting Urban Fixed_Local Authority | H47: =INDEX(Matrix_Tariff_Map,MATCH(C47,Matrix_Model_Tariffs,0),2)&IFERROR(INDEX(Matrix_Transmission_Map,MATCH(E47,Matrix_Model_Transmission,0),2),0)&IFERROR(INDEX(Matrix_Voltage_Map,MATCH(F47,Matrix_Model_Voltage,0),2),1)&INDEX(Matrix_Category_Map,MATCH(D47,Matrix_Model_Category,0),2) -> Pt01Y | I47: =IFERROR(INDEX([2]MunRateMatrixRD!$B$2:$AR$257,MATCH($H47,[2]MunRateMatrixRD!$B$2:$B$257,0),MATCH(I$6,[2]MunRateMatrixRD!$B$1:$AR$1,0)),"n/a") -> 0 | J47: =IFERROR(INDEX([2]MunRateMatrixRD!$B$2:$AR$257,MATCH($H47,[2]MunRateMatrixRD!$B$2:$B$257,0),MATCH(J$6,[2]MunRateMatrixRD!$B$1:$AR$1,0)),"n/a") -> 0 | K47: =IFERROR(INDEX([2]MunRateMatrixRD!$B$2:$AR$257,MATCH($H47,[2]MunRateMatrixRD!$B$2:$B$257,0),MATCH(K$6,[2]MunRateMatrixRD!$B$1:$AR$1,0)),"n/a") -> 0 | L47: =IFERROR(INDEX([2]MunRateMatrixRD!$B$2:$AR$257,MATCH($H47,[2]MunRateMatrixRD!$B$2:$B$257,0),MATCH(L$6,[2]MunRateMatrixRD!$B$1:$AR$1,0)),"n/a") -> 0 | M47: =IFERROR(INDEX([2]MunRateMatrixRD!$B$2:$AR$257,MATCH($H47,[2]MunRateMatrixRD!$B$2:$B$257,0),MATCH(M$6,[2]MunRateMatrixRD!$B$1:$AR$1,0)),"n/a") -> 0 | N47: =IFERROR(INDEX([2]MunRateMatrixRD!$B$2:$AR$257,MATCH($H47,[2]MunRateMatrixRD!$B$2:$B$257,0),MATCH(N$6,[2]MunRateMatrixRD!$B$1:$AR$1,0)),"n/a") -> 0 | O47: =IFERROR(INDEX([2]MunRateMatrixRD!$B$2:$AR$257,MATCH($H47,[2]MunRateMatrixRD!$B$2:$B$257,0),MATCH(O$6,[2]MunRateMatrixRD!$B$1:$AR$1,0)),"n/a") -> 6.743006309 | P47: =IFERROR(INDEX([2]MunRateMatrixRD!$B$2:$AR$257,MATCH($H47,[2]MunRateMatrixRD!$B$2:$B$257,0),MATCH(P$6,[2]MunRateMatrixRD!$B$1:$AR$1,0)),"n/a") -> n/a

Sheet Mapping (hidden)
B4: Mapping
B7: Model Tariffs | C7: Matrix Code | E7: Model Transmission Zone | F7: Matrix Code
B8: =Lists!B17 -> Businessrate 1 | C8: B1 | E8: Not Applicable | F8: 0
B9: =Lists!B18 -> Businessrate 2 | C9: B2 | E9: =Lists!C86 -> [0 - 300km] | F9: 0
B10: =Lists!B19 -> Businessrate 3 | C10: B3 | E10: =Lists!C87 -> [301 - 600km] | F10: 1
B11: =Lists!B20 -> Businessrate 4 | C11: B4 | E11: =Lists!C88 -> [601 - 900km] | F11: 2
B12: =Lists!B21 -> Homelight 20A | C12: HL20 | E12: =Lists!C89 -> [> 900km] | F12: 3
B13: =Lists!B22 -> Homelight 60A | C13: HL60
B14: =Lists!B23 -> Homepower 1 | C14: H1
B15: =Lists!B24 -> Homepower 2 | C15: H2 | E15: Model Voltage | F15: Matrix Code
B16: =Lists!B25 -> Homepower 3 | C16: H3 | E16: =Lists!C70 -> < 500V | F16: 1
B17: =Lists!B26 -> Homepower 4 | C17: H4 | E17: =Lists!C71 -> ≥ 500V & < 66kV | F17: 2
B18: =Lists!B27 -> Homepower Bulk | C18: HB | E18: =Lists!C72 -> ≥ 66kV & ≤ 132kV | F18: 3
B19: =Lists!B28 -> Landrate 1 | C19: L1 | E19: =Lists!C73 -> > 132kV | F19: 4
B20: =Lists!B29 -> Landrate 2 | C20: L2
B21: =Lists!B30 -> Landrate 3 | C21: L3 | E21: Model Category | F21: Matrix Code
B22: =Lists!B31 -> Landrate 4 | C22: L4 | E22: =Lists!K32 -> Non-Local Authority | F22: N
B23: =Lists!B32 -> Landrate Dx | C23: Ld | E23: =Lists!K33 -> Local Authority | F23: Y
B24: Landlight 20A | C24: Lt20
B25: Landlight 60A | C25: Lt60
B26: Public Lighting All Night | C26: Pa
B27: Public Lighting 24 Hours | C27: Pu
B28: Public Lighting Urban Fixed | C28: Pt
B29: =Lists!B38 -> Megaflex | C29: Me
B30: =Lists!B39 -> Miniflex | C30: Mi
B31: =Lists!B40 -> Nightsave Large | C31: NL
B32: =Lists!B41 -> Nightsave Rural | C32: NR
B33: =Lists!B42 -> Nightsave Small | C33: NS
B34: =Lists!B43 -> Ruraflex | C34: Ru

Sheet Lists (hidden)
B4: Model Lists
B6: Selections | C6: Dropbox ID | D6: Description | E6: ID | J6: Description | K6: Dates | L6: Units | N6: Customer Category | O6: Tariff Category ID
B7: Selected Tariff Category | C7: 2 | D7: =INDEX(Tariff_Category_List,Dropdown_Category) -> Local Authority | E7: =MATCH(D7,Tariff_Category_List,0) -> 2 | F7: =Selected_Tariff_Category_ID -> 2 | J7: ESKOM Financial Year End | K7: 2022-03-31 | L7: dd-mmm-yy | N7: Small Power User | O7: 1
B8: Selected Customer Category | C8: 1 | D8: =INDEX(Customer_Category_List,Dropdown_Customer) -> Small Power User | E8: =MATCH(D8,Customer_Category_List,0) -> 1 | J8: Municipality Financial Year End | K8: =EOMONTH(ESKOM_Period,3) -> 2022-06-30 | L8: dd-mmm-yy | N8: Large Power User | O8: 2
B9: Selected Supply Size | C9: 1 | D9: =INDEX(Capacity_List,Dropdown_Supply) -> 5kVA, 16kVA, 20A or 60A | E9: =MATCH(D9,Capacity_List,0) -> 1 | J9: Current Period | K9: =YEAR(Period)-2&"/"&YEAR(Period)-1 -> 2020/2021
B10: Selected Base Tariff | C10: 1 | D10: =INDEX(Supply_Tariff_List,MIN(Dropdown_Tariff,Supply_Tariff_List_Count),0) -> Businessrate 1 | E10: =MATCH(D10,Full_Tariff_List,0) -> 1 | J10: New Period | K10: =YEAR(Period)-1&"/"&YEAR(Period) -> 2021/2022 | N10: SPU Capacity | O10: Capacity ID
B11: Selected Tariff Type | D11: ='Monthly Average Bill'!D11 -> Urban | E11: =IF(Selected_Tariff_Type="Rural",2,1) -> 1 | J11: Total Days | K11: 30.41666667 | N11: 5kVA, 16kVA, 20A or 60A | O11: 1
B12: Selected Supply Voltage | C12: 1 | D12: =INDEX(Voltage_List,MIN(Dropdown_Voltage,Voltage_List_Count)) -> < 500V | E12: =MATCH(D12,Voltage_List,0) -> 1 | N12: 25kVA | O12: 2
B13: Selected transmission zone | C13: 1 | D13: =INDEX(Transmission_List,MIN(Dropdown_Zone,Transmission_List_Count)) -> Not Applicable | E13: =MATCH(D13,Transmission_List,0) -> 1 | J13: VAT | K13: 0.15 | N13: 32kVA | O13: 3
B14: Time of Use Toggle | E14: =IF(Selected_Customer_Category_ID=1,0,1) -> 0 | N14: 50kVA | O14: 4
N15: >50kVA | O15: 5
B16: Tariffs | C16: Base Tariff | D16: Tariff Variant | E16: Type | F16: Base Tariff ID | G16: Tariff ID | I16: Base Tariffs | J16: Type | K16: Long Type | L16: Base Tariff ID
B17: =IF(D17="",C17,C17&" "&D17) -> Businessrate 1 | C17: Businessrate | D17: 1 | E17: =INDEX(Base_Tariff_Type,F17) -> Urban | F17: =MATCH(C17,Base_Tariff_List,0) -> 1 | G17: 1 | I17: Businessrate | J17: Urban | K17: Commercial Urban | L17: 1
B18: =IF(D18="",C18,C18&" "&D18) -> Businessrate 2 | C18: Businessrate | D18: 2 | E18: Urban | F18: 1 | G18: 2 | I18: Homelight | J18: Urban | K18: Residential Urban | L18: 2
B19: Businessrate 3 | C19: Businessrate | D19: 3 | E19: Urban | F19: 1 | G19: 3 | I19: Homepower | J19: Urban | K19: Residential Urban | L19: 3
B20: Businessrate 4 | C20: Businessrate | D20: 4 | E20: Urban | F20: 1 | G20: 4 | I20: Landrate | J20: Rural | K20: Rural | L20: 4 | N20: LPU Capacity | O20: Capacity ID
B21: Homelight 20A | C21: Homelight | D21: 20A | E21: Urban | F21: 2 | G21: 5 | I21: Megaflex | J21: Urban | K21: Commercial Urban | L21: 5 | N21: ≤100kVA | O21: 1
B22: Homelight 60A | C22: Homelight | D22: 60A | E22: Urban | F22: 2 | G22: 6 | I22: Miniflex | J22: Urban | K22: Commercial Urban | L22: 6 | N22: >100kVA & ≤500kVA | O22: 2
B23: Homepower 1 | C23: Homepower | D23: 1 | E23: Urban | F23: 3 | G23: 7 | I23: Nightsave Large | J23: Urban | K23: Commercial Urban | L23: 7 | N23: >500kVA & ≤1MVA | O23: 3
B24: Homepower 2 | C24: Homepower | D24: 2 | E24: Urban | F24: 3 | G24: 8 | I24: Nightsave Rural | J24: Rural | K24: Rural | L24: 8 | N24: >1MVA & ≤5MVA | O24: 4
B25: Homepower 3 | C25: Homepower | D25: 3 | E25: Urban | F25: 3 | G25: 9 | I25: Nightsave Small | J25: Urban | K25: Commercial Urban | L25: 9 | N25: >5MVA | O25: 5
B26: Homepower 4 | C26: Homepower | D26: 4 | E26: Urban | F26: 3 | G26: 10 | I26: Ruraflex | J26: Rural | K26: Rural | L26: 10 | N26: Key customer | O26: 6
B27: Homepower Bulk | C27: Homepower | D27: Bulk | E27: Urban | F27: 3 | G27: 11 | I27: Public Lighting | J27: Urban | K27: Commercial Urban | L27: 11
B28: Landrate 1 | C28: Landrate | D28: 1 | E28: Rural | F28: 4 | G28: 12 | N28: Capacity | O28: Capacity ID
B29: Landrate 2 | C29: Landrate | D29: 2 | E29: Rural | F29: 4 | G29: 13 | N29: =IFERROR(IF(Selected_Customer_Category_ID=1,INDEX(Capacity_SPU_List,O29,0),INDEX(Capacity_LPU_List,O29,0)),"") -> 5kVA, 16kVA, 20A or 60A | O29: 1
B30: Landrate 3 | C30: Landrate | D30: 3 | E30: Rural | F30: 4 | G30: 14 | N30: 25kVA | O30: 2
B31: Landrate 4 | C31: Landrate | D31: 4 | E31: Rural | F31: 4 | G31: 15 | K31: Tariff Category | L31: Tariff Category ID | N31: 32kVA | O31: 3
B32: Landrate Dx | C32: Landrate | D32: Dx | E32: Rural | F32: 4 | G32: 16 | K32: Non-Local Authority | L32: 1 | N32: 50kVA | O32: 4
B33: Landlight 20A | C33: Landrate | D33: Dx | E33: =INDEX(Base_Tariff_Type,F33) -> Rural | F33: =MATCH(C33,Base_Tariff_List,0) -> 4 | G33: 17 | K33: Local Authority | L33: 2 | N33: >50kVA | O33: 5
B34: Landlight 60A | C34: Landrate | D34: Dx | E34: Rural | F34: 4 | G34: 18 | O34: 6
B35: Public Lighting All Night | C35: Public Lighting | D35: All Night | E35: =INDEX(Base_Tariff_Type,F35) -> Urban | F35: 11 | G35: 19
B36: Public Lighting 24 Hours | C36: Public Lighting | D36: 24 Hours | E36: =INDEX(Base_Tariff_Type,F36) -> Urban | F36: 11 | G36: 20 | K36: Tariffs | L36: Block 1 kWh | N36: Capacity List Count | O36: =IF(Selected_Customer_Category_ID=1,COUNTA(Capacity_SPU_List),COUNTA(Capacity_LPU_List)) -> 5
B37: Public Lighting Urban Fixed | C37: Public Lighting | D37: Urban Fixed | E37: =INDEX(Base_Tariff_Type,F37) -> Urban | F37: 11 | G37: 21 | K37: Homelight 20A | L37: 350
B38: =IF(D38="",C38,C38&" "&D38) -> Megaflex | C38: Megaflex | E38: =INDEX(Base_Tariff_Type,F38) -> Urban | F38: =MATCH(C38,Base_Tariff_List,0) -> 5 | G38: 22 | K38: Homelight 60A | L38: 600
B39: Miniflex | C39: Miniflex | E39: Urban | F39: 6 | G39: 23 | K39: Homepower | L39: 600
B40: Nightsave Large | C40: Nightsave Large | E40: Urban | F40: 7 | G40: 24
B41: Nightsave Rural | C41: Nightsave Rural | E41: Rural | F41: 8 | G41: 25
B42: Nightsave Small | C42: Nightsave Small | E42: Urban | F42: 9 | G42: 26
B43: Ruraflex | C43: Ruraflex | E43: Rural | F43: 10 | G43: 27
B50: Selection Tables | C50: LPU Selections | J50: SPU Selections
B51: =IF(Selected_Customer_Category_ID=1,INDEX(J51:O51,0,Selected_Supply_Size_ID),INDEX(C51:H51,Selected_Supply_Size_ID)) -> 5kVA, 16kVA, 20A or 60A | C51: =$N21 -> ≤100kVA | D51: =$N22 -> >100kVA & ≤500kVA | E51: =$N23 -> >500kVA & ≤1MVA | F51: =$N24 -> >1MVA & ≤5MVA | G51: =$N25 -> >5MVA | H51: =$N26 -> Key customer | J51: =$N11 -> 5kVA, 16kVA, 20A or 60A | K51: =$N12 -> 25kVA | L51: =$N13 -> 32kVA | M51: =$N14 -> 50kVA | N51: =$N15 -> >50kVA
B52: =INDEX(J52:N52,0,Selected_Supply_Size_ID) -> Businessrate 1 | C52: Ruraflex | D52: Ruraflex | E52: Ruraflex | F52: Ruraflex | G52: Ruraflex | H52: =F52 -> Ruraflex | J52: Businessrate 1 | K52: Businessrate 1 | L52: Businessrate 1 | M52: Businessrate 2 | N52: Businessrate 2
B53: Businessrate 4 | C53: Miniflex | D53: Miniflex | E53: Miniflex | F53: Miniflex | G53: Nightsave Large | H53: Nightsave Large | J53: Businessrate 4 | K53: Businessrate 4 | L53: Businessrate 4 | M53: Homepower 2 | N53: Businessrate 3
B54: Homepower 4 | C54: Nightsave Small | D54: Nightsave Small | E54: Nightsave Small | F54: Nightsave Large | G54: Megaflex | H54: Megaflex | J54: Homepower 4 | K54: Homepower 1 | L54: Homepower 1 | M54: Landrate 2 | N54: Homepower 2
B55: Homelight 20A | C55: Nightsave Rural | D55: Nightsave Rural | E55: Nightsave Rural | F55: Megaflex | G55: Nightsave Rural | H55: Nightsave Rural | J55: Homelight 20A | K55: Landrate 1 | L55: Landrate 1 | M55: Homepower Bulk | N55: Homepower 3
B56: Homelight 60A | C56: Homepower Bulk | D56: Homepower Bulk | E56: Homepower Bulk | F56: Nightsave Rural | J56: Homelight 60A | N56: Landrate 2
B57: Landrate 1 | J57: Landrate 1 | N57: Landrate 3
B58: Landrate 4 | J58: Landrate 4 | N58: Homepower Bulk
B59: Landrate Dx | J59: Landrate Dx
B60: Landlight 20A | J60: Landlight 20A
B61: Landlight 60A | J61: Landlight 60A
B62: Public Lighting All Night | J62: Public Lighting All Night
B63: Public Lighting 24 Hours | J63: Public Lighting 24 Hours
B64: Public Lighting Urban Fixed | J64: Public Lighting Urban Fixed
B66: =INDEX(J66:N66,0,Selected_Supply_Size_ID) -> 12 | C66: =COUNTA(C52:C60) -> 5 | D66: 5 | E66: 5 | F66: 5 | G66: 4 | H66: 4 | J66: =COUNTA(J52:J63) -> 12 | K66: =COUNTA(K52:K63) -> 4 | L66: 4 | M66: 4 | N66: 7
B69: LPU Voltage | C69: Urban | D69: Rural | J69: Compare Tables | K69: SPU | L69: ID | M69: Base Tariff ID | N69: Long Type
B70: =INDEX($C70:$D70,Selected_Tariff_Type_ID) -> < 500V | C70: < 500V | D70: < 500V | J70: =IF(Selected_Customer_Category_ID=1,K70,B52) -> Businessrate 1 | K70: =B52 -> Businessrate 1 | L70: 1 | M70: =IFERROR(INDEX($F$17:$F$43,MATCH(J70,Full_Tariff_List,0),0),0) -> 1 | N70: =IFERROR(INDEX($K$17:$K$26,MATCH(M70,$L$17:$L$26,0),0),0) -> Commercial Urban
B71: =INDEX($C71:$D71,Selected_Tariff_Type_ID) -> ≥ 500V & < 66kV | C71: ≥ 500V & < 66kV | D71: ≥ 500V & < 66kV | J71: Businessrate 4 | K71: Businessrate 4 | L71: 2 | M71: 1 | N71: =IFERROR(INDEX($K$17:$K$26,MATCH(M71,$L$17:$L$26,0),0),0) -> Commercial Urban
B72: =INDEX($C72:$D72,Selected_Tariff_Type_ID) -> ≥ 66kV & ≤ 132kV | C72: ≥ 66kV & ≤ 132kV | J72: Homepower 4 | K72: Homepower 4 | L72: 3 | M72: 3 | N72: Residential Urban
B73: =INDEX($C73:$D73,Selected_Tariff_Type_ID) -> > 132kV | C73: > 132kV | J73: Homelight 20A | K73: Homelight 20A | L73: 4 | M73: 2 | N73: Residential Urban
J74: Homelight 60A | K74: Homelight 60A | L74: 5 | M74: 2 | N74: Residential Urban
B75: =INDEX($C75:$D75,Selected_Tariff_Type_ID) -> 4 | C75: =COUNTA(C70:C73) -> 4 | D75: =COUNTA(D70:D73) -> 2 | J75: Landrate 1 | K75: Landrate 1 | L75: 6 | M75: 4 | N75: Rural
J76: Landrate 4 | K76: Landrate 4 | L76: 7 | M76: 4 | N76: Rural
B77: Voltage | C77: LPU | D77: SPU | E77: Voltage ID | J77: =IF(Selected_Customer_Category_ID=1,K77,B60) -> Landrate Dx | K77: Landrate Dx | L77: 8 | M77: 4 | N77: Rural
B78: =IF(Selected_Customer_Category_ID=1,D78,C78) -> < 500V | C78: =B70 -> < 500V | D78: < 500V | E78: 1 | J78: =IF(Selected_Customer_Category_ID=1,K78,B61) -> Landlight 20A | K78: Landlight 20A | L78: 9 | M78: 4 | N78: Rural
B79: =IF(Selected_Customer_Category_ID=1,D79,C79) -> ≥ 500V & < 66kV | C79: =B71 -> ≥ 500V & < 66kV | D79: ≥ 500V & < 66kV | E79: 2 | J79: =IF(Selected_Customer_Category_ID=1,K79,B62) -> Landlight 60A | K79: Landlight 60A | L79: 10 | M79: 4 | N79: Rural
B80: =IF(Selected_Customer_Category_ID=1,D80,C80) -> 0 | C80: ≥ 66kV & ≤ 132kV | E80: 3 | J80: =IF(Selected_Customer_Category_ID=1,K80,B63) -> Public Lighting All Night | K80: Public Lighting All Night | L80: 11 | M80: 11 | N80: 0
B81: =IF(Selected_Customer_Category_ID=1,D81,C81) -> 0 | C81: > 132kV | E81: 4 | J81: =IF(Selected_Customer_Category_ID=1,K81,B64) -> Public Lighting 24 Hours | K81: Public Lighting 24 Hours | L81: 12 | M81: 11 | N81: 0
B83: =IF(Selected_Customer_Category_ID=1,D83,C83) -> 2 | C83: =B75 -> 4 | D83: =COUNTA(D78:D81) -> 2 | J83: =IF(Selected_Customer_Category_ID=1,K83,B66) -> 12 | K83: =Supply_Tariff_List_Count -> 12
B85: Transmission zone | C85: LPU | D85: SPU | E85: Transmission Zone ID | J85: Selected Tariff in Compare | K85: =MATCH(Selected_Base_Tariff,Compare_Tariff_List,0) -> 1
B86: =IF(Selected_Customer_Category_ID=1,D86,C86) -> Not Applicable | C86: [0 - 300km] | D86: Not Applicable | E86: 0
B87: =IF(Selected_Customer_Category_ID=1,D87,C87) -> 0 | C87: [301 - 600km] | E87: 1
B88: =IF(Selected_Customer_Category_ID=1,D88,C88) -> 0 | C88: [601 - 900km] | E88: 2
B89: =IF(Selected_Customer_Category_ID=1,D89,C89) -> 0 | C89: [> 900km] | E89: 3
B91: =IF(Selected_Customer_Category_ID=1,D91,C91) -> 1 | C91: =COUNTA(C86:C89) -> 4 | D91: =COUNTA(D86:D89) -> 1 | J91: Compare_Tariff_List
B94: Months | C94: Month ID | D94: Season
B96: =DATE(YEAR(Period)-1,2,) -> 2021-01-31 | C96: 1 | D96: Low Demand
B97: =EOMONTH(B96,1) -> 2021-02-28 | C97: 2 | D97: Low Demand
B98: =EOMONTH(B97,1) -> 2021-03-31 | C98: 3 | D98: High Demand
B99: 2021-04-30 | C99: 4 | D99: Low Demand
B100: 2021-05-31 | C100: 5 | D100: Low Demand
B101: 2021-06-30 | C101: 6 | D101: High Demand
B102: 2021-07-31 | C102: 7 | D102: High Demand
B103: 2021-08-31 | C103: 8 | D103: High Demand
B104: 2021-09-30 | C104: 9 | D104: Low Demand
B105: 2021-10-31 | C105: 10 | D105: Low Demand
B106: 2021-11-30 | C106: 11 | D106: Low Demand
B107: 2021-12-31 | C107: 12 | D107: Low Demand

Sheet Notes on updates (hidden)
C2: Notes on updates | E2: Sheet | F2: Status
B3: 2015/16 | C3: ] | D3: Need to add SPU tariffs
D4: Public Lighting All Night | F4: Done
D5: Public Lighting 24 Hours
D6: Public Lighting Urban Fixed
D7: Landlight
C9: ] | D9: Rates
D10: Update the New with 2015/16 rates | F10: 2014-12-05
D11: Update the Current with 2014/15 rates | F11: 2014-12-05
C13: ] | D13: SPU
D14: Activate the Tx zone. This is needed for LPU tariff conversions | F14: 2014-12-05
C16: ] | D16: Tariff component name changes
D17: Change the Distribution network access charge NAC) to Distribution network capacity charge (NCC) | F17: 2015-10-14
B19: 2016/17 | C19: ] | D19: Need to add SPU tariffs
D20: Landlight 20A | E20: Mapping Lists | F20: 2016-02-22
D21: Landlight 60A | E21: Mapping Lists | F21: 2016-02-22
C23: ] | D23: Rates
D24: Update the New with 2016/17 rates | E24: Rates SPU - New | F24: 2016-03-02
D25: Update the Current with 2015/16 rates | E25: Rates SPU - Current | F25: 2016-03-02
D26: Tested & validated by RPM's & super-users | F26: 2016-02-15
D27: Tested & validated by PI team | F27: 2016-02-16
B29: 2017/18
C30: ] | D30: Rates
D31: Update the New with 2017/18 rates | E31: Rates SPU - New | F31: 2017-03-10
D32: Update the Current with 2016/17 rates | E32: Rates SPU - Current | F32: 2017-03-10
D33: Tested & validated by RPM's & super-users
D34: Tested & validated by PI team
B36: 2018/19
C37: ] | D37: Rates
D38: Update the New with 2018/19 rates | E38: Rates SPU - New | F38: 2018-02-22
D39: Update the Current with 2017/18 rates | E39: Rates SPU - Current | F39: 2018-02-22
D40: Update VAT rate to 15% | E40: Rates SPU - Current | F40: 2018-02-22
D41: Tested & validated by RPM's & super-users
D42: Tested & validated by PI team
B44: 2019/20
C45: ] | D45: Rates
D46: Update the New with 2019/20 rates | E46: Rates SPU - New | F46: 2019-03-11
D47: Update the Current with 2018/19 rates | E47: Rates SPU - Current | F47: 2019-03-11
D48: Update Eskom financial year [Range K7] | E48: Lists | F48: 2019-03-11
D49: Tested & validated by RPM's & super-users
D50: Tested & validated by PI team
B52: 2020/21
C53: ] | D53: Rates
D54: Update the New with 2020/21 rates | E54: Rates SPU - New | F54: 2020-03-10
D55: Update the Current with 2019/20 rates | E55: Rates SPU - Current | F55: 2020-03-10
D56: Update Eskom financial year [Range K7] | E56: Lists | F56: 2020-03-10
D57: Tested & validated by RPM's & super-users
D58: Tested & validated by PI team
B60: 2021/22
C61: ] | D61: Rates
D62: Update the New with 2021/22 rates | E62: Rates SPU - New | F62: 2021-03-09
D63: Update the Current with 2020/21 rates | E63: Rates SPU - Current | F63: 2021-03-09
D64: Update Eskom financial year [Range K7] | E64: Lists | F64: 2021-03-09
D65: Tested & validated by RPM's & super-users
D66: Tested & validated by PI team
